Body name,Directorate,Service Area Categorisation,Supplier Name,Payment Date,Card Transaction,Net Amount,Purpose of Spend,Procurement Classification: ProClass Label
Solihull MBC,Public Health & Commissioning,Central Services to the Public,1000 Heads Salons Ltd,16/04/2021,,18000,Grant & Subscription (SCITT),Not Yet Classified
Solihull MBC,Public Health & Commissioning,Central Services to the Public,247 Cars Willenhall Ltd,29/04/2021,,934,Grant & Subscription (SCITT),Not Yet Classified
Solihull MBC,Children's Services & Skills,Children & Education Services,24X7 Staffordshire Ltd,01/04/2021,,1985.31,Transport-Contract Hire,Not Yet Classified
Solihull MBC,Children's Services & Skills,Children & Education Services,3 Sixty Property Services Ltd,22/04/2021,,2185,Contractors,171011 - Education - School Services
Solihull MBC,Children's Services & Skills,Children & Education Services,3 Sixty Property Services Ltd,22/04/2021,,5895,Contractors,171011 - Education - School Services
Solihull MBC,Adult Social Care,Adult Social Care,360 Fabrications,16/04/2021,,984.5,Furniture & Equipment,Not Yet Classified
Solihull MBC,Children's Services & Skills,Children & Education Services,3PB Barristers,14/04/2021,,500,Other Fees,Not Yet Classified
Solihull MBC,Children's Services & Skills,Children & Education Services,3PB Barristers,13/04/2021,,3900,Other Fees,Not Yet Classified
Solihull MBC,Children's Services & Skills,Children & Education Services,3PB Barristers,07/04/2021,,825,Other Fees,Not Yet Classified
Solihull MBC,Children's Services & Skills,Children & Education Services,3PB Barristers,14/04/2021,,300,Other Fees,Not Yet Classified
Solihull MBC,Children's Services & Skills,Children & Education Services,3PB Barristers,13/04/2021,,1100,Other Fees,Not Yet Classified
Solihull MBC,Children's Services & Skills,Children & Education Services,3PB Barristers,07/04/2021,,850,Other Fees,Not Yet Classified
Solihull MBC,Children's Services & Skills,Children & Education Services,3PB Barristers,14/04/2021,,650,Other Fees,Not Yet Classified
Solihull MBC,Children's Services & Skills,Children & Education Services,3PB Barristers,14/04/2021,,500,Other Fees,Not Yet Classified
Solihull MBC,Children's Services & Skills,Children & Education Services,3PB Barristers,13/04/2021,,500,Other Fees,321100 - Social Community Care Supplies & Services - Children
Solihull MBC,Children's Services & Skills,Children & Education Services,3PB Barristers,13/04/2021,,650,Other Fees,321100 - Social Community Care Supplies & Services - Children
Solihull MBC,Children's Services & Skills,Children & Education Services,3PB Barristers,07/04/2021,,650,Other Fees,Not Yet Classified
Solihull MBC,Public Health & Commissioning,Central Services to the Public,3UK Retail Ltd,08/04/2021,,3000,Grant & Subscription (SCITT),Not Yet Classified
Solihull MBC,Public Health & Commissioning,Central Services to the Public,3UK Retail Ltd,20/04/2021,,4714,Grant & Subscription (SCITT),Not Yet Classified
Solihull MBC,Public Health & Commissioning,Central Services to the Public,3UK Retail Ltd,20/04/2021,,9000,Grant & Subscription (SCITT),Not Yet Classified
Solihull MBC,Public Health & Commissioning,Central Services to the Public,3UK Retail Ltd,20/04/2021,,536,Grant & Subscription (SCITT),Not Yet Classified
Solihull MBC,Public Health & Commissioning,Central Services to the Public,3UK Retail Ltd,20/04/2021,,4500,Grant & Subscription (SCITT),Not Yet Classified
Solihull MBC,Public Health & Commissioning,Central Services to the Public,A Perfect Fit,23/04/2021,,2667,Grant & Subscription (SCITT),Not Yet Classified
Solihull MBC,Children's Services & Skills,Children & Education Services,A Wilderness Way Ltd,30/04/2021,,3251.14,Other Contracted Services,Not Yet Classified
Solihull MBC,Children's Services & Skills,Children & Education Services,A Wilderness Way Ltd,30/04/2021,,27092.86,Other Contracted Services,Not Yet Classified
Solihull MBC,Children's Services - DSG Central.,Children & Education Services,A Wilderness Way Ltd,12/04/2021,,2400,Other Contracted Services,Not Yet Classified
Solihull MBC,Children's Services - DSG Central.,Children & Education Services,A Wilderness Way Ltd,12/04/2021,,4500,Other Contracted Services,Not Yet Classified
Solihull MBC,Children's Services - DSG Central.,Children & Education Services,A Wilderness Way Ltd,12/04/2021,,6000,Other Contracted Services,Not Yet Classified
Solihull MBC,Children's Services - DSG Central.,Children & Education Services,A Wilderness Way Ltd,23/04/2021,,2700,Other Contracted Services,Not Yet Classified
Solihull MBC,Children's Services & Skills,Children & Education Services,A1 Support Limited,22/04/2021,,2562.86,Supported Lodgings,Not Yet Classified
Solihull MBC,Children's Services & Skills,Children & Education Services,A1 Support Limited,30/04/2021,,295.71,Supported Lodgings,Not Yet Classified
Solihull MBC,Children's Services & Skills,Children & Education Services,A1 Support Limited,30/04/2021,,2464.29,Supported Lodgings,Not Yet Classified
Solihull MBC,Children's Services & Skills,Children & Education Services,A1 Support Limited,30/04/2021,,295.71,Supported Lodgings,Not Yet Classified
Solihull MBC,Children's Services & Skills,Children & Education Services,A1 Support Limited,30/04/2021,,2464.29,Supported Lodgings,Not Yet Classified
Solihull MBC,Children's Services & Skills,Children & Education Services,A1 Support Limited,30/04/2021,,295.71,Supported Lodgings,Not Yet Classified
Solihull MBC,Children's Services & Skills,Children & Education Services,A1 Support Limited,30/04/2021,,2464.29,Supported Lodgings,Not Yet Classified
Solihull MBC,Children's Services & Skills,Children & Education Services,A1 Support Limited,30/04/2021,,295.71,Supported Lodgings,Not Yet Classified
Solihull MBC,Children's Services & Skills,Children & Education Services,A1 Support Limited,30/04/2021,,2464.29,Supported Lodgings,Not Yet Classified
Solihull MBC,Children's Services - DSG Central.,Children & Education Services,Abable Ltd,08/04/2021,,2601,Professional Fees,Not Yet Classified
Solihull MBC,Adult Social Care,Adult Social Care,Abbey Healthcare Homes Ltd,21/04/2021,,453.72,ASC - Nursing Care Permanent,321000 - Social Community Care Supplies & Services - Adult
Solihull MBC,Adult Social Care,Adult Social Care,Abbey Healthcare Homes Ltd,21/04/2021,,1663.64,ASC - Nursing Care Permanent,321000 - Social Community Care Supplies & Services - Adult
Solihull MBC,Adult Social Care,Adult Social Care,Abbey Healthcare Homes Ltd,21/04/2021,,2261.42,ASC - Nursing Care Permanent,321000 - Social Community Care Supplies & Services - Adult
Solihull MBC,Children's Services - DSG Central.,Children & Education Services,Absolute ABA UK,26/04/2021,,420,Professional Fees,Not Yet Classified
Solihull MBC,Resources,Central Services to the Public,Absolute Interpreting & Translation Ltd,29/04/2021,,360,Professional Fees,261100 - Human Resources - Interpretation & Translation
Solihull MBC,Children's Services - DSG Central.,Children & Education Services,Academy21 Ltd,13/04/2021,,4500,Professional Fees,Not Yet Classified
Solihull MBC,Covid-19,Central Services to the Public,Accomplish Group,29/04/2021,,2275.96,ASC - Residential Care Permanent,Not Yet Classified
Solihull MBC,Covid-19,Central Services to the Public,Accomplish Group,29/04/2021,,1781.53,ASC - Residential Care Permanent,Not Yet Classified
Solihull MBC,Adult Social Care,Adult Social Care,Accomplish Group Lifestyles Ltd,21/04/2021,,1001.91,ASC - Residential Care Permanent,Not Yet Classified
Solihull MBC,Adult Social Care,Adult Social Care,Accomplish Group Lifestyles Ltd,21/04/2021,,3673.67,ASC - Residential Care Permanent,Not Yet Classified
Solihull MBC,Adult Social Care,Adult Social Care,Accomplish Group Lifestyles Ltd,21/04/2021,,4799.9,ASC - Residential Care Permanent,Not Yet Classified
Solihull MBC,Adult Social Care,Adult Social Care,Accomplish Group Lifestyles Ltd,21/04/2021,,743.14,ASC - Residential Care Permanent,Not Yet Classified
Solihull MBC,Adult Social Care,Adult Social Care,Accomplish Group Lifestyles Ltd,21/04/2021,,2724.86,ASC - Residential Care Permanent,Not Yet Classified
Solihull MBC,Adult Social Care,Adult Social Care,Accomplish Group Lifestyles Ltd,21/04/2021,,3509.66,ASC - Residential Care Permanent,Not Yet Classified
Solihull MBC,Adult Social Care,Adult Social Care,Accomplish Group Lifestyles Ltd,21/04/2021,,594.39,ASC - Residential Care Permanent,Not Yet Classified
Solihull MBC,Adult Social Care,Adult Social Care,Accomplish Group Lifestyles Ltd,21/04/2021,,2179.43,ASC - Residential Care Permanent,Not Yet Classified
Solihull MBC,Adult Social Care,Adult Social Care,Accomplish Group Lifestyles Ltd,21/04/2021,,2898.14,ASC - Residential Care Permanent,Not Yet Classified
Solihull MBC,Adult Social Care,Adult Social Care,Accora,16/04/2021,,965,Furniture & Equipment,Not Yet Classified
Solihull MBC,Adult Social Care,Adult Social Care,Accora,16/04/2021,,965,Furniture & Equipment,Not Yet Classified
Solihull MBC,Adult Social Care,Adult Social Care,Accora,29/04/2021,,2064,Furniture & Equipment,Not Yet Classified
Solihull MBC,Adult Social Care,Adult Social Care,Accord Housing Association,08/04/2021,,29521.02,Block Contracts,321000 - Social Community Care Supplies & Services - Adult
Solihull MBC,Covid-19,Central Services to the Public,Accord Housing Association,29/04/2021,,853.49,ASC - Residential Care Permanent,321000 - Social Community Care Supplies & Services - Adult
Solihull MBC,Covid-19,Central Services to the Public,Accord Housing Association,29/04/2021,,668.07,ASC - Residential Care Permanent,321000 - Social Community Care Supplies & Services - Adult
Solihull MBC,Adult Social Care,Adult Social Care,Accord Housing Asssociation,21/04/2021,,265.77,ASC - Residential Care Permanent,321000 - Social Community Care Supplies & Services - Adult
Solihull MBC,Adult Social Care,Adult Social Care,Accord Housing Asssociation,21/04/2021,,974.49,ASC - Residential Care Permanent,321000 - Social Community Care Supplies & Services - Adult
Solihull MBC,Adult Social Care,Adult Social Care,Accord Housing Asssociation,21/04/2021,,1289.68,ASC - Residential Care Permanent,321000 - Social Community Care Supplies & Services - Adult
Solihull MBC,Adult Social Care,Adult Social Care,Accord Housing Asssociation,29/04/2021,,1328.85,ASC - Residential Care Respite,321000 - Social Community Care Supplies & Services - Adult
Solihull MBC,Adult Social Care,Adult Social Care,Accord Housing Asssociation,29/04/2021,,1594.62,ASC - Residential Care Respite,321000 - Social Community Care Supplies & Services - Adult
Solihull MBC,Adult Social Care,Adult Social Care,Accord Housing Asssociation,29/04/2021,,4872.45,ASC - Residential Care Respite,321000 - Social Community Care Supplies & Services - Adult
Solihull MBC,Adult Social Care,Adult Social Care,Accord Housing Asssociation,29/04/2021,,5846.94,ASC - Residential Care Respite,321000 - Social Community Care Supplies & Services - Adult
Solihull MBC,Adult Social Care,Adult Social Care,Accord Housing Asssociation,29/04/2021,,6448.4,ASC - Residential Care Respite,321000 - Social Community Care Supplies & Services - Adult
Solihull MBC,Adult Social Care,Adult Social Care,Accord Housing Asssociation,29/04/2021,,7738.08,ASC - Residential Care Respite,321000 - Social Community Care Supplies & Services - Adult
Solihull MBC,Adult Social Care,Adult Social Care,Accord Housing Asssociation,29/04/2021,,544.3,ASC - Residential Care Respite,321000 - Social Community Care Supplies & Services - Adult
Solihull MBC,Adult Social Care,Adult Social Care,Accord Housing Asssociation,29/04/2021,,1995.78,ASC - Residential Care Respite,321000 - Social Community Care Supplies & Services - Adult
Solihull MBC,Adult Social Care,Adult Social Care,Accord Housing Asssociation,29/04/2021,,2639,ASC - Residential Care Respite,321000 - Social Community Care Supplies & Services - Adult
Solihull MBC,Adult Social Care,Adult Social Care,Accord Housing Asssociation,29/04/2021,,1063.08,ASC - Residential Care Permanent,321000 - Social Community Care Supplies & Services - Adult
Solihull MBC,Adult Social Care,Adult Social Care,Accord Housing Asssociation,29/04/2021,,3897.96,ASC - Residential Care Permanent,321000 - Social Community Care Supplies & Services - Adult
Solihull MBC,Adult Social Care,Adult Social Care,Accord Housing Asssociation,29/04/2021,,5158.72,ASC - Residential Care Permanent,321000 - Social Community Care Supplies & Services - Adult
Solihull MBC,Adult Social Care,Adult Social Care,Accord Housing Asssociation,21/04/2021,,265.77,ASC - Residential Care Permanent,321000 - Social Community Care Supplies & Services - Adult
Solihull MBC,Adult Social Care,Adult Social Care,Accord Housing Asssociation,21/04/2021,,974.49,ASC - Residential Care Permanent,321000 - Social Community Care Supplies & Services - Adult
Solihull MBC,Adult Social Care,Adult Social Care,Accord Housing Asssociation,21/04/2021,,1289.68,ASC - Residential Care Permanent,321000 - Social Community Care Supplies & Services - Adult
Solihull MBC,Adult Social Care,Adult Social Care,Accord Housing Asssociation,21/04/2021,,265.77,ASC - Residential Care Permanent,321000 - Social Community Care Supplies & Services - Adult
Solihull MBC,Adult Social Care,Adult Social Care,Accord Housing Asssociation,21/04/2021,,974.49,ASC - Residential Care Permanent,321000 - Social Community Care Supplies & Services - Adult
Solihull MBC,Adult Social Care,Adult Social Care,Accord Housing Asssociation,21/04/2021,,1289.68,ASC - Residential Care Permanent,321000 - Social Community Care Supplies & Services - Adult
Solihull MBC,Adult Social Care,Adult Social Care,Accord Housing Asssociation,21/04/2021,,265.77,ASC - Residential Care Permanent,321000 - Social Community Care Supplies & Services - Adult
Solihull MBC,Adult Social Care,Adult Social Care,Accord Housing Asssociation,21/04/2021,,974.49,ASC - Residential Care Permanent,321000 - Social Community Care Supplies & Services - Adult
Solihull MBC,Adult Social Care,Adult Social Care,Accord Housing Asssociation,21/04/2021,,1289.68,ASC - Residential Care Permanent,321000 - Social Community Care Supplies & Services - Adult
Solihull MBC,Adult Social Care,Adult Social Care,Accord Housing Asssociation,21/04/2021,,265.77,ASC - Residential Care Permanent,321000 - Social Community Care Supplies & Services - Adult
Solihull MBC,Adult Social Care,Adult Social Care,Accord Housing Asssociation,21/04/2021,,974.49,ASC - Residential Care Permanent,321000 - Social Community Care Supplies & Services - Adult
Solihull MBC,Adult Social Care,Adult Social Care,Accord Housing Asssociation,21/04/2021,,1289.68,ASC - Residential Care Permanent,321000 - Social Community Care Supplies & Services - Adult
Solihull MBC,Adult Social Care,Adult Social Care,Accord Housing Asssociation,21/04/2021,,265.77,ASC - Residential Care Permanent,321000 - Social Community Care Supplies & Services - Adult
Solihull MBC,Adult Social Care,Adult Social Care,Accord Housing Asssociation,21/04/2021,,974.49,ASC - Residential Care Permanent,321000 - Social Community Care Supplies & Services - Adult
Solihull MBC,Adult Social Care,Adult Social Care,Accord Housing Asssociation,21/04/2021,,1289.68,ASC - Residential Care Permanent,321000 - Social Community Care Supplies & Services - Adult
Solihull MBC,Adult Social Care,Adult Social Care,Accord Housing Asssociation,21/04/2021,,265.77,ASC - Residential Care Permanent,321000 - Social Community Care Supplies & Services - Adult
Solihull MBC,Adult Social Care,Adult Social Care,Accord Housing Asssociation,21/04/2021,,974.49,ASC - Residential Care Permanent,321000 - Social Community Care Supplies & Services - Adult
Solihull MBC,Adult Social Care,Adult Social Care,Accord Housing Asssociation,21/04/2021,,1289.68,ASC - Residential Care Permanent,321000 - Social Community Care Supplies & Services - Adult
Solihull MBC,Adult Social Care,Adult Social Care,Accord Housing Asssociation,21/04/2021,,265.77,ASC - Residential Care Permanent,321000 - Social Community Care Supplies & Services - Adult
Solihull MBC,Adult Social Care,Adult Social Care,Accord Housing Asssociation,21/04/2021,,974.49,ASC - Residential Care Permanent,321000 - Social Community Care Supplies & Services - Adult
Solihull MBC,Adult Social Care,Adult Social Care,Accord Housing Asssociation,21/04/2021,,1289.68,ASC - Residential Care Permanent,321000 - Social Community Care Supplies & Services - Adult
Solihull MBC,Adult Social Care,Adult Social Care,Accord Housing Asssociation,21/04/2021,,265.77,ASC - Residential Care Permanent,321000 - Social Community Care Supplies & Services - Adult
Solihull MBC,Adult Social Care,Adult Social Care,Accord Housing Asssociation,21/04/2021,,974.49,ASC - Residential Care Permanent,321000 - Social Community Care Supplies & Services - Adult
Solihull MBC,Adult Social Care,Adult Social Care,Accord Housing Asssociation,21/04/2021,,1289.68,ASC - Residential Care Permanent,321000 - Social Community Care Supplies & Services - Adult
Solihull MBC,Adult Social Care,Adult Social Care,Accord Housing Asssociation,21/04/2021,,265.77,ASC - Residential Care Permanent,321000 - Social Community Care Supplies & Services - Adult
Solihull MBC,Adult Social Care,Adult Social Care,Accord Housing Asssociation,21/04/2021,,974.49,ASC - Residential Care Permanent,321000 - Social Community Care Supplies & Services - Adult
Solihull MBC,Adult Social Care,Adult Social Care,Accord Housing Asssociation,21/04/2021,,1289.68,ASC - Residential Care Permanent,321000 - Social Community Care Supplies & Services - Adult
Solihull MBC,Adult Social Care,Adult Social Care,Accord Housing Asssociation,21/04/2021,,265.77,ASC - Residential Care Permanent,321000 - Social Community Care Supplies & Services - Adult
Solihull MBC,Adult Social Care,Adult Social Care,Accord Housing Asssociation,21/04/2021,,974.49,ASC - Residential Care Permanent,321000 - Social Community Care Supplies & Services - Adult
Solihull MBC,Adult Social Care,Adult Social Care,Accord Housing Asssociation,21/04/2021,,1289.68,ASC - Residential Care Permanent,321000 - Social Community Care Supplies & Services - Adult
Solihull MBC,Adult Social Care,Adult Social Care,Accord Housing Asssociation,21/04/2021,,265.77,ASC - Residential Care Permanent,321000 - Social Community Care Supplies & Services - Adult
Solihull MBC,Adult Social Care,Adult Social Care,Accord Housing Asssociation,21/04/2021,,974.49,ASC - Residential Care Permanent,321000 - Social Community Care Supplies & Services - Adult
Solihull MBC,Adult Social Care,Adult Social Care,Accord Housing Asssociation,21/04/2021,,1289.68,ASC - Residential Care Permanent,321000 - Social Community Care Supplies & Services - Adult
Solihull MBC,Adult Social Care,Adult Social Care,Accord Housing Asssociation,21/04/2021,,265.77,ASC - Residential Care Permanent,321000 - Social Community Care Supplies & Services - Adult
Solihull MBC,Adult Social Care,Adult Social Care,Accord Housing Asssociation,21/04/2021,,974.49,ASC - Residential Care Permanent,321000 - Social Community Care Supplies & Services - Adult
Solihull MBC,Adult Social Care,Adult Social Care,Accord Housing Asssociation,21/04/2021,,1289.68,ASC - Residential Care Permanent,321000 - Social Community Care Supplies & Services - Adult
Solihull MBC,Adult Social Care,Adult Social Care,Accord Housing Asssociation,21/04/2021,,265.77,ASC - Residential Care Permanent,321000 - Social Community Care Supplies & Services - Adult
Solihull MBC,Adult Social Care,Adult Social Care,Accord Housing Asssociation,21/04/2021,,974.49,ASC - Residential Care Permanent,321000 - Social Community Care Supplies & Services - Adult
Solihull MBC,Adult Social Care,Adult Social Care,Accord Housing Asssociation,21/04/2021,,1289.68,ASC - Residential Care Permanent,321000 - Social Community Care Supplies & Services - Adult
Solihull MBC,Adult Social Care,Adult Social Care,Accord Housing Asssociation,21/04/2021,,265.77,ASC - Residential Care Permanent,321000 - Social Community Care Supplies & Services - Adult
Solihull MBC,Adult Social Care,Adult Social Care,Accord Housing Asssociation,21/04/2021,,974.49,ASC - Residential Care Permanent,321000 - Social Community Care Supplies & Services - Adult
Solihull MBC,Adult Social Care,Adult Social Care,Accord Housing Asssociation,21/04/2021,,1289.68,ASC - Residential Care Permanent,321000 - Social Community Care Supplies & Services - Adult
Solihull MBC,Adult Social Care,Adult Social Care,Accord Housing Asssociation,21/04/2021,,265.77,ASC - Residential Care Permanent,321000 - Social Community Care Supplies & Services - Adult
Solihull MBC,Adult Social Care,Adult Social Care,Accord Housing Asssociation,21/04/2021,,974.49,ASC - Residential Care Permanent,321000 - Social Community Care Supplies & Services - Adult
Solihull MBC,Adult Social Care,Adult Social Care,Accord Housing Asssociation,21/04/2021,,1289.68,ASC - Residential Care Permanent,321000 - Social Community Care Supplies & Services - Adult
Solihull MBC,Adult Social Care,Adult Social Care,Accord Housing Asssociation,21/04/2021,,265.77,ASC - Residential Care Permanent,321000 - Social Community Care Supplies & Services - Adult
Solihull MBC,Adult Social Care,Adult Social Care,Accord Housing Asssociation,21/04/2021,,974.49,ASC - Residential Care Permanent,321000 - Social Community Care Supplies & Services - Adult
Solihull MBC,Adult Social Care,Adult Social Care,Accord Housing Asssociation,21/04/2021,,1289.68,ASC - Residential Care Permanent,321000 - Social Community Care Supplies & Services - Adult
Solihull MBC,Adult Social Care,Adult Social Care,Accord Housing Asssociation,21/04/2021,,265.77,ASC - Residential Care Permanent,321000 - Social Community Care Supplies & Services - Adult
Solihull MBC,Adult Social Care,Adult Social Care,Accord Housing Asssociation,21/04/2021,,974.49,ASC - Residential Care Permanent,321000 - Social Community Care Supplies & Services - Adult
Solihull MBC,Adult Social Care,Adult Social Care,Accord Housing Asssociation,21/04/2021,,1289.68,ASC - Residential Care Permanent,321000 - Social Community Care Supplies & Services - Adult
Solihull MBC,Adult Social Care,Adult Social Care,Accord Housing Asssociation,21/04/2021,,265.77,ASC - Residential Care Permanent,321000 - Social Community Care Supplies & Services - Adult
Solihull MBC,Adult Social Care,Adult Social Care,Accord Housing Asssociation,21/04/2021,,974.49,ASC - Residential Care Permanent,321000 - Social Community Care Supplies & Services - Adult
Solihull MBC,Adult Social Care,Adult Social Care,Accord Housing Asssociation,21/04/2021,,1289.68,ASC - Residential Care Permanent,321000 - Social Community Care Supplies & Services - Adult
Solihull MBC,Adult Social Care,Adult Social Care,Accord Housing Asssociation,21/04/2021,,265.77,ASC - Residential Care Permanent,321000 - Social Community Care Supplies & Services - Adult
Solihull MBC,Adult Social Care,Adult Social Care,Accord Housing Asssociation,21/04/2021,,974.49,ASC - Residential Care Permanent,321000 - Social Community Care Supplies & Services - Adult
Solihull MBC,Adult Social Care,Adult Social Care,Accord Housing Asssociation,21/04/2021,,1289.68,ASC - Residential Care Permanent,321000 - Social Community Care Supplies & Services - Adult
Solihull MBC,Adult Social Care,Adult Social Care,Accord Housing Asssociation,21/04/2021,,265.77,ASC - Residential Care Permanent,321000 - Social Community Care Supplies & Services - Adult
Solihull MBC,Adult Social Care,Adult Social Care,Accord Housing Asssociation,21/04/2021,,974.49,ASC - Residential Care Permanent,321000 - Social Community Care Supplies & Services - Adult
Solihull MBC,Adult Social Care,Adult Social Care,Accord Housing Asssociation,21/04/2021,,1289.68,ASC - Residential Care Permanent,321000 - Social Community Care Supplies & Services - Adult
Solihull MBC,Adult Social Care,Adult Social Care,Accord Housing Asssociation,21/04/2021,,265.77,ASC - Residential Care Permanent,321000 - Social Community Care Supplies & Services - Adult
Solihull MBC,Adult Social Care,Adult Social Care,Accord Housing Asssociation,21/04/2021,,974.49,ASC - Residential Care Permanent,321000 - Social Community Care Supplies & Services - Adult
Solihull MBC,Adult Social Care,Adult Social Care,Accord Housing Asssociation,21/04/2021,,1289.68,ASC - Residential Care Permanent,321000 - Social Community Care Supplies & Services - Adult
Solihull MBC,Adult Social Care,Adult Social Care,Accord Housing Asssociation,21/04/2021,,265.77,ASC - Residential Care Permanent,321000 - Social Community Care Supplies & Services - Adult
Solihull MBC,Adult Social Care,Adult Social Care,Accord Housing Asssociation,21/04/2021,,974.49,ASC - Residential Care Permanent,321000 - Social Community Care Supplies & Services - Adult
Solihull MBC,Adult Social Care,Adult Social Care,Accord Housing Asssociation,21/04/2021,,1289.68,ASC - Residential Care Permanent,321000 - Social Community Care Supplies & Services - Adult
Solihull MBC,Adult Social Care,Adult Social Care,Accord Housing Asssociation,21/04/2021,,265.77,ASC - Residential Care Permanent,321000 - Social Community Care Supplies & Services - Adult
Solihull MBC,Adult Social Care,Adult Social Care,Accord Housing Asssociation,21/04/2021,,974.49,ASC - Residential Care Permanent,321000 - Social Community Care Supplies & Services - Adult
Solihull MBC,Adult Social Care,Adult Social Care,Accord Housing Asssociation,21/04/2021,,1289.68,ASC - Residential Care Permanent,321000 - Social Community Care Supplies & Services - Adult
Solihull MBC,Adult Social Care,Adult Social Care,Accord Housing Asssociation,21/04/2021,,265.77,ASC - Residential Care Permanent,321000 - Social Community Care Supplies & Services - Adult
Solihull MBC,Adult Social Care,Adult Social Care,Accord Housing Asssociation,21/04/2021,,974.49,ASC - Residential Care Permanent,321000 - Social Community Care Supplies & Services - Adult
Solihull MBC,Adult Social Care,Adult Social Care,Accord Housing Asssociation,21/04/2021,,1289.68,ASC - Residential Care Permanent,321000 - Social Community Care Supplies & Services - Adult
Solihull MBC,Adult Social Care,Adult Social Care,Accord Housing Asssociation,21/04/2021,,265.77,ASC - Residential Care Permanent,321000 - Social Community Care Supplies & Services - Adult
Solihull MBC,Adult Social Care,Adult Social Care,Accord Housing Asssociation,21/04/2021,,974.49,ASC - Residential Care Permanent,321000 - Social Community Care Supplies & Services - Adult
Solihull MBC,Adult Social Care,Adult Social Care,Accord Housing Asssociation,21/04/2021,,1289.68,ASC - Residential Care Permanent,321000 - Social Community Care Supplies & Services - Adult
Solihull MBC,Adult Social Care,Adult Social Care,Accord Housing Asssociation,21/04/2021,,265.77,ASC - Residential Care Respite,321000 - Social Community Care Supplies & Services - Adult
Solihull MBC,Adult Social Care,Adult Social Care,Accord Housing Asssociation,21/04/2021,,974.49,ASC - Residential Care Respite,321000 - Social Community Care Supplies & Services - Adult
Solihull MBC,Adult Social Care,Adult Social Care,Accord Housing Asssociation,21/04/2021,,1289.68,ASC - Residential Care Respite,321000 - Social Community Care Supplies & Services - Adult
Solihull MBC,Adult Social Care,Adult Social Care,Accord Housing Asssociation,21/04/2021,,265.77,ASC - Residential Care Permanent,321000 - Social Community Care Supplies & Services - Adult
Solihull MBC,Adult Social Care,Adult Social Care,Accord Housing Asssociation,21/04/2021,,974.49,ASC - Residential Care Permanent,321000 - Social Community Care Supplies & Services - Adult
Solihull MBC,Adult Social Care,Adult Social Care,Accord Housing Asssociation,21/04/2021,,1289.68,ASC - Residential Care Permanent,321000 - Social Community Care Supplies & Services - Adult
Solihull MBC,Adult Social Care,Adult Social Care,Accord Housing Asssociation,21/04/2021,,265.77,ASC - Residential Care Permanent,321000 - Social Community Care Supplies & Services - Adult
Solihull MBC,Adult Social Care,Adult Social Care,Accord Housing Asssociation,21/04/2021,,974.49,ASC - Residential Care Permanent,321000 - Social Community Care Supplies & Services - Adult
Solihull MBC,Adult Social Care,Adult Social Care,Accord Housing Asssociation,21/04/2021,,1289.68,ASC - Residential Care Permanent,321000 - Social Community Care Supplies & Services - Adult
Solihull MBC,Adult Social Care,Adult Social Care,Accord Housing Asssociation,21/04/2021,,265.77,ASC - Residential Care Permanent,321000 - Social Community Care Supplies & Services - Adult
Solihull MBC,Adult Social Care,Adult Social Care,Accord Housing Asssociation,21/04/2021,,974.49,ASC - Residential Care Permanent,321000 - Social Community Care Supplies & Services - Adult
Solihull MBC,Adult Social Care,Adult Social Care,Accord Housing Asssociation,21/04/2021,,1289.68,ASC - Residential Care Permanent,321000 - Social Community Care Supplies & Services - Adult
Solihull MBC,Covid-19,Central Services to the Public,Accord Housing Asssociation,29/04/2021,,14224.78,ASC - Residential Care Permanent,321000 - Social Community Care Supplies & Services - Adult
Solihull MBC,Covid-19,Central Services to the Public,Accord Housing Asssociation,29/04/2021,,11134.55,ASC - Residential Care Permanent,321000 - Social Community Care Supplies & Services - Adult
Solihull MBC,Children's Services - DSG Central.,Children & Education Services,Acorn Care & Education Ltd,19/04/2021,,10833.34,Other Contracted Services,Not Yet Classified
Solihull MBC,Public Health & Commissioning,Central Services to the Public,Acorns Childrens H,23/04/2021,,4000,Grant & Subscription (SCITT),Not Yet Classified
Solihull MBC,Public Health & Commissioning,Central Services to the Public,Acorns Childrens H,23/04/2021,,4000,Grant & Subscription (SCITT),Not Yet Classified
Solihull MBC,Public Health & Commissioning,Central Services to the Public,Acorns Childrens H,23/04/2021,,4000,Grant & Subscription (SCITT),Not Yet Classified
Solihull MBC,Covid-19,Central Services to the Public,Acorns To Mighty Oaks Ltd,29/04/2021,,362.55,ASC - Supported Living Care Costs,321100 - Social Community Care Supplies & Services - Children
Solihull MBC,Covid-19,Central Services to the Public,Acorns To Mighty Oaks Ltd,29/04/2021,,567.58,ASC - Supported Living Care Costs,321100 - Social Community Care Supplies & Services - Children
Solihull MBC,Children's Services - DSG Central.,Children & Education Services,Active Angels,26/04/2021,,4374,Grant & Subscription (SCITT),321100 - Social Community Care Supplies & Services - Children
Solihull MBC,Children's Services - DSG Central.,Children & Education Services,Active Angels,26/04/2021,,35269.2,Grant & Subscription (SCITT),321100 - Social Community Care Supplies & Services - Children
Solihull MBC,Public Health & Commissioning,Central Services to the Public,AD07 Trading Ltd,16/04/2021,,4000,Grant & Subscription (SCITT),Not Yet Classified
Solihull MBC,Economy and Infrastructure,Highways & Transport Services,Adept,15/04/2021,,625,Grant & Subscription (SCITT),Not Yet Classified
Solihull MBC,Adult Social Care,Adult Social Care,Advanced Caring Ltd,21/04/2021,,689.97,ASC - Residential Care Permanent,Not Yet Classified
Solihull MBC,Adult Social Care,Adult Social Care,Advanced Caring Ltd,21/04/2021,,2529.89,ASC - Residential Care Permanent,Not Yet Classified
Solihull MBC,Adult Social Care,Adult Social Care,Advanced Caring Ltd,21/04/2021,,3344.18,ASC - Residential Care Permanent,Not Yet Classified
Solihull MBC,Children's Services - DSG Central.,Children & Education Services,Adwick Primary School,13/04/2021,,700,Other Contracted Services,Not Yet Classified
Solihull MBC,Economy and Infrastructure,Highways & Transport Services,Aecom Limited,23/04/2021,,600.37,Consultants,Not Yet Classified
Solihull MBC,Children's Services & Skills,Children & Education Services,AFJ Ltd,14/04/2021,,2300,Transport-Contract Hire,Not Yet Classified
Solihull MBC,Public Health & Commissioning,Central Services to the Public,Age UK,20/04/2021,,3143,Grant & Subscription (SCITT),Not Yet Classified
Solihull MBC,Public Health & Commissioning,Central Services to the Public,Age UK,20/04/2021,,6000,Grant & Subscription (SCITT),Not Yet Classified
Solihull MBC,Public Health & Commissioning,Central Services to the Public,Age UK,20/04/2021,,357,Grant & Subscription (SCITT),Not Yet Classified
Solihull MBC,Public Health & Commissioning,Central Services to the Public,Age UK,20/04/2021,,3000,Grant & Subscription (SCITT),Not Yet Classified
Solihull MBC,Adult Social Care,Adult Social Care,Age UK Solihull,15/04/2021,,37513.26,Other Contracted Services,321000 - Social Community Care Supplies & Services - Adult
Solihull MBC,Adult Social Care,Adult Social Care,Age UK Solihull,15/04/2021,,169850.49,Other Contracted Services,321000 - Social Community Care Supplies & Services - Adult
Solihull MBC,Adult Social Care,Adult Social Care,Age UK Solihull,15/04/2021,,20250,Other Contracted Services,321000 - Social Community Care Supplies & Services - Adult
Solihull MBC,Adult Social Care,Adult Social Care,Age UK Solihull,29/04/2021,,50017.68,Other Contracted Services,321000 - Social Community Care Supplies & Services - Adult
Solihull MBC,Adult Social Care,Adult Social Care,Age UK Solihull,29/04/2021,,226467.32,Other Contracted Services,321000 - Social Community Care Supplies & Services - Adult
Solihull MBC,Adult Social Care,Adult Social Care,Age UK Solihull,29/04/2021,,27000,Other Contracted Services,321000 - Social Community Care Supplies & Services - Adult
Solihull MBC,Adult Social Care,Corporate & Democratic Core,Age UK Solihull,01/04/2021,,13000,Other Contracted Services,321000 - Social Community Care Supplies & Services - Adult
Solihull MBC,Covid-19,Central Services to the Public,Age UK Solihull,15/04/2021,,25000,Grant & Subscription (SCITT),321000 - Social Community Care Supplies & Services - Adult
Solihull MBC,Covid-19,Central Services to the Public,Age UK Solihull,29/04/2021,,25000,Grant & Subscription (SCITT),321000 - Social Community Care Supplies & Services - Adult
Solihull MBC,Adult Social Care,Adult Social Care,Aidapt Bathrooms Ltd,01/04/2021,,150,Furniture & Equipment,321000 - Social Community Care Supplies & Services - Adult
Solihull MBC,Adult Social Care,Adult Social Care,Aidapt Bathrooms Ltd,01/04/2021,,269.3,Furniture & Equipment,321000 - Social Community Care Supplies & Services - Adult
Solihull MBC,Adult Social Care,Adult Social Care,Aidapt Bathrooms Ltd,01/04/2021,,640,Furniture & Equipment,321000 - Social Community Care Supplies & Services - Adult
Solihull MBC,Adult Social Care,Adult Social Care,Aidapt Bathrooms Ltd,01/04/2021,,525,Furniture & Equipment,321000 - Social Community Care Supplies & Services - Adult
Solihull MBC,Adult Social Care,Adult Social Care,Aidapt Bathrooms Ltd,01/04/2021,,1840,Furniture & Equipment,321000 - Social Community Care Supplies & Services - Adult
Solihull MBC,Adult Social Care,Adult Social Care,Aidapt Bathrooms Ltd,01/04/2021,,150,Furniture & Equipment,321000 - Social Community Care Supplies & Services - Adult
Solihull MBC,Adult Social Care,Adult Social Care,Aidapt Bathrooms Ltd,01/04/2021,,1797,Furniture & Equipment,321000 - Social Community Care Supplies & Services - Adult
Solihull MBC,Adult Social Care,Adult Social Care,Aidapt Bathrooms Ltd,01/04/2021,,210,Furniture & Equipment,321000 - Social Community Care Supplies & Services - Adult
Solihull MBC,Adult Social Care,Adult Social Care,Aidapt Bathrooms Ltd,01/04/2021,,210,Furniture & Equipment,321000 - Social Community Care Supplies & Services - Adult
Solihull MBC,Public Health & Commissioning,Central Services to the Public,Airbnb,19/04/2021,,2096,Grant & Subscription (SCITT),Not Yet Classified
Solihull MBC,Public Health & Commissioning,Central Services to the Public,Akamba,23/04/2021,,8000,Grant & Subscription (SCITT),Not Yet Classified
Solihull MBC,Adult Social Care,Adult Social Care,Akari Care Ltd,21/04/2021,,297.78,ASC - Nursing Care Permanent,Not Yet Classified
Solihull MBC,Adult Social Care,Adult Social Care,Akari Care Ltd,21/04/2021,,1091.86,ASC - Nursing Care Permanent,Not Yet Classified
Solihull MBC,Adult Social Care,Adult Social Care,Akari Care Ltd,21/04/2021,,1443.54,ASC - Nursing Care Permanent,Not Yet Classified
Solihull MBC,Adult Social Care,Adult Social Care,Akari Care Ltd,21/04/2021,,297.78,ASC - Nursing Care Permanent,Not Yet Classified
Solihull MBC,Adult Social Care,Adult Social Care,Akari Care Ltd,21/04/2021,,1091.86,ASC - Nursing Care Permanent,Not Yet Classified
Solihull MBC,Adult Social Care,Adult Social Care,Akari Care Ltd,21/04/2021,,1443.54,ASC - Nursing Care Permanent,Not Yet Classified
Solihull MBC,Adult Social Care,Adult Social Care,Akari Care Ltd,21/04/2021,,264.43,ASC - Nursing Care Permanent,Not Yet Classified
Solihull MBC,Adult Social Care,Adult Social Care,Akari Care Ltd,21/04/2021,,969.57,ASC - Nursing Care Permanent,Not Yet Classified
Solihull MBC,Adult Social Care,Adult Social Care,Akari Care Ltd,21/04/2021,,1284.5,ASC - Nursing Care Permanent,Not Yet Classified
Solihull MBC,Adult Social Care,Adult Social Care,Akari Care Ltd,21/04/2021,,297.78,ASC - Nursing Care Permanent,Not Yet Classified
Solihull MBC,Adult Social Care,Adult Social Care,Akari Care Ltd,21/04/2021,,1091.86,ASC - Nursing Care Permanent,Not Yet Classified
Solihull MBC,Adult Social Care,Adult Social Care,Akari Care Ltd,21/04/2021,,1443.54,ASC - Nursing Care Permanent,Not Yet Classified
Solihull MBC,Children's Services - DSG Central.,Children & Education Services,Alderbrook School,13/04/2021,,3000,Other Contracted Services,171011 - Education - School Services
Solihull MBC,Children's Services - DSG Central.,Children & Education Services,Alderbrook School,13/04/2021,,8200,Other Contracted Services,171011 - Education - School Services
Solihull MBC,Public Health & Commissioning,Central Services to the Public,Ale Rooms Ltd,16/04/2021,,8000,Grant & Subscription (SCITT),Not Yet Classified
Solihull MBC,Public Health & Commissioning,Central Services to the Public,Alexander James (Solihull) Ltd,23/04/2021,,8000,Grant & Subscription (SCITT),Not Yet Classified
Solihull MBC,Adult Social Care,Adult Social Care,Alexandra House - SJMT,21/04/2021,,255,ASC - Residential Care Permanent,Not Yet Classified
Solihull MBC,Adult Social Care,Adult Social Care,Alexandra House - SJMT,21/04/2021,,935,ASC - Residential Care Permanent,Not Yet Classified
Solihull MBC,Adult Social Care,Adult Social Care,Alexandra House - SJMT,21/04/2021,,1231.72,ASC - Residential Care Permanent,Not Yet Classified
Solihull MBC,Adult Social Care,Adult Social Care,Alexandra House - SJMT,21/04/2021,,955.3,ASC - Residential Care Respite,Not Yet Classified
Solihull MBC,Adult Social Care,Adult Social Care,Alexandra House - SJMT,21/04/2021,,1379.14,ASC - Residential Care Respite,Not Yet Classified
Solihull MBC,Adult Social Care,Adult Social Care,Alexandra House - SJMT,29/04/2021,,573.18,ASC - Residential Care Respite,Not Yet Classified
Solihull MBC,Adult Social Care,Adult Social Care,Alexandra House - SJMT,29/04/2021,,7262.84,ASC - Residential Care Respite,Not Yet Classified
Solihull MBC,Adult Social Care,Adult Social Care,Alexandra House - SJMT,29/04/2021,,7821.52,ASC - Residential Care Respite,Not Yet Classified
Solihull MBC,Adult Social Care,Adult Social Care,Alexandra House - SJMT,29/04/2021,,7821.52,ASC - Residential Care Respite,Not Yet Classified
Solihull MBC,Adult Social Care,Adult Social Care,Alexandra House - SJMT,29/04/2021,,7821.52,ASC - Residential Care Respite,Not Yet Classified
Solihull MBC,Adult Social Care,Adult Social Care,Alexandra House - SJMT,29/04/2021,,7821.52,ASC - Residential Care Respite,Not Yet Classified
Solihull MBC,Adult Social Care,Adult Social Care,Alexandra House - SJMT,29/04/2021,,7821.52,ASC - Residential Care Respite,Not Yet Classified
Solihull MBC,Adult Social Care,Adult Social Care,Alexandra House - SJMT,29/04/2021,,7821.52,ASC - Residential Care Respite,Not Yet Classified
Solihull MBC,Adult Social Care,Adult Social Care,Alexandra House - SJMT,29/04/2021,,7821.52,ASC - Residential Care Respite,Not Yet Classified
Solihull MBC,Adult Social Care,Adult Social Care,Alexandra House - SJMT,29/04/2021,,7821.52,ASC - Residential Care Respite,Not Yet Classified
Solihull MBC,Adult Social Care,Adult Social Care,Alexandra House - SJMT,29/04/2021,,7821.52,ASC - Residential Care Respite,Not Yet Classified
Solihull MBC,Adult Social Care,Adult Social Care,Alexandra House - SJMT,29/04/2021,,7821.52,ASC - Residential Care Respite,Not Yet Classified
Solihull MBC,Adult Social Care,Adult Social Care,Alexandra House - SJMT,29/04/2021,,7821.52,ASC - Residential Care Respite,Not Yet Classified
Solihull MBC,Adult Social Care,Adult Social Care,Alexandra House - SJMT,29/04/2021,,7821.52,ASC - Residential Care Respite,Not Yet Classified
Solihull MBC,Adult Social Care,Adult Social Care,Alexandra House - SJMT,29/04/2021,,573.18,ASC - Residential Care Respite,Not Yet Classified
Solihull MBC,Adult Social Care,Adult Social Care,Alexandra House - SJMT,29/04/2021,,1146.36,ASC - Residential Care Respite,Not Yet Classified
Solihull MBC,Adult Social Care,Adult Social Care,Alexandra House - SJMT,29/04/2021,,788.08,ASC - Residential Care Respite,Not Yet Classified
Solihull MBC,Adult Social Care,Adult Social Care,Alexandra House - SJMT,29/04/2021,,-7262.84,ASC - Residential Care Respite,Not Yet Classified
Solihull MBC,Adult Social Care,Adult Social Care,Alexandra House - SJMT,29/04/2021,,-7821.52,ASC - Residential Care Respite,Not Yet Classified
Solihull MBC,Adult Social Care,Adult Social Care,Alexandra House - SJMT,29/04/2021,,-7821.52,ASC - Residential Care Respite,Not Yet Classified
Solihull MBC,Adult Social Care,Adult Social Care,Alexandra House - SJMT,29/04/2021,,-7821.52,ASC - Residential Care Respite,Not Yet Classified
Solihull MBC,Adult Social Care,Adult Social Care,Alexandra House - SJMT,29/04/2021,,-7821.52,ASC - Residential Care Respite,Not Yet Classified
Solihull MBC,Adult Social Care,Adult Social Care,Alexandra House - SJMT,29/04/2021,,-7821.52,ASC - Residential Care Respite,Not Yet Classified
Solihull MBC,Adult Social Care,Adult Social Care,Alexandra House - SJMT,29/04/2021,,-7821.52,ASC - Residential Care Respite,Not Yet Classified
Solihull MBC,Adult Social Care,Adult Social Care,Alexandra House - SJMT,29/04/2021,,-7821.52,ASC - Residential Care Respite,Not Yet Classified
Solihull MBC,Adult Social Care,Adult Social Care,Alexandra House - SJMT,29/04/2021,,-7821.52,ASC - Residential Care Respite,Not Yet Classified
Solihull MBC,Adult Social Care,Adult Social Care,Alexandra House - SJMT,29/04/2021,,-7821.52,ASC - Residential Care Respite,Not Yet Classified
Solihull MBC,Adult Social Care,Adult Social Care,Alexandra House - SJMT,29/04/2021,,-7821.52,ASC - Residential Care Respite,Not Yet Classified
Solihull MBC,Adult Social Care,Adult Social Care,Alexandra House - SJMT,29/04/2021,,-7821.52,ASC - Residential Care Respite,Not Yet Classified
Solihull MBC,Adult Social Care,Adult Social Care,Alexandra House - SJMT,29/04/2021,,-7821.52,ASC - Residential Care Respite,Not Yet Classified
Solihull MBC,Adult Social Care,Adult Social Care,Alexandra House - SJMT,21/04/2021,,510,ASC - Residential Care Permanent,Not Yet Classified
Solihull MBC,Adult Social Care,Adult Social Care,Alexandra House - SJMT,21/04/2021,,-573.18,ASC - Residential Care Respite,Not Yet Classified
Solihull MBC,Adult Social Care,Adult Social Care,Alexandra House - SJMT,21/04/2021,,255,ASC - Residential Care Permanent,Not Yet Classified
Solihull MBC,Adult Social Care,Adult Social Care,Alexandra House - SJMT,21/04/2021,,935,ASC - Residential Care Permanent,Not Yet Classified
Solihull MBC,Adult Social Care,Adult Social Care,Alexandra House - SJMT,21/04/2021,,1231.72,ASC - Residential Care Permanent,Not Yet Classified
Solihull MBC,Adult Social Care,Adult Social Care,Alexandra House - SJMT,21/04/2021,,1190,ASC - Residential Care Respite,Not Yet Classified
Solihull MBC,Adult Social Care,Adult Social Care,Alexandra House - SJMT,21/04/2021,,2380,ASC - Residential Care Respite,Not Yet Classified
Solihull MBC,Adult Social Care,Adult Social Care,Alexandra House - SJMT,21/04/2021,,-1190,ASC - Residential Care Permanent,Not Yet Classified
Solihull MBC,Adult Social Care,Adult Social Care,Alexandra House - SJMT,21/04/2021,,-2380,ASC - Residential Care Permanent,Not Yet Classified
Solihull MBC,Adult Social Care,Adult Social Care,Alexandra House - SJMT,21/04/2021,,255,ASC - Residential Care Respite,Not Yet Classified
Solihull MBC,Adult Social Care,Adult Social Care,Alexandra House - SJMT,21/04/2021,,935,ASC - Residential Care Respite,Not Yet Classified
Solihull MBC,Adult Social Care,Adult Social Care,Alexandra House - SJMT,21/04/2021,,1231.72,ASC - Residential Care Respite,Not Yet Classified
Solihull MBC,Adult Social Care,Adult Social Care,Alexandra House - SJMT,21/04/2021,,286.59,ASC - Residential Care Respite,Not Yet Classified
Solihull MBC,Adult Social Care,Adult Social Care,Alexandra House - SJMT,21/04/2021,,1050.83,ASC - Residential Care Respite,Not Yet Classified
Solihull MBC,Adult Social Care,Adult Social Care,Alexandra House - SJMT,21/04/2021,,1379.14,ASC - Residential Care Respite,Not Yet Classified
Solihull MBC,Adult Social Care,Adult Social Care,Alexandra House - SJMT,21/04/2021,,256.2,ASC - Residential Care Permanent,Not Yet Classified
Solihull MBC,Adult Social Care,Adult Social Care,Alexandra House - SJMT,21/04/2021,,939.4,ASC - Residential Care Permanent,Not Yet Classified
Solihull MBC,Adult Social Care,Adult Social Care,Alexandra House - SJMT,21/04/2021,,1245.02,ASC - Residential Care Permanent,Not Yet Classified
Solihull MBC,Adult Social Care,Adult Social Care,Alexandra House - SJMT,29/04/2021,,-939.4,ASC - Residential Care Permanent,Not Yet Classified
Solihull MBC,Adult Social Care,Adult Social Care,Alexandra House - SJMT,29/04/2021,,-1245.02,ASC - Residential Care Permanent,Not Yet Classified
Solihull MBC,Adult Social Care,Adult Social Care,Alexandra House - SJMT,29/04/2021,,939.4,ASC - Residential Care Permanent,Not Yet Classified
Solihull MBC,Adult Social Care,Adult Social Care,Alexandra House - SJMT,29/04/2021,,1245.02,ASC - Residential Care Permanent,Not Yet Classified
Solihull MBC,Adult Social Care,Adult Social Care,Alexandra House - SJMT,21/04/2021,,286.59,ASC - Residential Care Respite,Not Yet Classified
Solihull MBC,Adult Social Care,Adult Social Care,Alexandra House - SJMT,21/04/2021,,1050.83,ASC - Residential Care Respite,Not Yet Classified
Solihull MBC,Adult Social Care,Adult Social Care,Alexandra House - SJMT,21/04/2021,,1379.14,ASC - Residential Care Respite,Not Yet Classified
Solihull MBC,Adult Social Care,Adult Social Care,Alexandra House - SJMT,21/04/2021,,915.75,ASC - Residential Care Permanent,Not Yet Classified
Solihull MBC,Adult Social Care,Adult Social Care,Alexandra House - SJMT,21/04/2021,,1207.22,ASC - Residential Care Permanent,Not Yet Classified
Solihull MBC,Adult Social Care,Adult Social Care,Alexandra House - SJMT,29/04/2021,,-915.75,ASC - Residential Care Permanent,Not Yet Classified
Solihull MBC,Adult Social Care,Adult Social Care,Alexandra House - SJMT,29/04/2021,,-1207.22,ASC - Residential Care Permanent,Not Yet Classified
Solihull MBC,Adult Social Care,Adult Social Care,Alexandra House - SJMT,29/04/2021,,915.75,ASC - Residential Care Permanent,Not Yet Classified
Solihull MBC,Adult Social Care,Adult Social Care,Alexandra House - SJMT,29/04/2021,,1207.22,ASC - Residential Care Permanent,Not Yet Classified
Solihull MBC,Adult Social Care,Adult Social Care,Alexandra House - SJMT,21/04/2021,,254.43,ASC - Residential Care Permanent,Not Yet Classified
Solihull MBC,Adult Social Care,Adult Social Care,Alexandra House - SJMT,21/04/2021,,932.91,ASC - Residential Care Permanent,Not Yet Classified
Solihull MBC,Adult Social Care,Adult Social Care,Alexandra House - SJMT,21/04/2021,,1229.06,ASC - Residential Care Permanent,Not Yet Classified
Solihull MBC,Adult Social Care,Adult Social Care,Alexandra House - SJMT,21/04/2021,,935,ASC - Residential Care Permanent,Not Yet Classified
Solihull MBC,Adult Social Care,Adult Social Care,Alexandra House - SJMT,21/04/2021,,1231.72,ASC - Residential Care Permanent,Not Yet Classified
Solihull MBC,Adult Social Care,Adult Social Care,Alexandra House - SJMT,21/04/2021,,591.06,ASC - Residential Care Respite,Not Yet Classified
Solihull MBC,Adult Social Care,Adult Social Care,Alexandra House - SJMT,21/04/2021,,255,ASC - Residential Care Permanent,Not Yet Classified
Solihull MBC,Adult Social Care,Adult Social Care,Alexandra House - SJMT,21/04/2021,,935,ASC - Residential Care Permanent,Not Yet Classified
Solihull MBC,Adult Social Care,Adult Social Care,Alexandra House - SJMT,21/04/2021,,1231.72,ASC - Residential Care Permanent,Not Yet Classified
Solihull MBC,Adult Social Care,Adult Social Care,Alexandra House - SJMT,29/04/2021,,-935,ASC - Residential Care Permanent,Not Yet Classified
Solihull MBC,Adult Social Care,Adult Social Care,Alexandra House - SJMT,29/04/2021,,-1231.72,ASC - Residential Care Permanent,Not Yet Classified
Solihull MBC,Adult Social Care,Adult Social Care,Alexandra House - SJMT,29/04/2021,,935,ASC - Residential Care Permanent,Not Yet Classified
Solihull MBC,Adult Social Care,Adult Social Care,Alexandra House - SJMT,29/04/2021,,1231.72,ASC - Residential Care Permanent,Not Yet Classified
Solihull MBC,Adult Social Care,Adult Social Care,Alexandra House - SJMT,21/04/2021,,251.49,ASC - Residential Care Permanent,Not Yet Classified
Solihull MBC,Adult Social Care,Adult Social Care,Alexandra House - SJMT,21/04/2021,,922.13,ASC - Residential Care Permanent,Not Yet Classified
Solihull MBC,Adult Social Care,Adult Social Care,Alexandra House - SJMT,21/04/2021,,1215.34,ASC - Residential Care Permanent,Not Yet Classified
Solihull MBC,Covid-19,Central Services to the Public,Alexandra House - SJMT,29/04/2021,,10241.84,ASC - Residential Care Permanent,Not Yet Classified
Solihull MBC,Covid-19,Central Services to the Public,Alexandra House - SJMT,29/04/2021,,8016.88,ASC - Residential Care Permanent,Not Yet Classified
Solihull MBC,Public Health & Commissioning,Central Services to the Public,Alexi Promotions Ltd,23/04/2021,,2096,Grant & Subscription (SCITT),Not Yet Classified
Solihull MBC,Adult Social Care,Cultural & Related Services,Allied Publicity Services (Manchester) Ltd,29/04/2021,,710.49,General Office Expenses,Not Yet Classified
Solihull MBC,Adult Social Care,Adult Social Care,Alophonsus Services Ltd,21/04/2021,,1184.58,ASC - Residential Care Permanent,321000 - Social Community Care Supplies & Services - Adult
Solihull MBC,Adult Social Care,Adult Social Care,Alophonsus Services Ltd,21/04/2021,,4343.46,ASC - Residential Care Permanent,321000 - Social Community Care Supplies & Services - Adult
Solihull MBC,Adult Social Care,Adult Social Care,Alophonsus Services Ltd,21/04/2021,,5652.36,ASC - Residential Care Permanent,321000 - Social Community Care Supplies & Services - Adult
Solihull MBC,Children's Services & Skills,Children & Education Services,Alpha Biolaboratories Ltd,01/04/2021,,1384,Professional Fees,Not Yet Classified
Solihull MBC,Children's Services & Skills,Children & Education Services,Alpha Biolaboratories Ltd,01/04/2021,,859,Professional Fees,Not Yet Classified
Solihull MBC,Children's Services & Skills,Children & Education Services,Alpha Biolaboratories Ltd,30/04/2021,,945,Professional Fees,Not Yet Classified
Solihull MBC,Adult Social Care,Adult Social Care,Alphabet GB Ltd,08/04/2021,,163.37,Transport-Contract Hire,Not Yet Classified
Solihull MBC,Adult Social Care,Adult Social Care,Alphabet GB Ltd,08/04/2021,,328.91,Transport-Contract Hire,Not Yet Classified
Solihull MBC,Adult Social Care,Adult Social Care,Alphabet GB Ltd,08/04/2021,,159.03,Transport-Contract Hire,Not Yet Classified
Solihull MBC,Covid-19,Central Services to the Public,Aman Care Ltd,29/04/2021,,8701.18,ASC - Supported Living Care Costs,Not Yet Classified
Solihull MBC,Covid-19,Central Services to the Public,Aman Care Ltd,29/04/2021,,13621.82,ASC - Supported Living Care Costs,Not Yet Classified
Solihull MBC,Children's Services & Skills,Children & Education Services,Amazon.co.uk,26/04/2021,Card Transaction,352.39,Purchase Card Statement Summary,171114 - Education - Literature
Solihull MBC,Adult Social Care,Adult Social Care,Amberley Court Nursing Home,21/04/2021,,471.9,ASC - Nursing Care Permanent,321000 - Social Community Care Supplies & Services - Adult
Solihull MBC,Adult Social Care,Adult Social Care,Amberley Court Nursing Home,21/04/2021,,1730.3,ASC - Nursing Care Permanent,321000 - Social Community Care Supplies & Services - Adult
Solihull MBC,Adult Social Care,Adult Social Care,Amberley Court Nursing Home,21/04/2021,,2346.26,ASC - Nursing Care Permanent,321000 - Social Community Care Supplies & Services - Adult
Solihull MBC,Children's Services & Skills,Children & Education Services,Amznmktplace,26/04/2021,Card Transaction,216.68,Purchase Card Statement Summary,161000 - Domestic Goods - Commercial
Solihull MBC,Children's Services & Skills,Children & Education Services,Amznmktplace,26/04/2021,Card Transaction,312.68,Purchase Card Statement Summary,161000 - Domestic Goods - Commercial
Solihull MBC,Adult Social Care,Adult Social Care,Anchor Trust,21/04/2021,,298.85,ASC - Residential Care Permanent,321000 - Social Community Care Supplies & Services - Adult
Solihull MBC,Adult Social Care,Adult Social Care,Anchor Trust,21/04/2021,,1095.77,ASC - Residential Care Permanent,321000 - Social Community Care Supplies & Services - Adult
Solihull MBC,Adult Social Care,Adult Social Care,Anchor Trust,21/04/2021,,1436.4,ASC - Residential Care Permanent,321000 - Social Community Care Supplies & Services - Adult
Solihull MBC,Adult Social Care,Adult Social Care,Anchor Trust,21/04/2021,,298.85,ASC - Residential Care Respite,321000 - Social Community Care Supplies & Services - Adult
Solihull MBC,Adult Social Care,Adult Social Care,Anchor Trust,21/04/2021,,1095.77,ASC - Residential Care Respite,321000 - Social Community Care Supplies & Services - Adult
Solihull MBC,Adult Social Care,Adult Social Care,Anchor Trust,21/04/2021,,342.86,ASC - Residential Care Permanent,321000 - Social Community Care Supplies & Services - Adult
Solihull MBC,Adult Social Care,Adult Social Care,Anchor Trust,21/04/2021,,1257.14,ASC - Residential Care Permanent,321000 - Social Community Care Supplies & Services - Adult
Solihull MBC,Adult Social Care,Adult Social Care,Anchor Trust,21/04/2021,,1649.48,ASC - Residential Care Permanent,321000 - Social Community Care Supplies & Services - Adult
Solihull MBC,Children's Services - DSG Central.,Children & Education Services,Angels Daycare,26/04/2021,,11998.8,Grant & Subscription (SCITT),321100 - Social Community Care Supplies & Services - Children
Solihull MBC,Adult Social Care,Adult Social Care,Angels Healthcare Ltd,28/04/2021,,511.83,ASC - Domiciliary Care,321000 - Social Community Care Supplies & Services - Adult
Solihull MBC,Adult Social Care,Adult Social Care,Angels Healthcare Ltd,28/04/2021,,511.83,ASC - Domiciliary Care,321000 - Social Community Care Supplies & Services - Adult
Solihull MBC,Adult Social Care,Adult Social Care,Angels Healthcare Ltd,28/04/2021,,705.32,ASC - Domiciliary Care,321000 - Social Community Care Supplies & Services - Adult
Solihull MBC,Adult Social Care,Adult Social Care,Angels Healthcare Ltd,28/04/2021,,705.32,ASC - Domiciliary Care,321000 - Social Community Care Supplies & Services - Adult
Solihull MBC,Adult Social Care,Adult Social Care,Angels Healthcare Ltd,28/04/2021,,445.36,ASC - Domiciliary Care,321000 - Social Community Care Supplies & Services - Adult
Solihull MBC,Adult Social Care,Adult Social Care,Angels Healthcare Ltd,28/04/2021,,613.72,ASC - Domiciliary Care,321000 - Social Community Care Supplies & Services - Adult
Solihull MBC,Adult Social Care,Adult Social Care,Angels Healthcare Ltd,28/04/2021,,372.24,ASC - Domiciliary Care,321000 - Social Community Care Supplies & Services - Adult
Solihull MBC,Adult Social Care,Adult Social Care,Angels Healthcare Ltd,28/04/2021,,512.96,ASC - Domiciliary Care,321000 - Social Community Care Supplies & Services - Adult
Solihull MBC,Adult Social Care,Adult Social Care,Angels Healthcare Ltd,28/04/2021,,448.84,ASC - Domiciliary Care,321000 - Social Community Care Supplies & Services - Adult
Solihull MBC,Adult Social Care,Adult Social Care,Angels Healthcare Ltd,28/04/2021,,448.84,ASC - Domiciliary Care,321000 - Social Community Care Supplies & Services - Adult
Solihull MBC,Adult Social Care,Adult Social Care,Angels Healthcare Ltd,28/04/2021,,418.77,ASC - Domiciliary Care,321000 - Social Community Care Supplies & Services - Adult
Solihull MBC,Adult Social Care,Adult Social Care,Angels Healthcare Ltd,28/04/2021,,418.77,ASC - Domiciliary Care,321000 - Social Community Care Supplies & Services - Adult
Solihull MBC,Adult Social Care,Adult Social Care,Angels Healthcare Ltd,09/04/2021,,439.92,ASC - Domiciliary Care,321000 - Social Community Care Supplies & Services - Adult
Solihull MBC,Adult Social Care,Adult Social Care,Angels Healthcare Ltd,09/04/2021,,439.92,ASC - Domiciliary Care,321000 - Social Community Care Supplies & Services - Adult
Solihull MBC,Adult Social Care,Adult Social Care,Angels Healthcare Ltd,28/04/2021,,279.18,ASC - Domiciliary Care,321000 - Social Community Care Supplies & Services - Adult
Solihull MBC,Adult Social Care,Adult Social Care,Angels Healthcare Ltd,28/04/2021,,384.72,ASC - Domiciliary Care,321000 - Social Community Care Supplies & Services - Adult
Solihull MBC,Adult Social Care,Adult Social Care,Angels Healthcare Ltd,28/04/2021,,378.89,ASC - Domiciliary Care,321000 - Social Community Care Supplies & Services - Adult
Solihull MBC,Adult Social Care,Adult Social Care,Angels Healthcare Ltd,28/04/2021,,378.89,ASC - Domiciliary Care,321000 - Social Community Care Supplies & Services - Adult
Solihull MBC,Adult Social Care,Adult Social Care,Angels Healthcare Ltd,28/04/2021,,522.12,ASC - Domiciliary Care,321000 - Social Community Care Supplies & Services - Adult
Solihull MBC,Adult Social Care,Adult Social Care,Angels Healthcare Ltd,28/04/2021,,522.12,ASC - Domiciliary Care,321000 - Social Community Care Supplies & Services - Adult
Solihull MBC,Adult Social Care,Adult Social Care,Angels Healthcare Ltd,13/04/2021,,355.32,ASC - Domiciliary Care,321000 - Social Community Care Supplies & Services - Adult
Solihull MBC,Adult Social Care,Adult Social Care,Angels Healthcare Ltd,13/04/2021,,355.32,ASC - Domiciliary Care,321000 - Social Community Care Supplies & Services - Adult
Solihull MBC,Adult Social Care,Adult Social Care,Angels Healthcare Ltd,22/04/2021,,355.32,ASC - Domiciliary Care,321000 - Social Community Care Supplies & Services - Adult
Solihull MBC,Adult Social Care,Adult Social Care,Angels Healthcare Ltd,13/04/2021,,355.32,ASC - Domiciliary Care,321000 - Social Community Care Supplies & Services - Adult
Solihull MBC,Adult Social Care,Adult Social Care,Angels Healthcare Ltd,13/04/2021,,355.32,ASC - Domiciliary Care,321000 - Social Community Care Supplies & Services - Adult
Solihull MBC,Adult Social Care,Adult Social Care,Angels Healthcare Ltd,13/04/2021,,304.56,ASC - Domiciliary Care,321000 - Social Community Care Supplies & Services - Adult
Solihull MBC,Adult Social Care,Adult Social Care,Angels Healthcare Ltd,20/04/2021,,355.32,ASC - Domiciliary Care,321000 - Social Community Care Supplies & Services - Adult
Solihull MBC,Adult Social Care,Adult Social Care,Angels Healthcare Ltd,28/04/2021,,837.54,ASC - Domiciliary Care,321000 - Social Community Care Supplies & Services - Adult
Solihull MBC,Adult Social Care,Adult Social Care,Angels Healthcare Ltd,28/04/2021,,1154.16,ASC - Domiciliary Care,321000 - Social Community Care Supplies & Services - Adult
Solihull MBC,Adult Social Care,Adult Social Care,Angels Healthcare Ltd,28/04/2021,,320.6,ASC - Domiciliary Care,321000 - Social Community Care Supplies & Services - Adult
Solihull MBC,Adult Social Care,Adult Social Care,Angels Healthcare Ltd,28/04/2021,,256.48,ASC - Domiciliary Care,321000 - Social Community Care Supplies & Services - Adult
Solihull MBC,Adult Social Care,Adult Social Care,Angels Healthcare Ltd,01/04/2021,,846,ASC - Domiciliary Care,321000 - Social Community Care Supplies & Services - Adult
Solihull MBC,Adult Social Care,Adult Social Care,Angels Healthcare Ltd,01/04/2021,,846,ASC - Domiciliary Care,321000 - Social Community Care Supplies & Services - Adult
Solihull MBC,Adult Social Care,Adult Social Care,Angels Healthcare Ltd,28/04/2021,,372.24,ASC - Domiciliary Care,321000 - Social Community Care Supplies & Services - Adult
Solihull MBC,Adult Social Care,Adult Social Care,Angels Healthcare Ltd,28/04/2021,,372.24,ASC - Domiciliary Care,321000 - Social Community Care Supplies & Services - Adult
Solihull MBC,Adult Social Care,Adult Social Care,Angels Healthcare Ltd,28/04/2021,,512.96,ASC - Domiciliary Care,321000 - Social Community Care Supplies & Services - Adult
Solihull MBC,Adult Social Care,Adult Social Care,Angels Healthcare Ltd,28/04/2021,,512.96,ASC - Domiciliary Care,321000 - Social Community Care Supplies & Services - Adult
Solihull MBC,Adult Social Care,Adult Social Care,Angels Healthcare Ltd,28/04/2021,,343.23,ASC - Domiciliary Care,321000 - Social Community Care Supplies & Services - Adult
Solihull MBC,Adult Social Care,Adult Social Care,Angels Healthcare Ltd,28/04/2021,,343.23,ASC - Domiciliary Care,321000 - Social Community Care Supplies & Services - Adult
Solihull MBC,Adult Social Care,Adult Social Care,Angels Healthcare Ltd,28/04/2021,,293.12,ASC - Domiciliary Care,321000 - Social Community Care Supplies & Services - Adult
Solihull MBC,Adult Social Care,Adult Social Care,Angels Healthcare Ltd,28/04/2021,,311.44,ASC - Domiciliary Care,321000 - Social Community Care Supplies & Services - Adult
Solihull MBC,Adult Social Care,Adult Social Care,Angels Healthcare Ltd,28/04/2021,,320.6,ASC - Domiciliary Care,321000 - Social Community Care Supplies & Services - Adult
Solihull MBC,Adult Social Care,Adult Social Care,Angels Healthcare Ltd,28/04/2021,,279.18,ASC - Domiciliary Care,321000 - Social Community Care Supplies & Services - Adult
Solihull MBC,Adult Social Care,Adult Social Care,Angels Healthcare Ltd,28/04/2021,,384.72,ASC - Domiciliary Care,321000 - Social Community Care Supplies & Services - Adult
Solihull MBC,Adult Social Care,Adult Social Care,Angels Healthcare Ltd,28/04/2021,,325.71,ASC - Domiciliary Care,321000 - Social Community Care Supplies & Services - Adult
Solihull MBC,Adult Social Care,Adult Social Care,Angels Healthcare Ltd,28/04/2021,,448.84,ASC - Domiciliary Care,321000 - Social Community Care Supplies & Services - Adult
Solihull MBC,Adult Social Care,Adult Social Care,Angels Healthcare Ltd,28/04/2021,,325.71,ASC - Domiciliary Care,321000 - Social Community Care Supplies & Services - Adult
Solihull MBC,Adult Social Care,Adult Social Care,Angels Healthcare Ltd,28/04/2021,,448.84,ASC - Domiciliary Care,321000 - Social Community Care Supplies & Services - Adult
Solihull MBC,Adult Social Care,Adult Social Care,Angels Healthcare Ltd,28/04/2021,,744.48,ASC - Domiciliary Care,321000 - Social Community Care Supplies & Services - Adult
Solihull MBC,Adult Social Care,Adult Social Care,Angels Healthcare Ltd,28/04/2021,,989.28,ASC - Domiciliary Care,321000 - Social Community Care Supplies & Services - Adult
Solihull MBC,Adult Social Care,Adult Social Care,Angels Healthcare Ltd,28/04/2021,,448.84,ASC - Domiciliary Care,321000 - Social Community Care Supplies & Services - Adult
Solihull MBC,Adult Social Care,Adult Social Care,Angels Healthcare Ltd,28/04/2021,,418.77,ASC - Domiciliary Care,321000 - Social Community Care Supplies & Services - Adult
Solihull MBC,Adult Social Care,Adult Social Care,Angels Healthcare Ltd,28/04/2021,,279.18,ASC - Domiciliary Care,321000 - Social Community Care Supplies & Services - Adult
Solihull MBC,Adult Social Care,Adult Social Care,Angels Healthcare Ltd,28/04/2021,,384.72,ASC - Domiciliary Care,321000 - Social Community Care Supplies & Services - Adult
Solihull MBC,Adult Social Care,Adult Social Care,Angels Healthcare Ltd,28/04/2021,,837.54,ASC - Domiciliary Care,321000 - Social Community Care Supplies & Services - Adult
Solihull MBC,Adult Social Care,Adult Social Care,Angels Healthcare Ltd,28/04/2021,,1154.16,ASC - Domiciliary Care,321000 - Social Community Care Supplies & Services - Adult
Solihull MBC,Adult Social Care,Adult Social Care,Angels Healthcare Ltd,28/04/2021,,329.76,ASC - Out of hospital,321000 - Social Community Care Supplies & Services - Adult
Solihull MBC,Adult Social Care,Adult Social Care,Angels Healthcare Ltd,28/04/2021,,372.24,ASC - Domiciliary Care,321000 - Social Community Care Supplies & Services - Adult
Solihull MBC,Adult Social Care,Adult Social Care,Angels Healthcare Ltd,28/04/2021,,512.96,ASC - Domiciliary Care,321000 - Social Community Care Supplies & Services - Adult
Solihull MBC,Adult Social Care,Adult Social Care,Angels Healthcare Ltd,28/04/2021,,398.83,ASC - Domiciliary Care,321000 - Social Community Care Supplies & Services - Adult
Solihull MBC,Adult Social Care,Adult Social Care,Angels Healthcare Ltd,28/04/2021,,549.6,ASC - Domiciliary Care,321000 - Social Community Care Supplies & Services - Adult
Solihull MBC,Covid-19,Central Services to the Public,Angels Healthcare Ltd,29/04/2021,,4350.59,ASC - Supported Living Care Costs,321000 - Social Community Care Supplies & Services - Adult
Solihull MBC,Covid-19,Central Services to the Public,Angels Healthcare Ltd,29/04/2021,,6810.91,ASC - Supported Living Care Costs,321000 - Social Community Care Supplies & Services - Adult
Solihull MBC,Adult Social Care,Adult Social Care,Anita Stone Court,21/04/2021,,321.03,ASC - Nursing Care Permanent,Not Yet Classified
Solihull MBC,Adult Social Care,Adult Social Care,Anita Stone Court,21/04/2021,,1177.11,ASC - Nursing Care Permanent,Not Yet Classified
Solihull MBC,Adult Social Care,Adult Social Care,Anita Stone Court,21/04/2021,,1548.68,ASC - Nursing Care Permanent,Not Yet Classified
Solihull MBC,Economy and Infrastructure,Cultural & Related Services,Annodata Business Communications,14/04/2021,,18385.92,Furniture & Equipment,Not Yet Classified
Solihull MBC,Resources,Central Services to the Public,Annodata Business Communications,30/04/2021,,-21627.99,General Office Expenses,Not Yet Classified
Solihull MBC,Economy and Infrastructure,Planning & Development Services,Anthony Collins Solicitors LLP,15/04/2021,,1129.5,Professional Fees,321100 - Social Community Care Supplies & Services - Children
Solihull MBC,Children's Services & Skills,Children & Education Services,Ao Retail Limited,26/04/2021,Card Transaction,209,Purchase Card Statement Summary,169999 - Domestic Goods - Not Elsewhere Classified
Solihull MBC,Public Health & Commissioning,Central Services to the Public,APC Enterprises (Midlands) Ltd,23/04/2021,,8000,Grant & Subscription (SCITT),Not Yet Classified
Solihull MBC,Children's Services & Skills,Children & Education Services,Apollo Home Healthcare Ltd,08/04/2021,,328.32,Clients Expenses,Not Yet Classified
Solihull MBC,Children's Services - DSG Central.,Children & Education Services,AQM Speech & Language Therapy Ltd,06/04/2021,,350,Professional Fees,Not Yet Classified
Solihull MBC,Economy and Infrastructure,Highways & Transport Services,Aquam Water Services Ltd,14/04/2021,,922.5,Water,Not Yet Classified
Solihull MBC,Economy and Infrastructure,Highways & Transport Services,Aquam Water Services Ltd,14/04/2021,,307.5,Water,Not Yet Classified
Solihull MBC,Public Health & Commissioning,Central Services to the Public,Aquasport Midlands,23/04/2021,,8000,Grant & Subscription (SCITT),Not Yet Classified
Solihull MBC,Economy and Infrastructure,Environmental and Regulatory Services,ARB Matters Ltd,07/04/2021,,810,Other Contracted Services,Not Yet Classified
Solihull MBC,Children's Services - DSG Central.,Children & Education Services,Archbishop Ilsley Catholic Technology College & Sixth Form Centre,13/04/2021,,1800,Other Contracted Services,Not Yet Classified
Solihull MBC,Children's Services - DSG Central.,Children & Education Services,Archbishop Ilsley Catholic Technology College & Sixth Form Centre,13/04/2021,,3600,Other Contracted Services,Not Yet Classified
Solihull MBC,Children's Services & Skills,Children & Education Services,Archways Care Ltd,09/04/2021,,1828.57,Other Contracted Services,Not Yet Classified
Solihull MBC,Children's Services & Skills,Children & Education Services,Archways Care Ltd,09/04/2021,,12837,Other Contracted Services,Not Yet Classified
Solihull MBC,Resources,Planning & Development Services,Arden Academy Trust,06/04/2021,,5837.55,Professional Fees,Not Yet Classified
Solihull MBC,Public Health & Commissioning,Central Services to the Public,Arden House Hotel,16/04/2021,,8000,Grant & Subscription (SCITT),Not Yet Classified
Solihull MBC,Children's Services - DSG Central.,Children & Education Services,Arden School,13/04/2021,,1800,Other Contracted Services,Not Yet Classified
Solihull MBC,Children's Services - DSG Central.,Children & Education Services,Arden School,13/04/2021,,4600,Other Contracted Services,Not Yet Classified
Solihull MBC,Adult Social Care,Adult Social Care,Ardenlea Court,21/04/2021,,268.2,ASC - Nursing Care Permanent,321000 - Social Community Care Supplies & Services - Adult
Solihull MBC,Adult Social Care,Adult Social Care,Ardenlea Court,21/04/2021,,983.4,ASC - Nursing Care Permanent,321000 - Social Community Care Supplies & Services - Adult
Solihull MBC,Adult Social Care,Adult Social Care,Ardenlea Court,21/04/2021,,1302.14,ASC - Nursing Care Permanent,321000 - Social Community Care Supplies & Services - Adult
Solihull MBC,Adult Social Care,Adult Social Care,Ardenlea Court,21/04/2021,,293.22,ASC - Nursing Care Permanent,321000 - Social Community Care Supplies & Services - Adult
Solihull MBC,Adult Social Care,Adult Social Care,Ardenlea Court,21/04/2021,,1075.14,ASC - Nursing Care Permanent,321000 - Social Community Care Supplies & Services - Adult
Solihull MBC,Adult Social Care,Adult Social Care,Ardenlea Court,21/04/2021,,1422.26,ASC - Nursing Care Permanent,321000 - Social Community Care Supplies & Services - Adult
Solihull MBC,Covid-19,Central Services to the Public,Ardenlea Court,29/04/2021,,17069.74,ASC - Residential Care Permanent,321000 - Social Community Care Supplies & Services - Adult
Solihull MBC,Covid-19,Central Services to the Public,Ardenlea Court,29/04/2021,,13361.46,ASC - Residential Care Permanent,321000 - Social Community Care Supplies & Services - Adult
Solihull MBC,Adult Social Care,Adult Social Care,Ardenlea Grove Nursing Home,21/04/2021,,268.2,ASC - Nursing Care Permanent,321000 - Social Community Care Supplies & Services - Adult
Solihull MBC,Adult Social Care,Adult Social Care,Ardenlea Grove Nursing Home,21/04/2021,,983.4,ASC - Nursing Care Permanent,321000 - Social Community Care Supplies & Services - Adult
Solihull MBC,Adult Social Care,Adult Social Care,Ardenlea Grove Nursing Home,21/04/2021,,1302.14,ASC - Nursing Care Permanent,321000 - Social Community Care Supplies & Services - Adult
Solihull MBC,Adult Social Care,Adult Social Care,Ardenlea Grove Nursing Home,21/04/2021,,349.75,ASC - Nursing Care Permanent,321000 - Social Community Care Supplies & Services - Adult
Solihull MBC,Adult Social Care,Adult Social Care,Ardenlea Grove Nursing Home,21/04/2021,,1282.41,ASC - Nursing Care Permanent,321000 - Social Community Care Supplies & Services - Adult
Solihull MBC,Adult Social Care,Adult Social Care,Ardenlea Grove Nursing Home,21/04/2021,,1682.66,ASC - Nursing Care Permanent,321000 - Social Community Care Supplies & Services - Adult
Solihull MBC,Adult Social Care,Adult Social Care,Ardenlea Grove Nursing Home,21/04/2021,,257.14,ASC - Residential Care Permanent,321000 - Social Community Care Supplies & Services - Adult
Solihull MBC,Adult Social Care,Adult Social Care,Ardenlea Grove Nursing Home,21/04/2021,,3214.29,ASC - Residential Care Permanent,321000 - Social Community Care Supplies & Services - Adult
Solihull MBC,Adult Social Care,Adult Social Care,Ardenlea Grove Nursing Home,21/04/2021,,366.6,ASC - Nursing Care Permanent,321000 - Social Community Care Supplies & Services - Adult
Solihull MBC,Adult Social Care,Adult Social Care,Ardenlea Grove Nursing Home,21/04/2021,,1344.2,ASC - Nursing Care Permanent,321000 - Social Community Care Supplies & Services - Adult
Solihull MBC,Adult Social Care,Adult Social Care,Ardenlea Grove Nursing Home,21/04/2021,,1761.34,ASC - Nursing Care Permanent,321000 - Social Community Care Supplies & Services - Adult
Solihull MBC,Adult Social Care,Adult Social Care,Ardenlea Grove Nursing Home,21/04/2021,,400.08,ASC - Nursing Care Permanent,321000 - Social Community Care Supplies & Services - Adult
Solihull MBC,Adult Social Care,Adult Social Care,Ardenlea Grove Nursing Home,21/04/2021,,1466.96,ASC - Nursing Care Permanent,321000 - Social Community Care Supplies & Services - Adult
Solihull MBC,Adult Social Care,Adult Social Care,Ardenlea Grove Nursing Home,21/04/2021,,1917.58,ASC - Nursing Care Permanent,321000 - Social Community Care Supplies & Services - Adult
Solihull MBC,Adult Social Care,Adult Social Care,Ardenlea Grove Nursing Home,21/04/2021,,324.24,ASC - Nursing Care Permanent,321000 - Social Community Care Supplies & Services - Adult
Solihull MBC,Adult Social Care,Adult Social Care,Ardenlea Grove Nursing Home,21/04/2021,,1188.88,ASC - Nursing Care Permanent,321000 - Social Community Care Supplies & Services - Adult
Solihull MBC,Adult Social Care,Adult Social Care,Ardenlea Grove Nursing Home,21/04/2021,,1567.02,ASC - Nursing Care Permanent,321000 - Social Community Care Supplies & Services - Adult
Solihull MBC,Adult Social Care,Adult Social Care,Ardenlea Grove Nursing Home,21/04/2021,,427.87,ASC - Nursing Care Permanent,321000 - Social Community Care Supplies & Services - Adult
Solihull MBC,Adult Social Care,Adult Social Care,Ardenlea Grove Nursing Home,21/04/2021,,1568.85,ASC - Nursing Care Permanent,321000 - Social Community Care Supplies & Services - Adult
Solihull MBC,Adult Social Care,Adult Social Care,Ardenlea Grove Nursing Home,21/04/2021,,2047.22,ASC - Nursing Care Permanent,321000 - Social Community Care Supplies & Services - Adult
Solihull MBC,Covid-19,Central Services to the Public,Ardenlea Grove Nursing Home,29/04/2021,,17069.74,ASC - Residential Care Permanent,321000 - Social Community Care Supplies & Services - Adult
Solihull MBC,Covid-19,Central Services to the Public,Ardenlea Grove Nursing Home,29/04/2021,,13361.46,ASC - Residential Care Permanent,321000 - Social Community Care Supplies & Services - Adult
Solihull MBC,Children's Services & Skills,Children & Education Services,Argos Ltd,26/04/2021,Card Transaction,223.95,Purchase Card Statement Summary,169999 - Domestic Goods - Not Elsewhere Classified
Solihull MBC,Children's Services & Skills,Children & Education Services,Argos Ltd,26/04/2021,Card Transaction,322.95,Purchase Card Statement Summary,169999 - Domestic Goods - Not Elsewhere Classified
Solihull MBC,Economy and Infrastructure - HRA,Housing Revenue Account,Argos Ltd,26/04/2021,Card Transaction,408.86,General Debtors,169999 - Domestic Goods - Not Elsewhere Classified
Solihull MBC,Economy and Infrastructure - HRA,Housing Revenue Account,Argos Ltd,26/04/2021,Card Transaction,408.86,General Debtors,169999 - Domestic Goods - Not Elsewhere Classified
Solihull MBC,Economy and Infrastructure - HRA,Housing Revenue Account,Argos Ltd,26/04/2021,Card Transaction,-408.86,General Debtors,169999 - Domestic Goods - Not Elsewhere Classified
Solihull MBC,Public Health & Commissioning,Central Services to the Public,Aristocraft Kitchens And Bedrooms Ltd,23/04/2021,,2667,Grant & Subscription (SCITT),Not Yet Classified
Solihull MBC,Adult Social Care,Adult Social Care,Arjo Ltd,19/04/2021,,5687.4,Furniture & Equipment,321000 - Social Community Care Supplies & Services - Adult
Solihull MBC,Adult Social Care,Adult Social Care,Arjo Ltd,26/04/2021,,5774.8,Furniture & Equipment,321000 - Social Community Care Supplies & Services - Adult
Solihull MBC,Public Health & Commissioning,Central Services to the Public,Aroma Widney Road Ltd,16/04/2021,,8000,Grant & Subscription (SCITT),Not Yet Classified
Solihull MBC,Children's Services - DSG Central.,Children & Education Services,Arrow County Supplies,07/04/2021,,65.1,Cleaning,130000 - Cleaning & Janitorial
Solihull MBC,Children's Services - DSG Central.,Children & Education Services,Arrow County Supplies,07/04/2021,,60.4,Cleaning,130000 - Cleaning & Janitorial
Solihull MBC,Children's Services - DSG Central.,Children & Education Services,Arrow County Supplies,07/04/2021,,288,Cleaning,130000 - Cleaning & Janitorial
Solihull MBC,Children's Services - DSG Central.,Children & Education Services,Arrow County Supplies,01/04/2021,,94.4,Cleaning,130000 - Cleaning & Janitorial
Solihull MBC,Children's Services - DSG Central.,Children & Education Services,Arrow County Supplies,01/04/2021,,650,Cleaning,130000 - Cleaning & Janitorial
Solihull MBC,Children's Services - DSG Central.,Children & Education Services,Arrow County Supplies,01/04/2021,,636,Cleaning,130000 - Cleaning & Janitorial
Solihull MBC,Children's Services - DSG Central.,Children & Education Services,Arrow County Supplies,01/04/2021,,1101.6,Cleaning,130000 - Cleaning & Janitorial
Solihull MBC,Children's Services - DSG Central.,Children & Education Services,Arrow County Supplies,09/04/2021,,112.72,Cleaning,130000 - Cleaning & Janitorial
Solihull MBC,Children's Services - DSG Central.,Children & Education Services,Arrow County Supplies,09/04/2021,,24.04,Cleaning,130000 - Cleaning & Janitorial
Solihull MBC,Children's Services - DSG Central.,Children & Education Services,Arrow County Supplies,09/04/2021,,72.55,Cleaning,130000 - Cleaning & Janitorial
Solihull MBC,Children's Services - DSG Central.,Children & Education Services,Arrow County Supplies,09/04/2021,,222,Cleaning,130000 - Cleaning & Janitorial
Solihull MBC,Children's Services - DSG Central.,Children & Education Services,Arrow County Supplies,09/04/2021,,21,Cleaning,130000 - Cleaning & Janitorial
Solihull MBC,Children's Services - DSG Central.,Children & Education Services,Arrow County Supplies,09/04/2021,,74.88,Cleaning,130000 - Cleaning & Janitorial
Solihull MBC,Children's Services - DSG Central.,Children & Education Services,Arrow County Supplies,09/04/2021,,104,Cleaning,130000 - Cleaning & Janitorial
Solihull MBC,Children's Services - DSG Central.,Children & Education Services,Arrow County Supplies,09/04/2021,,70.5,Cleaning,130000 - Cleaning & Janitorial
Solihull MBC,Children's Services - DSG Central.,Children & Education Services,Arrow County Supplies,09/04/2021,,87,Cleaning,130000 - Cleaning & Janitorial
Solihull MBC,Children's Services - DSG Central.,Children & Education Services,Arrow County Supplies,09/04/2021,,32.1,Cleaning,130000 - Cleaning & Janitorial
Solihull MBC,Children's Services - DSG Central.,Children & Education Services,Arrow County Supplies,09/04/2021,,43.68,Cleaning,130000 - Cleaning & Janitorial
Solihull MBC,Children's Services - DSG Central.,Children & Education Services,Arrow County Supplies,09/04/2021,,30.2,Cleaning,130000 - Cleaning & Janitorial
Solihull MBC,Children's Services - DSG Central.,Children & Education Services,Arrow County Supplies,09/04/2021,,30.92,Cleaning,130000 - Cleaning & Janitorial
Solihull MBC,Children's Services - DSG Central.,Children & Education Services,Arrow County Supplies,09/04/2021,,188.8,Cleaning,130000 - Cleaning & Janitorial
Solihull MBC,Children's Services - DSG Central.,Children & Education Services,Arrow County Supplies,09/04/2021,,288,Cleaning,130000 - Cleaning & Janitorial
Solihull MBC,Children's Services - DSG Central.,Children & Education Services,Arrow County Supplies,22/04/2021,,68.22,Cleaning,130000 - Cleaning & Janitorial
Solihull MBC,Children's Services - DSG Central.,Children & Education Services,Arrow County Supplies,22/04/2021,,106,Cleaning,130000 - Cleaning & Janitorial
Solihull MBC,Children's Services - DSG Central.,Children & Education Services,Arrow County Supplies,22/04/2021,,12.84,Cleaning,130000 - Cleaning & Janitorial
Solihull MBC,Children's Services - DSG Central.,Children & Education Services,Arrow County Supplies,22/04/2021,,137.7,Cleaning,130000 - Cleaning & Janitorial
Solihull MBC,Children's Services - DSG Central.,Children & Education Services,Arrow County Supplies,22/04/2021,,129.2,Cleaning,130000 - Cleaning & Janitorial
Solihull MBC,Children's Services - DSG Central.,Children & Education Services,Arrow County Supplies,22/04/2021,,140.88,Cleaning,130000 - Cleaning & Janitorial
Solihull MBC,Children's Services - DSG Central.,Children & Education Services,Arrow County Supplies,20/04/2021,,700,Cleaning,130000 - Cleaning & Janitorial
Solihull MBC,Children's Services - DSG Central.,Children & Education Services,Arrow County Supplies,23/04/2021,,582.6,Cleaning,130000 - Cleaning & Janitorial
Solihull MBC,Children's Services - DSG Central.,Children & Education Services,Arrow County Supplies,23/04/2021,,65,Cleaning,130000 - Cleaning & Janitorial
Solihull MBC,Children's Services - DSG Central.,Children & Education Services,Arrow County Supplies,23/04/2021,,53.8,Cleaning,130000 - Cleaning & Janitorial
Solihull MBC,Children's Services - DSG Central.,Children & Education Services,Arrow County Supplies,23/04/2021,,148,Cleaning,130000 - Cleaning & Janitorial
Solihull MBC,Children's Services - DSG Central.,Children & Education Services,Arrow County Supplies,23/04/2021,,340.4,Cleaning,130000 - Cleaning & Janitorial
Solihull MBC,Children's Services - DSG Central.,Children & Education Services,Arrow County Supplies,23/04/2021,,188.8,Cleaning,130000 - Cleaning & Janitorial
Solihull MBC,Children's Services - DSG Central.,Children & Education Services,Arrow County Supplies,23/04/2021,,864,Cleaning,130000 - Cleaning & Janitorial
Solihull MBC,Children's Services - DSG Central.,Children & Education Services,Arrow County Supplies,23/04/2021,,576,Cleaning,130000 - Cleaning & Janitorial
Solihull MBC,Children's Services - DSG Central.,Children & Education Services,Arrow County Supplies,23/04/2021,,214.2,Cleaning,130000 - Cleaning & Janitorial
Solihull MBC,Children's Services - DSG Central.,Children & Education Services,Arrow County Supplies,23/04/2021,,159,Cleaning,130000 - Cleaning & Janitorial
Solihull MBC,Children's Services - DSG Central.,Children & Education Services,Arrow County Supplies,23/04/2021,,96.3,Cleaning,130000 - Cleaning & Janitorial
Solihull MBC,Children's Services - DSG Central.,Children & Education Services,Arrow County Supplies,23/04/2021,,141.6,Cleaning,130000 - Cleaning & Janitorial
Solihull MBC,Children's Services - DSG Central.,Children & Education Services,Arrow County Supplies,23/04/2021,,288,Cleaning,130000 - Cleaning & Janitorial
Solihull MBC,Children's Services - DSG Central.,Children & Education Services,Arrow County Supplies,26/04/2021,,84.54,Cleaning,130000 - Cleaning & Janitorial
Solihull MBC,Children's Services - DSG Central.,Children & Education Services,Arrow County Supplies,26/04/2021,,12.02,Cleaning,130000 - Cleaning & Janitorial
Solihull MBC,Children's Services - DSG Central.,Children & Education Services,Arrow County Supplies,26/04/2021,,285.6,Cleaning,130000 - Cleaning & Janitorial
Solihull MBC,Children's Services - DSG Central.,Children & Education Services,Arrow County Supplies,26/04/2021,,58.04,Cleaning,130000 - Cleaning & Janitorial
Solihull MBC,Children's Services - DSG Central.,Children & Education Services,Arrow County Supplies,26/04/2021,,148,Cleaning,130000 - Cleaning & Janitorial
Solihull MBC,Children's Services - DSG Central.,Children & Education Services,Arrow County Supplies,26/04/2021,,223.44,Cleaning,130000 - Cleaning & Janitorial
Solihull MBC,Children's Services - DSG Central.,Children & Education Services,Arrow County Supplies,26/04/2021,,21,Cleaning,130000 - Cleaning & Janitorial
Solihull MBC,Children's Services - DSG Central.,Children & Education Services,Arrow County Supplies,26/04/2021,,62.4,Cleaning,130000 - Cleaning & Janitorial
Solihull MBC,Children's Services - DSG Central.,Children & Education Services,Arrow County Supplies,26/04/2021,,297.85,Cleaning,130000 - Cleaning & Janitorial
Solihull MBC,Children's Services - DSG Central.,Children & Education Services,Arrow County Supplies,26/04/2021,,156,Cleaning,130000 - Cleaning & Janitorial
Solihull MBC,Children's Services - DSG Central.,Children & Education Services,Arrow County Supplies,26/04/2021,,141,Cleaning,130000 - Cleaning & Janitorial
Solihull MBC,Children's Services - DSG Central.,Children & Education Services,Arrow County Supplies,26/04/2021,,267.2,Cleaning,130000 - Cleaning & Janitorial
Solihull MBC,Children's Services - DSG Central.,Children & Education Services,Arrow County Supplies,26/04/2021,,343.2,Cleaning,130000 - Cleaning & Janitorial
Solihull MBC,Children's Services - DSG Central.,Children & Education Services,Arrow County Supplies,26/04/2021,,77.1,Cleaning,130000 - Cleaning & Janitorial
Solihull MBC,Children's Services - DSG Central.,Children & Education Services,Arrow County Supplies,26/04/2021,,116.4,Cleaning,130000 - Cleaning & Janitorial
Solihull MBC,Children's Services - DSG Central.,Children & Education Services,Arrow County Supplies,26/04/2021,,53.4,Cleaning,130000 - Cleaning & Janitorial
Solihull MBC,Children's Services - DSG Central.,Children & Education Services,Arrow County Supplies,26/04/2021,,34.92,Cleaning,130000 - Cleaning & Janitorial
Solihull MBC,Children's Services - DSG Central.,Children & Education Services,Arrow County Supplies,26/04/2021,,15.46,Cleaning,130000 - Cleaning & Janitorial
Solihull MBC,Children's Services - DSG Central.,Children & Education Services,Arrow County Supplies,26/04/2021,,23.19,Cleaning,130000 - Cleaning & Janitorial
Solihull MBC,Children's Services - DSG Central.,Children & Education Services,Arrow County Supplies,26/04/2021,,23.19,Cleaning,130000 - Cleaning & Janitorial
Solihull MBC,Children's Services - DSG Central.,Children & Education Services,Arrow County Supplies,26/04/2021,,155.04,Cleaning,130000 - Cleaning & Janitorial
Solihull MBC,Children's Services - DSG Central.,Children & Education Services,Arrow County Supplies,26/04/2021,,-1.44,Cleaning,130000 - Cleaning & Janitorial
Solihull MBC,Children's Services - DSG Central.,Children & Education Services,Arrow County Supplies,30/04/2021,,159,Cleaning,130000 - Cleaning & Janitorial
Solihull MBC,Children's Services - DSG Central.,Children & Education Services,Arrow County Supplies,30/04/2021,,97,Cleaning,130000 - Cleaning & Janitorial
Solihull MBC,Children's Services - DSG Central.,Children & Education Services,Arrow County Supplies,30/04/2021,,288,Cleaning,130000 - Cleaning & Janitorial
Solihull MBC,Resources,Central Services to the Public,Arthur J Gallagher Insurance Brokers Ltd,22/04/2021,,96957.29,Building Insurance,Not Yet Classified
Solihull MBC,Resources,Central Services to the Public,Arthur J Gallagher Insurance Brokers Ltd,29/04/2021,,184547.01,Building Insurance,Not Yet Classified
Solihull MBC,Resources,Central Services to the Public,Arthur J Gallagher Insurance Brokers Ltd,29/04/2021,,36617,Building Insurance,Not Yet Classified
Solihull MBC,Resources,Central Services to the Public,Arthur J Gallagher Insurance Brokers Ltd,29/04/2021,,4401.6,Building Insurance,Not Yet Classified
Solihull MBC,Resources,Central Services to the Public,Arthur J Gallagher Insurance Brokers Ltd,29/04/2021,,56000,Employees Insurance,Not Yet Classified
Solihull MBC,Resources,Central Services to the Public,Arthur J Gallagher Insurance Brokers Ltd,29/04/2021,,279016.08,Liability Insurance,Not Yet Classified
Solihull MBC,Resources,Central Services to the Public,Arthur J Gallagher Insurance Brokers Ltd,29/04/2021,,16008.16,Building Insurance,Not Yet Classified
Solihull MBC,Resources,Central Services to the Public,Arthur J Gallagher Insurance Brokers Ltd,29/04/2021,,7840,Building Insurance,Not Yet Classified
Solihull MBC,Resources,Central Services to the Public,Arthur J Gallagher Insurance Brokers Ltd,29/04/2021,,2088.8,Employees Insurance,Not Yet Classified
Solihull MBC,Resources,Central Services to the Public,Arthur J Gallagher Insurance Brokers Ltd,29/04/2021,,22168.91,Building Insurance,Not Yet Classified
Solihull MBC,Resources,Central Services to the Public,Arthur J Gallagher Insurance Brokers Ltd,29/04/2021,,11454.64,Building Insurance,Not Yet Classified
Solihull MBC,Resources,Central Services to the Public,Arthur J Gallagher Insurance Brokers Ltd,29/04/2021,,-5727.31,Building Insurance,Not Yet Classified
Solihull MBC,Resources,Central Services to the Public,Arthur J Gallagher Insurance Brokers Ltd,29/04/2021,,5600,Liability Insurance,Not Yet Classified
Solihull MBC,Resources,Central Services to the Public,Arthur J Gallagher Insurance Brokers Ltd,29/04/2021,,9507.37,Liability Insurance,Not Yet Classified
Solihull MBC,Resources,Central Services to the Public,Arthur J Gallagher Insurance Brokers Ltd,29/04/2021,,122729.6,Insurance & Licences,Not Yet Classified
Solihull MBC,Resources,Central Services to the Public,Arthur J Gallagher Insurance Brokers Ltd,22/04/2021,,170956.45,Building Insurance,Not Yet Classified
Solihull MBC,Public Health & Commissioning,Central Services to the Public,Artico Hair Limited,23/04/2021,,8000,Grant & Subscription (SCITT),Not Yet Classified
Solihull MBC,Public Health & Commissioning,Central Services to the Public,Artico Salon Ltd,23/04/2021,,12000,Grant & Subscription (SCITT),Not Yet Classified
Solihull MBC,Economy and Infrastructure - HRA,Housing Revenue Account,Asda Stores 5881,26/04/2021,Card Transaction,395.36,General Debtors,161000 - Domestic Goods - Commercial
Solihull MBC,Adult Social Care,Adult Social Care,Ashbourne Care Ltd,21/04/2021,,860.86,ASC - Residential Care Permanent,Not Yet Classified
Solihull MBC,Adult Social Care,Adult Social Care,Ashbourne Care Ltd,21/04/2021,,1137.36,ASC - Residential Care Permanent,Not Yet Classified
Solihull MBC,Adult Social Care,Adult Social Care,Ashdale Care Homes Ltd,21/04/2021,,273.72,ASC - Residential Care Permanent,321000 - Social Community Care Supplies & Services - Adult
Solihull MBC,Adult Social Care,Adult Social Care,Ashdale Care Homes Ltd,21/04/2021,,1003.64,ASC - Residential Care Permanent,321000 - Social Community Care Supplies & Services - Adult
Solihull MBC,Adult Social Care,Adult Social Care,Ashdale Care Homes Ltd,21/04/2021,,1319.08,ASC - Residential Care Permanent,321000 - Social Community Care Supplies & Services - Adult
Solihull MBC,Adult Social Care,Adult Social Care,Ashdale Care Homes Ltd,21/04/2021,,316.59,ASC - Residential Care Permanent,321000 - Social Community Care Supplies & Services - Adult
Solihull MBC,Adult Social Care,Adult Social Care,Ashdale Care Homes Ltd,21/04/2021,,1160.83,ASC - Residential Care Permanent,321000 - Social Community Care Supplies & Services - Adult
Solihull MBC,Adult Social Care,Adult Social Care,Ashdale Care Homes Ltd,21/04/2021,,1519.14,ASC - Residential Care Permanent,321000 - Social Community Care Supplies & Services - Adult
Solihull MBC,Economy and Infrastructure,Cultural & Related Services,Askews Library Services Ltd,28/04/2021,,3600,Materials,170000 - Education
Solihull MBC,Economy and Infrastructure,Cultural & Related Services,Askews Library Services Ltd,30/04/2021,,342.36,Materials,170000 - Education
Solihull MBC,Adult Social Care,Adult Social Care,Aspects Care Ltd,07/04/2021,,989.52,ASC - Supported Living Care Costs,Not Yet Classified
Solihull MBC,Adult Social Care,Adult Social Care,Aspects Care Ltd,07/04/2021,,1979.04,ASC - Supported Living Care Costs,Not Yet Classified
Solihull MBC,Adult Social Care,Adult Social Care,Aspects Care Ltd,07/04/2021,,280,ASC - Supported Living Care Costs,Not Yet Classified
Solihull MBC,Adult Social Care,Adult Social Care,Aspects Care Ltd,07/04/2021,,1468.32,ASC - Supported Living Care Costs,Not Yet Classified
Solihull MBC,Adult Social Care,Adult Social Care,Aspects Care Ltd,27/04/2021,,500.08,ASC - Supported Living Care Costs,Not Yet Classified
Solihull MBC,Adult Social Care,Adult Social Care,Aspects Care Ltd,27/04/2021,,500.08,ASC - Supported Living Care Costs,Not Yet Classified
Solihull MBC,Adult Social Care,Adult Social Care,Aspects Care Ltd,27/04/2021,,500.08,ASC - Supported Living Care Costs,Not Yet Classified
Solihull MBC,Adult Social Care,Adult Social Care,Aspects Care Ltd,27/04/2021,,500.08,ASC - Supported Living Care Costs,Not Yet Classified
Solihull MBC,Adult Social Care,Adult Social Care,Aspects Care Ltd,27/04/2021,,500.08,ASC - Supported Living Care Costs,Not Yet Classified
Solihull MBC,Adult Social Care,Adult Social Care,Aspects Care Ltd,27/04/2021,,500.08,ASC - Supported Living Care Costs,Not Yet Classified
Solihull MBC,Adult Social Care,Adult Social Care,Aspects Care Ltd,27/04/2021,,464.36,ASC - Supported Living Care Costs,Not Yet Classified
Solihull MBC,Adult Social Care,Adult Social Care,Aspects Care Ltd,27/04/2021,,500.08,ASC - Supported Living Care Costs,Not Yet Classified
Solihull MBC,Adult Social Care,Adult Social Care,Aspects Care Ltd,27/04/2021,,500.08,ASC - Supported Living Care Costs,Not Yet Classified
Solihull MBC,Adult Social Care,Adult Social Care,Aspects Care Ltd,27/04/2021,,500.08,ASC - Supported Living Care Costs,Not Yet Classified
Solihull MBC,Adult Social Care,Adult Social Care,Aspects Care Ltd,27/04/2021,,500.08,ASC - Supported Living Care Costs,Not Yet Classified
Solihull MBC,Adult Social Care,Adult Social Care,Aspects Care Ltd,27/04/2021,,500.08,ASC - Supported Living Care Costs,Not Yet Classified
Solihull MBC,Adult Social Care,Adult Social Care,Aspects Care Ltd,27/04/2021,,500.08,ASC - Supported Living Care Costs,Not Yet Classified
Solihull MBC,Adult Social Care,Adult Social Care,Aspects Care Ltd,27/04/2021,,500.08,ASC - Supported Living Care Costs,Not Yet Classified
Solihull MBC,Adult Social Care,Adult Social Care,Aspects Care Ltd,27/04/2021,,500.08,ASC - Supported Living Care Costs,Not Yet Classified
Solihull MBC,Adult Social Care,Adult Social Care,Aspects Care Ltd,27/04/2021,,500.08,ASC - Supported Living Care Costs,Not Yet Classified
Solihull MBC,Adult Social Care,Adult Social Care,Aspects Care Ltd,27/04/2021,,500.08,ASC - Supported Living Care Costs,Not Yet Classified
Solihull MBC,Adult Social Care,Adult Social Care,Aspects Care Ltd,27/04/2021,,500.08,ASC - Supported Living Care Costs,Not Yet Classified
Solihull MBC,Adult Social Care,Adult Social Care,Aspects Care Ltd,27/04/2021,,500.08,ASC - Supported Living Care Costs,Not Yet Classified
Solihull MBC,Adult Social Care,Adult Social Care,Aspects Care Ltd,27/04/2021,,-280,ASC - Supported Living Care Costs,Not Yet Classified
Solihull MBC,Adult Social Care,Adult Social Care,Aspects Care Ltd,27/04/2021,,-280,ASC - Supported Living Care Costs,Not Yet Classified
Solihull MBC,Adult Social Care,Adult Social Care,Aspects Care Ltd,27/04/2021,,-280,ASC - Supported Living Care Costs,Not Yet Classified
Solihull MBC,Adult Social Care,Adult Social Care,Aspects Care Ltd,27/04/2021,,-280,ASC - Supported Living Care Costs,Not Yet Classified
Solihull MBC,Adult Social Care,Adult Social Care,Aspects Care Ltd,27/04/2021,,-280,ASC - Supported Living Care Costs,Not Yet Classified
Solihull MBC,Adult Social Care,Adult Social Care,Aspects Care Ltd,27/04/2021,,-280,ASC - Supported Living Care Costs,Not Yet Classified
Solihull MBC,Adult Social Care,Adult Social Care,Aspects Care Ltd,27/04/2021,,-260,ASC - Supported Living Care Costs,Not Yet Classified
Solihull MBC,Adult Social Care,Adult Social Care,Aspects Care Ltd,27/04/2021,,-280,ASC - Supported Living Care Costs,Not Yet Classified
Solihull MBC,Adult Social Care,Adult Social Care,Aspects Care Ltd,27/04/2021,,-280,ASC - Supported Living Care Costs,Not Yet Classified
Solihull MBC,Adult Social Care,Adult Social Care,Aspects Care Ltd,27/04/2021,,-280,ASC - Supported Living Care Costs,Not Yet Classified
Solihull MBC,Adult Social Care,Adult Social Care,Aspects Care Ltd,27/04/2021,,-280,ASC - Supported Living Care Costs,Not Yet Classified
Solihull MBC,Adult Social Care,Adult Social Care,Aspects Care Ltd,27/04/2021,,-280,ASC - Supported Living Care Costs,Not Yet Classified
Solihull MBC,Adult Social Care,Adult Social Care,Aspects Care Ltd,27/04/2021,,-280,ASC - Supported Living Care Costs,Not Yet Classified
Solihull MBC,Adult Social Care,Adult Social Care,Aspects Care Ltd,27/04/2021,,-280,ASC - Supported Living Care Costs,Not Yet Classified
Solihull MBC,Adult Social Care,Adult Social Care,Aspects Care Ltd,27/04/2021,,-280,ASC - Supported Living Care Costs,Not Yet Classified
Solihull MBC,Adult Social Care,Adult Social Care,Aspects Care Ltd,27/04/2021,,-280,ASC - Supported Living Care Costs,Not Yet Classified
Solihull MBC,Adult Social Care,Adult Social Care,Aspects Care Ltd,27/04/2021,,-280,ASC - Supported Living Care Costs,Not Yet Classified
Solihull MBC,Adult Social Care,Adult Social Care,Aspects Care Ltd,27/04/2021,,-280,ASC - Supported Living Care Costs,Not Yet Classified
Solihull MBC,Adult Social Care,Adult Social Care,Aspects Care Ltd,27/04/2021,,-280,ASC - Supported Living Care Costs,Not Yet Classified
Solihull MBC,Adult Social Care,Adult Social Care,Aspects Care Ltd,07/04/2021,,1340.64,ASC - Supported Living Care Costs,Not Yet Classified
Solihull MBC,Adult Social Care,Adult Social Care,Aspects Care Ltd,07/04/2021,,1324.68,ASC - Supported Living Care Costs,Not Yet Classified
Solihull MBC,Adult Social Care,Adult Social Care,Aspects Care Ltd,07/04/2021,,2681.28,ASC - Supported Living Care Costs,Not Yet Classified
Solihull MBC,Adult Social Care,Adult Social Care,Aspects Care Ltd,07/04/2021,,2499.28,ASC - Supported Living Care Costs,Not Yet Classified
Solihull MBC,Adult Social Care,Adult Social Care,Aspects Care Ltd,07/04/2021,,1881.6,ASC - Domiciliary Care,Not Yet Classified
Solihull MBC,Adult Social Care,Adult Social Care,Aspects Care Ltd,07/04/2021,,2298.24,ASC - Supported Living Care Costs,Not Yet Classified
Solihull MBC,Adult Social Care,Adult Social Care,Aspects Care Ltd,07/04/2021,,845.88,ASC - Supported Living Care Costs,Not Yet Classified
Solihull MBC,Adult Social Care,Adult Social Care,Aspects Care Ltd,07/04/2021,,989.52,ASC - Supported Living Care Costs,Not Yet Classified
Solihull MBC,Adult Social Care,Adult Social Care,Aspects Care Ltd,07/04/2021,,1596,ASC - Supported Living Care Costs,Not Yet Classified
Solihull MBC,Adult Social Care,Adult Social Care,Aspects Care Ltd,07/04/2021,,989.52,ASC - Supported Living Care Costs,Not Yet Classified
Solihull MBC,Adult Social Care,Adult Social Care,Aspects Care Ltd,07/04/2021,,3798.48,ASC - Supported Living Care Costs,Not Yet Classified
Solihull MBC,Adult Social Care,Adult Social Care,Aspects Care Ltd,07/04/2021,,280,ASC - Supported Living Care Costs,Not Yet Classified
Solihull MBC,Adult Social Care,Adult Social Care,Aspects Care Ltd,07/04/2021,,1212.96,ASC - Supported Living Care Costs,Not Yet Classified
Solihull MBC,Adult Social Care,Adult Social Care,Aspects Care Ltd,27/04/2021,,482.22,ASC - Supported Living Care Costs,Not Yet Classified
Solihull MBC,Adult Social Care,Adult Social Care,Aspects Care Ltd,27/04/2021,,500.08,ASC - Supported Living Care Costs,Not Yet Classified
Solihull MBC,Adult Social Care,Adult Social Care,Aspects Care Ltd,27/04/2021,,500.08,ASC - Supported Living Care Costs,Not Yet Classified
Solihull MBC,Adult Social Care,Adult Social Care,Aspects Care Ltd,27/04/2021,,500.08,ASC - Supported Living Care Costs,Not Yet Classified
Solihull MBC,Adult Social Care,Adult Social Care,Aspects Care Ltd,27/04/2021,,500.08,ASC - Supported Living Care Costs,Not Yet Classified
Solihull MBC,Adult Social Care,Adult Social Care,Aspects Care Ltd,27/04/2021,,500.08,ASC - Supported Living Care Costs,Not Yet Classified
Solihull MBC,Adult Social Care,Adult Social Care,Aspects Care Ltd,27/04/2021,,500.08,ASC - Supported Living Care Costs,Not Yet Classified
Solihull MBC,Adult Social Care,Adult Social Care,Aspects Care Ltd,27/04/2021,,464.36,ASC - Supported Living Care Costs,Not Yet Classified
Solihull MBC,Adult Social Care,Adult Social Care,Aspects Care Ltd,27/04/2021,,500.08,ASC - Supported Living Care Costs,Not Yet Classified
Solihull MBC,Adult Social Care,Adult Social Care,Aspects Care Ltd,27/04/2021,,500.08,ASC - Supported Living Care Costs,Not Yet Classified
Solihull MBC,Adult Social Care,Adult Social Care,Aspects Care Ltd,27/04/2021,,500.08,ASC - Supported Living Care Costs,Not Yet Classified
Solihull MBC,Adult Social Care,Adult Social Care,Aspects Care Ltd,27/04/2021,,500.08,ASC - Supported Living Care Costs,Not Yet Classified
Solihull MBC,Adult Social Care,Adult Social Care,Aspects Care Ltd,27/04/2021,,500.08,ASC - Supported Living Care Costs,Not Yet Classified
Solihull MBC,Adult Social Care,Adult Social Care,Aspects Care Ltd,27/04/2021,,500.08,ASC - Supported Living Care Costs,Not Yet Classified
Solihull MBC,Adult Social Care,Adult Social Care,Aspects Care Ltd,27/04/2021,,500.08,ASC - Supported Living Care Costs,Not Yet Classified
Solihull MBC,Adult Social Care,Adult Social Care,Aspects Care Ltd,27/04/2021,,500.08,ASC - Supported Living Care Costs,Not Yet Classified
Solihull MBC,Adult Social Care,Adult Social Care,Aspects Care Ltd,27/04/2021,,500.08,ASC - Supported Living Care Costs,Not Yet Classified
Solihull MBC,Adult Social Care,Adult Social Care,Aspects Care Ltd,27/04/2021,,500.08,ASC - Supported Living Care Costs,Not Yet Classified
Solihull MBC,Adult Social Care,Adult Social Care,Aspects Care Ltd,27/04/2021,,500.08,ASC - Supported Living Care Costs,Not Yet Classified
Solihull MBC,Adult Social Care,Adult Social Care,Aspects Care Ltd,27/04/2021,,500.08,ASC - Supported Living Care Costs,Not Yet Classified
Solihull MBC,Adult Social Care,Adult Social Care,Aspects Care Ltd,27/04/2021,,-270,ASC - Supported Living Care Costs,Not Yet Classified
Solihull MBC,Adult Social Care,Adult Social Care,Aspects Care Ltd,27/04/2021,,-280,ASC - Supported Living Care Costs,Not Yet Classified
Solihull MBC,Adult Social Care,Adult Social Care,Aspects Care Ltd,27/04/2021,,-280,ASC - Supported Living Care Costs,Not Yet Classified
Solihull MBC,Adult Social Care,Adult Social Care,Aspects Care Ltd,27/04/2021,,-280,ASC - Supported Living Care Costs,Not Yet Classified
Solihull MBC,Adult Social Care,Adult Social Care,Aspects Care Ltd,27/04/2021,,-280,ASC - Supported Living Care Costs,Not Yet Classified
Solihull MBC,Adult Social Care,Adult Social Care,Aspects Care Ltd,27/04/2021,,-280,ASC - Supported Living Care Costs,Not Yet Classified
Solihull MBC,Adult Social Care,Adult Social Care,Aspects Care Ltd,27/04/2021,,-280,ASC - Supported Living Care Costs,Not Yet Classified
Solihull MBC,Adult Social Care,Adult Social Care,Aspects Care Ltd,27/04/2021,,-260,ASC - Supported Living Care Costs,Not Yet Classified
Solihull MBC,Adult Social Care,Adult Social Care,Aspects Care Ltd,27/04/2021,,-280,ASC - Supported Living Care Costs,Not Yet Classified
Solihull MBC,Adult Social Care,Adult Social Care,Aspects Care Ltd,27/04/2021,,-280,ASC - Supported Living Care Costs,Not Yet Classified
Solihull MBC,Adult Social Care,Adult Social Care,Aspects Care Ltd,27/04/2021,,-280,ASC - Supported Living Care Costs,Not Yet Classified
Solihull MBC,Adult Social Care,Adult Social Care,Aspects Care Ltd,27/04/2021,,-280,ASC - Supported Living Care Costs,Not Yet Classified
Solihull MBC,Adult Social Care,Adult Social Care,Aspects Care Ltd,27/04/2021,,-280,ASC - Supported Living Care Costs,Not Yet Classified
Solihull MBC,Adult Social Care,Adult Social Care,Aspects Care Ltd,27/04/2021,,-280,ASC - Supported Living Care Costs,Not Yet Classified
Solihull MBC,Adult Social Care,Adult Social Care,Aspects Care Ltd,27/04/2021,,-280,ASC - Supported Living Care Costs,Not Yet Classified
Solihull MBC,Adult Social Care,Adult Social Care,Aspects Care Ltd,27/04/2021,,-280,ASC - Supported Living Care Costs,Not Yet Classified
Solihull MBC,Adult Social Care,Adult Social Care,Aspects Care Ltd,27/04/2021,,-280,ASC - Supported Living Care Costs,Not Yet Classified
Solihull MBC,Adult Social Care,Adult Social Care,Aspects Care Ltd,27/04/2021,,-280,ASC - Supported Living Care Costs,Not Yet Classified
Solihull MBC,Adult Social Care,Adult Social Care,Aspects Care Ltd,27/04/2021,,-280,ASC - Supported Living Care Costs,Not Yet Classified
Solihull MBC,Adult Social Care,Adult Social Care,Aspects Care Ltd,27/04/2021,,-280,ASC - Supported Living Care Costs,Not Yet Classified
Solihull MBC,Adult Social Care,Adult Social Care,Aspects Care Ltd,07/04/2021,,6703.2,ASC - Supported Living Care Costs,Not Yet Classified
Solihull MBC,Adult Social Care,Adult Social Care,Aspects Care Ltd,07/04/2021,,4021.92,ASC - Supported Living Care Costs,Not Yet Classified
Solihull MBC,Adult Social Care,Adult Social Care,Aspects Care Ltd,07/04/2021,,500.08,ASC - Supported Living Care Costs,Not Yet Classified
Solihull MBC,Adult Social Care,Adult Social Care,Aspects Care Ltd,07/04/2021,,1883.28,ASC - Supported Living Care Costs,Not Yet Classified
Solihull MBC,Adult Social Care,Adult Social Care,Aspects Care Ltd,07/04/2021,,2170.56,ASC - Supported Living Care Costs,Not Yet Classified
Solihull MBC,Adult Social Care,Adult Social Care,Aspects Care Ltd,01/04/2021,,438.9,ASC - Out of hospital,Not Yet Classified
Solihull MBC,Adult Social Care,Adult Social Care,Aspects Care Ltd,01/04/2021,,295.26,ASC - Supported Living Care Costs,Not Yet Classified
Solihull MBC,Adult Social Care,Adult Social Care,Aspects Care Ltd,01/04/2021,,686.28,ASC - Supported Living Care Costs,Not Yet Classified
Solihull MBC,Adult Social Care,Adult Social Care,Aspects Care Ltd,01/04/2021,,351.12,ASC - Supported Living Care Costs,Not Yet Classified
Solihull MBC,Adult Social Care,Adult Social Care,Aspects Care Ltd,07/04/2021,,1372.56,ASC - Supported Living Care Costs,Not Yet Classified
Solihull MBC,Adult Social Care,Adult Social Care,Aspects Care Ltd,07/04/2021,,414.96,ASC - Supported Living Care Costs,Not Yet Classified
Solihull MBC,Adult Social Care,Adult Social Care,Aspects Care Ltd,07/04/2021,,766.08,ASC - Domiciliary Care,Not Yet Classified
Solihull MBC,Adult Social Care,Adult Social Care,Aspects Care Ltd,07/04/2021,,1276.8,ASC - Supported Living Care Costs,Not Yet Classified
Solihull MBC,Adult Social Care,Adult Social Care,Aspects Care Ltd,07/04/2021,,1117.2,ASC - Supported Living Care Costs,Not Yet Classified
Solihull MBC,Adult Social Care,Adult Social Care,Aspects Care Ltd,07/04/2021,,1021.44,ASC - Supported Living Care Costs,Not Yet Classified
Solihull MBC,Adult Social Care,Adult Social Care,Aspects Care Ltd,07/04/2021,,829.92,ASC - Supported Living Care Costs,Not Yet Classified
Solihull MBC,Adult Social Care,Adult Social Care,Aspects Care Ltd,07/04/2021,,1691.76,ASC - Supported Living Care Costs,Not Yet Classified
Solihull MBC,Adult Social Care,Adult Social Care,Aspects Care Ltd,07/04/2021,,500.08,ASC - Supported Living Care Costs,Not Yet Classified
Solihull MBC,Adult Social Care,Adult Social Care,Aspects Care Ltd,07/04/2021,,3814.44,ASC - Supported Living Care Costs,Not Yet Classified
Solihull MBC,Adult Social Care,Adult Social Care,Aspects Care Ltd,07/04/2021,,766.08,ASC - Supported Living Care Costs,Not Yet Classified
Solihull MBC,Adult Social Care,Adult Social Care,Aspects Care Ltd,13/04/2021,,670.32,ASC - Supported Living Care Costs,Not Yet Classified
Solihull MBC,Adult Social Care,Adult Social Care,Aspects Care Ltd,07/04/2021,,500.08,ASC - Supported Living Care Costs,Not Yet Classified
Solihull MBC,Adult Social Care,Adult Social Care,Aspects Care Ltd,07/04/2021,,3016.44,ASC - Supported Living Care Costs,Not Yet Classified
Solihull MBC,Adult Social Care,Adult Social Care,Aspects Care Ltd,07/04/2021,,1340.64,ASC - Supported Living Care Costs,Not Yet Classified
Solihull MBC,Adult Social Care,Adult Social Care,Aspects Care Ltd,07/04/2021,,2298.24,ASC - Supported Living Care Costs,Not Yet Classified
Solihull MBC,Adult Social Care,Adult Social Care,Aspects Care Ltd,07/04/2021,,989.52,ASC - Supported Living Care Costs,Not Yet Classified
Solihull MBC,Adult Social Care,Adult Social Care,Aspects Care Ltd,07/04/2021,,989.52,ASC - Supported Living Care Costs,Not Yet Classified
Solihull MBC,Adult Social Care,Adult Social Care,Aspects Care Ltd,07/04/2021,,845.88,ASC - Supported Living Care Costs,Not Yet Classified
Solihull MBC,Adult Social Care,Adult Social Care,Aspects Care Ltd,07/04/2021,,2042.88,ASC - Supported Living Care Costs,Not Yet Classified
Solihull MBC,Adult Social Care,Adult Social Care,Aspects Care Ltd,07/04/2021,,989.52,ASC - Supported Living Care Costs,Not Yet Classified
Solihull MBC,Adult Social Care,Adult Social Care,Aspects Care Ltd,07/04/2021,,1181.04,ASC - Supported Living Care Costs,Not Yet Classified
Solihull MBC,Children's Services & Skills,Children & Education Services,Aspire Supported Living CIC,30/04/2021,,342.86,Supported Lodgings,Not Yet Classified
Solihull MBC,Children's Services & Skills,Children & Education Services,Aspire Supported Living CIC,30/04/2021,,2857.14,Supported Lodgings,Not Yet Classified
Solihull MBC,Children's Services & Skills,Children & Education Services,Aston Childrens Care,09/04/2021,,16800,Other Contracted Services,Not Yet Classified
Solihull MBC,Children's Services & Skills,Children & Education Services,Aston Childrens Care,09/04/2021,,16800,Other Contracted Services,Not Yet Classified
Solihull MBC,Economy and Infrastructure,Highways & Transport Services,Atkins,22/04/2021,,1624.98,Agency Staff,150000 - Consultancy
Solihull MBC,Economy and Infrastructure,Planning & Development Services,Atkins Ltd,01/04/2021,,-877.5,Professional Fees,150000 - Consultancy
Solihull MBC,Economy and Infrastructure,Planning & Development Services,Atkins Ltd,01/04/2021,,-877.5,Professional Fees,150000 - Consultancy
Solihull MBC,Economy and Infrastructure,Planning & Development Services,Atkins Ltd,01/04/2021,,-877.5,Professional Fees,150000 - Consultancy
Solihull MBC,Economy and Infrastructure,Planning & Development Services,Atkins Ltd,01/04/2021,,-877.5,Professional Fees,150000 - Consultancy
Solihull MBC,Economy and Infrastructure,Planning & Development Services,Atkins Ltd,20/04/2021,,5875.8,Professional Fees,150000 - Consultancy
Solihull MBC,Economy and Infrastructure,Planning & Development Services,Atkins Ltd,01/04/2021,,877.5,Professional Fees,150000 - Consultancy
Solihull MBC,Economy and Infrastructure,Planning & Development Services,Atkins Ltd,01/04/2021,,877.5,Professional Fees,150000 - Consultancy
Solihull MBC,Economy and Infrastructure,Planning & Development Services,Atkins Ltd,01/04/2021,,877.5,Professional Fees,150000 - Consultancy
Solihull MBC,Economy and Infrastructure,Planning & Development Services,Atkins Ltd,01/04/2021,,877.5,Professional Fees,150000 - Consultancy
Solihull MBC,Economy and Infrastructure,Planning & Development Services,Atkins Ltd,01/04/2021,,779.95,Professional Fees,150000 - Consultancy
Solihull MBC,Economy and Infrastructure,Planning & Development Services,Atkins Ltd,01/04/2021,,779.95,Professional Fees,150000 - Consultancy
Solihull MBC,Economy and Infrastructure,Planning & Development Services,Atkins Ltd,01/04/2021,,779.95,Professional Fees,150000 - Consultancy
Solihull MBC,Economy and Infrastructure,Planning & Development Services,Atkins Ltd,01/04/2021,,779.96,Professional Fees,150000 - Consultancy
Solihull MBC,Economy and Infrastructure,Planning & Development Services,Atkins Ltd,20/04/2021,,5520,Professional Fees,150000 - Consultancy
Solihull MBC,Adult Social Care,Adult Social Care,Autism West Midlands,21/04/2021,,676.38,ASC - Residential Care Permanent,321000 - Social Community Care Supplies & Services - Adult
Solihull MBC,Adult Social Care,Adult Social Care,Autism West Midlands,21/04/2021,,2480.06,ASC - Residential Care Permanent,321000 - Social Community Care Supplies & Services - Adult
Solihull MBC,Adult Social Care,Adult Social Care,Autism West Midlands,21/04/2021,,3280.76,ASC - Residential Care Permanent,321000 - Social Community Care Supplies & Services - Adult
Solihull MBC,Adult Social Care,Adult Social Care,Autism West Midlands,29/04/2021,,265.95,ASC - Supported Living Care Costs,321000 - Social Community Care Supplies & Services - Adult
Solihull MBC,Adult Social Care,Adult Social Care,Autism West Midlands,29/04/2021,,1461.6,ASC - Supported Living Care Costs,321000 - Social Community Care Supplies & Services - Adult
Solihull MBC,Adult Social Care,Adult Social Care,Autism West Midlands,29/04/2021,,2216.25,ASC - Supported Living Care Costs,321000 - Social Community Care Supplies & Services - Adult
Solihull MBC,Adult Social Care,Adult Social Care,Autism West Midlands,29/04/2021,,5359.2,ASC - Supported Living Care Costs,321000 - Social Community Care Supplies & Services - Adult
Solihull MBC,Adult Social Care,Adult Social Care,Autism West Midlands,29/04/2021,,7392,ASC - Supported Living Care Costs,321000 - Social Community Care Supplies & Services - Adult
Solihull MBC,Adult Social Care,Adult Social Care,Autism West Midlands,21/04/2021,,763.2,ASC - Residential Care Permanent,321000 - Social Community Care Supplies & Services - Adult
Solihull MBC,Adult Social Care,Adult Social Care,Autism West Midlands,21/04/2021,,2798.4,ASC - Residential Care Permanent,321000 - Social Community Care Supplies & Services - Adult
Solihull MBC,Adult Social Care,Adult Social Care,Autism West Midlands,21/04/2021,,3685.92,ASC - Residential Care Permanent,321000 - Social Community Care Supplies & Services - Adult
Solihull MBC,Adult Social Care,Adult Social Care,Autism West Midlands,28/04/2021,,355.32,ASC - Domiciliary Care,321000 - Social Community Care Supplies & Services - Adult
Solihull MBC,Adult Social Care,Adult Social Care,Autism West Midlands,28/04/2021,,1302.84,ASC - Domiciliary Care,321000 - Social Community Care Supplies & Services - Adult
Solihull MBC,Adult Social Care,Adult Social Care,Autism West Midlands,28/04/2021,,1795.36,ASC - Domiciliary Care,321000 - Social Community Care Supplies & Services - Adult
Solihull MBC,Adult Social Care,Adult Social Care,Autism West Midlands,21/04/2021,,548.91,ASC - Residential Care Permanent,321000 - Social Community Care Supplies & Services - Adult
Solihull MBC,Adult Social Care,Adult Social Care,Autism West Midlands,21/04/2021,,2012.67,ASC - Residential Care Permanent,321000 - Social Community Care Supplies & Services - Adult
Solihull MBC,Adult Social Care,Adult Social Care,Autism West Midlands,21/04/2021,,2685.9,ASC - Residential Care Permanent,321000 - Social Community Care Supplies & Services - Adult
Solihull MBC,Covid-19,Central Services to the Public,Autism West Midlands,29/04/2021,,3982.94,ASC - Residential Care Permanent,321000 - Social Community Care Supplies & Services - Adult
Solihull MBC,Covid-19,Central Services to the Public,Autism West Midlands,29/04/2021,,1137.98,ASC - Residential Care Permanent,321000 - Social Community Care Supplies & Services - Adult
Solihull MBC,Covid-19,Central Services to the Public,Autism West Midlands,29/04/2021,,3117.67,ASC - Residential Care Permanent,321000 - Social Community Care Supplies & Services - Adult
Solihull MBC,Covid-19,Central Services to the Public,Autism West Midlands,29/04/2021,,890.76,ASC - Residential Care Permanent,321000 - Social Community Care Supplies & Services - Adult
Solihull MBC,Economy and Infrastructure,Highways & Transport Services,Automotive Leasing (Orders),14/04/2021,,210.8,Transport-Contract Hire,360000 - Public Transport
Solihull MBC,Adult Social Care,Adult Social Care,Auxilio Care Ltd,27/04/2021,,-7082.88,ASC - Supported Living Care Costs,Not Yet Classified
Solihull MBC,Adult Social Care,Adult Social Care,Auxilio Care Ltd,27/04/2021,,-7082.88,ASC - Supported Living Care Costs,Not Yet Classified
Solihull MBC,Adult Social Care,Adult Social Care,Auxilio Care Ltd,27/04/2021,,-7082.88,ASC - Supported Living Care Costs,Not Yet Classified
Solihull MBC,Adult Social Care,Adult Social Care,Auxilio Care Ltd,27/04/2021,,-7082.88,ASC - Supported Living Care Costs,Not Yet Classified
Solihull MBC,Adult Social Care,Adult Social Care,Auxilio Care Ltd,27/04/2021,,-7082.88,ASC - Supported Living Care Costs,Not Yet Classified
Solihull MBC,Adult Social Care,Adult Social Care,Auxilio Care Ltd,27/04/2021,,-7082.88,ASC - Supported Living Care Costs,Not Yet Classified
Solihull MBC,Adult Social Care,Adult Social Care,Auxilio Care Ltd,27/04/2021,,295.96,ASC - Supported Living Care Costs,Not Yet Classified
Solihull MBC,Adult Social Care,Adult Social Care,Auxilio Care Ltd,27/04/2021,,-5312.16,ASC - Supported Living Care Costs,Not Yet Classified
Solihull MBC,Adult Social Care,Adult Social Care,Auxilio Care Ltd,27/04/2021,,5551.35,ASC - Supported Living Care Costs,Not Yet Classified
Solihull MBC,Adult Social Care,Adult Social Care,Auxilio Care Ltd,27/04/2021,,7401.8,ASC - Supported Living Care Costs,Not Yet Classified
Solihull MBC,Adult Social Care,Adult Social Care,Auxilio Care Ltd,27/04/2021,,7401.8,ASC - Supported Living Care Costs,Not Yet Classified
Solihull MBC,Adult Social Care,Adult Social Care,Auxilio Care Ltd,27/04/2021,,7401.8,ASC - Supported Living Care Costs,Not Yet Classified
Solihull MBC,Adult Social Care,Adult Social Care,Auxilio Care Ltd,27/04/2021,,7401.8,ASC - Supported Living Care Costs,Not Yet Classified
Solihull MBC,Adult Social Care,Adult Social Care,Auxilio Care Ltd,27/04/2021,,7401.8,ASC - Supported Living Care Costs,Not Yet Classified
Solihull MBC,Adult Social Care,Adult Social Care,Auxilio Care Ltd,27/04/2021,,7401.8,ASC - Supported Living Care Costs,Not Yet Classified
Solihull MBC,Adult Social Care,Adult Social Care,Auxilio Care Ltd,27/04/2021,,7401.8,ASC - Supported Living Care Costs,Not Yet Classified
Solihull MBC,Adult Social Care,Adult Social Care,Auxilio Care Ltd,08/04/2021,,295.96,ASC - Supported Living Care Costs,Not Yet Classified
Solihull MBC,Adult Social Care,Adult Social Care,Auxilio Care Ltd,08/04/2021,,7401.8,ASC - Supported Living Care Costs,Not Yet Classified
Solihull MBC,Adult Social Care,Adult Social Care,Auxilio Care Ltd,27/04/2021,,-3794.4,ASC - Supported Living Care Costs,Not Yet Classified
Solihull MBC,Adult Social Care,Adult Social Care,Auxilio Care Ltd,27/04/2021,,-5059.2,ASC - Supported Living Care Costs,Not Yet Classified
Solihull MBC,Adult Social Care,Adult Social Care,Auxilio Care Ltd,27/04/2021,,-5059.2,ASC - Supported Living Care Costs,Not Yet Classified
Solihull MBC,Adult Social Care,Adult Social Care,Auxilio Care Ltd,27/04/2021,,-5059.2,ASC - Supported Living Care Costs,Not Yet Classified
Solihull MBC,Adult Social Care,Adult Social Care,Auxilio Care Ltd,27/04/2021,,-5059.2,ASC - Supported Living Care Costs,Not Yet Classified
Solihull MBC,Adult Social Care,Adult Social Care,Auxilio Care Ltd,27/04/2021,,-5059.2,ASC - Supported Living Care Costs,Not Yet Classified
Solihull MBC,Adult Social Care,Adult Social Care,Auxilio Care Ltd,27/04/2021,,-5059.2,ASC - Supported Living Care Costs,Not Yet Classified
Solihull MBC,Adult Social Care,Adult Social Care,Auxilio Care Ltd,27/04/2021,,-5059.2,ASC - Supported Living Care Costs,Not Yet Classified
Solihull MBC,Adult Social Care,Adult Social Care,Auxilio Care Ltd,27/04/2021,,3965.25,ASC - Supported Living Care Costs,Not Yet Classified
Solihull MBC,Adult Social Care,Adult Social Care,Auxilio Care Ltd,27/04/2021,,5287,ASC - Supported Living Care Costs,Not Yet Classified
Solihull MBC,Adult Social Care,Adult Social Care,Auxilio Care Ltd,27/04/2021,,5287,ASC - Supported Living Care Costs,Not Yet Classified
Solihull MBC,Adult Social Care,Adult Social Care,Auxilio Care Ltd,27/04/2021,,5287,ASC - Supported Living Care Costs,Not Yet Classified
Solihull MBC,Adult Social Care,Adult Social Care,Auxilio Care Ltd,27/04/2021,,5287,ASC - Supported Living Care Costs,Not Yet Classified
Solihull MBC,Adult Social Care,Adult Social Care,Auxilio Care Ltd,27/04/2021,,5287,ASC - Supported Living Care Costs,Not Yet Classified
Solihull MBC,Adult Social Care,Adult Social Care,Auxilio Care Ltd,27/04/2021,,5287,ASC - Supported Living Care Costs,Not Yet Classified
Solihull MBC,Adult Social Care,Adult Social Care,Auxilio Care Ltd,27/04/2021,,5287,ASC - Supported Living Care Costs,Not Yet Classified
Solihull MBC,Adult Social Care,Adult Social Care,Auxilio Care Ltd,08/04/2021,,295.96,ASC - Supported Living Care Costs,Not Yet Classified
Solihull MBC,Adult Social Care,Adult Social Care,Auxilio Care Ltd,08/04/2021,,5287,ASC - Supported Living Care Costs,Not Yet Classified
Solihull MBC,Adult Social Care,Adult Social Care,Auxilio Care Ltd,27/04/2021,,-4198.9,ASC - Supported Living Care Costs,Not Yet Classified
Solihull MBC,Adult Social Care,Adult Social Care,Auxilio Care Ltd,27/04/2021,,-3705.12,ASC - Supported Living Care Costs,Not Yet Classified
Solihull MBC,Adult Social Care,Adult Social Care,Auxilio Care Ltd,27/04/2021,,-3705.12,ASC - Supported Living Care Costs,Not Yet Classified
Solihull MBC,Adult Social Care,Adult Social Care,Auxilio Care Ltd,27/04/2021,,-3705.12,ASC - Supported Living Care Costs,Not Yet Classified
Solihull MBC,Adult Social Care,Adult Social Care,Auxilio Care Ltd,27/04/2021,,-3705.12,ASC - Supported Living Care Costs,Not Yet Classified
Solihull MBC,Adult Social Care,Adult Social Care,Auxilio Care Ltd,27/04/2021,,-3705.12,ASC - Supported Living Care Costs,Not Yet Classified
Solihull MBC,Adult Social Care,Adult Social Care,Auxilio Care Ltd,27/04/2021,,-3705.12,ASC - Supported Living Care Costs,Not Yet Classified
Solihull MBC,Adult Social Care,Adult Social Care,Auxilio Care Ltd,27/04/2021,,-3705.12,ASC - Supported Living Care Costs,Not Yet Classified
Solihull MBC,Adult Social Care,Adult Social Care,Auxilio Care Ltd,27/04/2021,,-520.8,ASC - Supported Living Care Costs,Not Yet Classified
Solihull MBC,Adult Social Care,Adult Social Care,Auxilio Care Ltd,27/04/2021,,-520.8,ASC - Supported Living Care Costs,Not Yet Classified
Solihull MBC,Adult Social Care,Adult Social Care,Auxilio Care Ltd,27/04/2021,,-520.8,ASC - Supported Living Care Costs,Not Yet Classified
Solihull MBC,Adult Social Care,Adult Social Care,Auxilio Care Ltd,27/04/2021,,-520.8,ASC - Supported Living Care Costs,Not Yet Classified
Solihull MBC,Adult Social Care,Adult Social Care,Auxilio Care Ltd,27/04/2021,,-520.8,ASC - Supported Living Care Costs,Not Yet Classified
Solihull MBC,Adult Social Care,Adult Social Care,Auxilio Care Ltd,27/04/2021,,-520.8,ASC - Supported Living Care Costs,Not Yet Classified
Solihull MBC,Adult Social Care,Adult Social Care,Auxilio Care Ltd,27/04/2021,,-520.8,ASC - Supported Living Care Costs,Not Yet Classified
Solihull MBC,Adult Social Care,Adult Social Care,Auxilio Care Ltd,27/04/2021,,-390.6,ASC - Supported Living Care Costs,Not Yet Classified
Solihull MBC,Adult Social Care,Adult Social Care,Auxilio Care Ltd,27/04/2021,,274.82,ASC - Supported Living Care Costs,Not Yet Classified
Solihull MBC,Adult Social Care,Adult Social Care,Auxilio Care Ltd,27/04/2021,,408.19,ASC - Supported Living Care Costs,Not Yet Classified
Solihull MBC,Adult Social Care,Adult Social Care,Auxilio Care Ltd,27/04/2021,,483.6,ASC - Supported Living Care Costs,Not Yet Classified
Solihull MBC,Adult Social Care,Adult Social Care,Auxilio Care Ltd,27/04/2021,,544.25,ASC - Supported Living Care Costs,Not Yet Classified
Solihull MBC,Adult Social Care,Adult Social Care,Auxilio Care Ltd,27/04/2021,,544.25,ASC - Supported Living Care Costs,Not Yet Classified
Solihull MBC,Adult Social Care,Adult Social Care,Auxilio Care Ltd,27/04/2021,,544.25,ASC - Supported Living Care Costs,Not Yet Classified
Solihull MBC,Adult Social Care,Adult Social Care,Auxilio Care Ltd,27/04/2021,,544.25,ASC - Supported Living Care Costs,Not Yet Classified
Solihull MBC,Adult Social Care,Adult Social Care,Auxilio Care Ltd,27/04/2021,,544.25,ASC - Supported Living Care Costs,Not Yet Classified
Solihull MBC,Adult Social Care,Adult Social Care,Auxilio Care Ltd,27/04/2021,,544.25,ASC - Supported Living Care Costs,Not Yet Classified
Solihull MBC,Adult Social Care,Adult Social Care,Auxilio Care Ltd,27/04/2021,,544.25,ASC - Supported Living Care Costs,Not Yet Classified
Solihull MBC,Adult Social Care,Adult Social Care,Auxilio Care Ltd,27/04/2021,,-2778.84,ASC - Supported Living Care Costs,Not Yet Classified
Solihull MBC,Adult Social Care,Adult Social Care,Auxilio Care Ltd,27/04/2021,,2903.96,ASC - Supported Living Care Costs,Not Yet Classified
Solihull MBC,Adult Social Care,Adult Social Care,Auxilio Care Ltd,27/04/2021,,3440.47,ASC - Supported Living Care Costs,Not Yet Classified
Solihull MBC,Adult Social Care,Adult Social Care,Auxilio Care Ltd,27/04/2021,,3871.95,ASC - Supported Living Care Costs,Not Yet Classified
Solihull MBC,Adult Social Care,Adult Social Care,Auxilio Care Ltd,27/04/2021,,3871.95,ASC - Supported Living Care Costs,Not Yet Classified
Solihull MBC,Adult Social Care,Adult Social Care,Auxilio Care Ltd,27/04/2021,,3871.95,ASC - Supported Living Care Costs,Not Yet Classified
Solihull MBC,Adult Social Care,Adult Social Care,Auxilio Care Ltd,27/04/2021,,3871.95,ASC - Supported Living Care Costs,Not Yet Classified
Solihull MBC,Adult Social Care,Adult Social Care,Auxilio Care Ltd,27/04/2021,,3871.95,ASC - Supported Living Care Costs,Not Yet Classified
Solihull MBC,Adult Social Care,Adult Social Care,Auxilio Care Ltd,27/04/2021,,3871.95,ASC - Supported Living Care Costs,Not Yet Classified
Solihull MBC,Adult Social Care,Adult Social Care,Auxilio Care Ltd,27/04/2021,,3871.95,ASC - Supported Living Care Costs,Not Yet Classified
Solihull MBC,Adult Social Care,Adult Social Care,Auxilio Care Ltd,08/04/2021,,295.96,ASC - Supported Living Care Costs,Not Yet Classified
Solihull MBC,Adult Social Care,Adult Social Care,Auxilio Care Ltd,08/04/2021,,3871.95,ASC - Supported Living Care Costs,Not Yet Classified
Solihull MBC,Adult Social Care,Adult Social Care,Auxilio Care Ltd,08/04/2021,,544.25,ASC - Supported Living Care Costs,Not Yet Classified
Solihull MBC,Adult Social Care,Adult Social Care,Auxilio Care Ltd,08/04/2021,,295.96,ASC - Supported Living Care Costs,Not Yet Classified
Solihull MBC,Adult Social Care,Adult Social Care,Auxilio Care Ltd,08/04/2021,,3483.2,ASC - Supported Living Care Costs,Not Yet Classified
Solihull MBC,Adult Social Care,Adult Social Care,Auxilio Care Ltd,08/04/2021,,9656.55,ASC - Supported Living Care Costs,Not Yet Classified
Solihull MBC,Adult Social Care,Adult Social Care,Auxilio Care Ltd,08/04/2021,,4416.2,ASC - Supported Living Care Costs,Not Yet Classified
Solihull MBC,Adult Social Care,Adult Social Care,Auxilio Care Ltd,29/04/2021,,2544.48,ASC - Supported Living Care Costs,Not Yet Classified
Solihull MBC,Adult Social Care,Adult Social Care,Auxilio Care Ltd,27/04/2021,,-7238.69,ASC - Supported Living Care Costs,Not Yet Classified
Solihull MBC,Adult Social Care,Adult Social Care,Auxilio Care Ltd,27/04/2021,,-6249.6,ASC - Supported Living Care Costs,Not Yet Classified
Solihull MBC,Adult Social Care,Adult Social Care,Auxilio Care Ltd,27/04/2021,,-6249.6,ASC - Supported Living Care Costs,Not Yet Classified
Solihull MBC,Adult Social Care,Adult Social Care,Auxilio Care Ltd,27/04/2021,,-6249.6,ASC - Supported Living Care Costs,Not Yet Classified
Solihull MBC,Adult Social Care,Adult Social Care,Auxilio Care Ltd,27/04/2021,,-6249.6,ASC - Supported Living Care Costs,Not Yet Classified
Solihull MBC,Adult Social Care,Adult Social Care,Auxilio Care Ltd,27/04/2021,,-6249.6,ASC - Supported Living Care Costs,Not Yet Classified
Solihull MBC,Adult Social Care,Adult Social Care,Auxilio Care Ltd,27/04/2021,,-6249.6,ASC - Supported Living Care Costs,Not Yet Classified
Solihull MBC,Adult Social Care,Adult Social Care,Auxilio Care Ltd,27/04/2021,,-6249.6,ASC - Supported Living Care Costs,Not Yet Classified
Solihull MBC,Adult Social Care,Adult Social Care,Auxilio Care Ltd,27/04/2021,,-3749.76,ASC - Supported Living Care Costs,Not Yet Classified
Solihull MBC,Adult Social Care,Adult Social Care,Auxilio Care Ltd,27/04/2021,,-3749.76,ASC - Supported Living Care Costs,Not Yet Classified
Solihull MBC,Adult Social Care,Adult Social Care,Auxilio Care Ltd,27/04/2021,,-3749.76,ASC - Supported Living Care Costs,Not Yet Classified
Solihull MBC,Adult Social Care,Adult Social Care,Auxilio Care Ltd,27/04/2021,,-3749.76,ASC - Supported Living Care Costs,Not Yet Classified
Solihull MBC,Adult Social Care,Adult Social Care,Auxilio Care Ltd,27/04/2021,,-3749.76,ASC - Supported Living Care Costs,Not Yet Classified
Solihull MBC,Adult Social Care,Adult Social Care,Auxilio Care Ltd,27/04/2021,,-3749.76,ASC - Supported Living Care Costs,Not Yet Classified
Solihull MBC,Adult Social Care,Adult Social Care,Auxilio Care Ltd,27/04/2021,,-3749.76,ASC - Supported Living Care Costs,Not Yet Classified
Solihull MBC,Adult Social Care,Adult Social Care,Auxilio Care Ltd,27/04/2021,,-1249.92,ASC - Supported Living Care Costs,Not Yet Classified
Solihull MBC,Adult Social Care,Adult Social Care,Auxilio Care Ltd,27/04/2021,,-1249.92,ASC - Supported Living Care Costs,Not Yet Classified
Solihull MBC,Adult Social Care,Adult Social Care,Auxilio Care Ltd,27/04/2021,,-1249.92,ASC - Supported Living Care Costs,Not Yet Classified
Solihull MBC,Adult Social Care,Adult Social Care,Auxilio Care Ltd,27/04/2021,,-1249.92,ASC - Supported Living Care Costs,Not Yet Classified
Solihull MBC,Adult Social Care,Adult Social Care,Auxilio Care Ltd,27/04/2021,,-1249.92,ASC - Supported Living Care Costs,Not Yet Classified
Solihull MBC,Adult Social Care,Adult Social Care,Auxilio Care Ltd,27/04/2021,,-1249.92,ASC - Supported Living Care Costs,Not Yet Classified
Solihull MBC,Adult Social Care,Adult Social Care,Auxilio Care Ltd,27/04/2021,,-1249.92,ASC - Supported Living Care Costs,Not Yet Classified
Solihull MBC,Adult Social Care,Adult Social Care,Auxilio Care Ltd,27/04/2021,,-937.44,ASC - Supported Living Care Costs,Not Yet Classified
Solihull MBC,Adult Social Care,Adult Social Care,Auxilio Care Ltd,27/04/2021,,259.74,ASC - Supported Living Care Costs,Not Yet Classified
Solihull MBC,Adult Social Care,Adult Social Care,Auxilio Care Ltd,27/04/2021,,274.82,ASC - Supported Living Care Costs,Not Yet Classified
Solihull MBC,Adult Social Care,Adult Social Care,Auxilio Care Ltd,27/04/2021,,-2812.32,ASC - Supported Living Care Costs,Not Yet Classified
Solihull MBC,Adult Social Care,Adult Social Care,Auxilio Care Ltd,27/04/2021,,979.65,ASC - Supported Living Care Costs,Not Yet Classified
Solihull MBC,Adult Social Care,Adult Social Care,Auxilio Care Ltd,27/04/2021,,1160.64,ASC - Supported Living Care Costs,Not Yet Classified
Solihull MBC,Adult Social Care,Adult Social Care,Auxilio Care Ltd,27/04/2021,,1306.2,ASC - Supported Living Care Costs,Not Yet Classified
Solihull MBC,Adult Social Care,Adult Social Care,Auxilio Care Ltd,27/04/2021,,1306.2,ASC - Supported Living Care Costs,Not Yet Classified
Solihull MBC,Adult Social Care,Adult Social Care,Auxilio Care Ltd,27/04/2021,,1306.2,ASC - Supported Living Care Costs,Not Yet Classified
Solihull MBC,Adult Social Care,Adult Social Care,Auxilio Care Ltd,27/04/2021,,1306.2,ASC - Supported Living Care Costs,Not Yet Classified
Solihull MBC,Adult Social Care,Adult Social Care,Auxilio Care Ltd,27/04/2021,,1306.2,ASC - Supported Living Care Costs,Not Yet Classified
Solihull MBC,Adult Social Care,Adult Social Care,Auxilio Care Ltd,27/04/2021,,1306.2,ASC - Supported Living Care Costs,Not Yet Classified
Solihull MBC,Adult Social Care,Adult Social Care,Auxilio Care Ltd,27/04/2021,,1306.2,ASC - Supported Living Care Costs,Not Yet Classified
Solihull MBC,Adult Social Care,Adult Social Care,Auxilio Care Ltd,27/04/2021,,-671,ASC - Supported Living Care Costs,Not Yet Classified
Solihull MBC,Adult Social Care,Adult Social Care,Auxilio Care Ltd,27/04/2021,,1392.08,ASC - Supported Living Care Costs,Not Yet Classified
Solihull MBC,Adult Social Care,Adult Social Care,Auxilio Care Ltd,27/04/2021,,2207.79,ASC - Supported Living Care Costs,Not Yet Classified
Solihull MBC,Adult Social Care,Adult Social Care,Auxilio Care Ltd,27/04/2021,,2938.95,ASC - Supported Living Care Costs,Not Yet Classified
Solihull MBC,Adult Social Care,Adult Social Care,Auxilio Care Ltd,27/04/2021,,3481.92,ASC - Supported Living Care Costs,Not Yet Classified
Solihull MBC,Adult Social Care,Adult Social Care,Auxilio Care Ltd,27/04/2021,,3918.6,ASC - Supported Living Care Costs,Not Yet Classified
Solihull MBC,Adult Social Care,Adult Social Care,Auxilio Care Ltd,27/04/2021,,3918.6,ASC - Supported Living Care Costs,Not Yet Classified
Solihull MBC,Adult Social Care,Adult Social Care,Auxilio Care Ltd,27/04/2021,,3918.6,ASC - Supported Living Care Costs,Not Yet Classified
Solihull MBC,Adult Social Care,Adult Social Care,Auxilio Care Ltd,27/04/2021,,3918.6,ASC - Supported Living Care Costs,Not Yet Classified
Solihull MBC,Adult Social Care,Adult Social Care,Auxilio Care Ltd,27/04/2021,,3918.6,ASC - Supported Living Care Costs,Not Yet Classified
Solihull MBC,Adult Social Care,Adult Social Care,Auxilio Care Ltd,27/04/2021,,3918.6,ASC - Supported Living Care Costs,Not Yet Classified
Solihull MBC,Adult Social Care,Adult Social Care,Auxilio Care Ltd,27/04/2021,,3918.6,ASC - Supported Living Care Costs,Not Yet Classified
Solihull MBC,Adult Social Care,Adult Social Care,Auxilio Care Ltd,27/04/2021,,6531,ASC - Supported Living Care Costs,Not Yet Classified
Solihull MBC,Adult Social Care,Adult Social Care,Auxilio Care Ltd,27/04/2021,,6531,ASC - Supported Living Care Costs,Not Yet Classified
Solihull MBC,Adult Social Care,Adult Social Care,Auxilio Care Ltd,27/04/2021,,6531,ASC - Supported Living Care Costs,Not Yet Classified
Solihull MBC,Adult Social Care,Adult Social Care,Auxilio Care Ltd,27/04/2021,,6531,ASC - Supported Living Care Costs,Not Yet Classified
Solihull MBC,Adult Social Care,Adult Social Care,Auxilio Care Ltd,27/04/2021,,6531,ASC - Supported Living Care Costs,Not Yet Classified
Solihull MBC,Adult Social Care,Adult Social Care,Auxilio Care Ltd,27/04/2021,,6531,ASC - Supported Living Care Costs,Not Yet Classified
Solihull MBC,Adult Social Care,Adult Social Care,Auxilio Care Ltd,27/04/2021,,6531,ASC - Supported Living Care Costs,Not Yet Classified
Solihull MBC,Adult Social Care,Adult Social Care,Auxilio Care Ltd,27/04/2021,,671,ASC - Supported Living Care Costs,Not Yet Classified
Solihull MBC,Adult Social Care,Adult Social Care,Auxilio Care Ltd,08/04/2021,,295.96,ASC - Supported Living Care Costs,Not Yet Classified
Solihull MBC,Adult Social Care,Adult Social Care,Auxilio Care Ltd,08/04/2021,,1306.2,ASC - Supported Living Care Costs,Not Yet Classified
Solihull MBC,Adult Social Care,Adult Social Care,Auxilio Care Ltd,08/04/2021,,6531,ASC - Supported Living Care Costs,Not Yet Classified
Solihull MBC,Adult Social Care,Adult Social Care,Auxilio Care Ltd,08/04/2021,,3918.6,ASC - Supported Living Care Costs,Not Yet Classified
Solihull MBC,Covid-19,Central Services to the Public,Auxilio Care Ltd,29/04/2021,,507.57,ASC - Supported Living Care Costs,Not Yet Classified
Solihull MBC,Covid-19,Central Services to the Public,Auxilio Care Ltd,29/04/2021,,794.61,ASC - Supported Living Care Costs,Not Yet Classified
Solihull MBC,Public Health & Commissioning,Central Services to the Public,Avenue Bowling Club Ltd,29/04/2021,,1334,Grant & Subscription (SCITT),Not Yet Classified
Solihull MBC,Adult Social Care,Adult Social Care,Avery Health Care,21/04/2021,,840.95,ASC - Residential Care Permanent,Not Yet Classified
Solihull MBC,Adult Social Care,Adult Social Care,Avery Health Care,21/04/2021,,1112.02,ASC - Residential Care Permanent,Not Yet Classified
Solihull MBC,Adult Social Care,Adult Social Care,Avery Health Care,21/04/2021,,293.22,ASC - Nursing Care Permanent,Not Yet Classified
Solihull MBC,Adult Social Care,Adult Social Care,Avery Health Care,21/04/2021,,1075.14,ASC - Nursing Care Permanent,Not Yet Classified
Solihull MBC,Adult Social Care,Adult Social Care,Avery Health Care,21/04/2021,,1422.26,ASC - Nursing Care Permanent,Not Yet Classified
Solihull MBC,Adult Social Care,Adult Social Care,Avery Health Care,21/04/2021,,393.72,ASC - Residential Care Permanent,Not Yet Classified
Solihull MBC,Adult Social Care,Adult Social Care,Avery Health Care,21/04/2021,,1443.64,ASC - Residential Care Permanent,Not Yet Classified
Solihull MBC,Adult Social Care,Adult Social Care,Avery Health Care,21/04/2021,,1879.08,ASC - Residential Care Permanent,Not Yet Classified
Solihull MBC,Adult Social Care,Adult Social Care,Avery Health Care,21/04/2021,,434.97,ASC - Nursing Care Permanent,Not Yet Classified
Solihull MBC,Adult Social Care,Adult Social Care,Avery Health Care,21/04/2021,,1594.89,ASC - Nursing Care Permanent,Not Yet Classified
Solihull MBC,Adult Social Care,Adult Social Care,Avery Health Care,21/04/2021,,2080.4,ASC - Nursing Care Permanent,Not Yet Classified
Solihull MBC,Adult Social Care,Adult Social Care,Avery Health Care,21/04/2021,,530.88,ASC - Residential Care Permanent,Not Yet Classified
Solihull MBC,Adult Social Care,Adult Social Care,Avery Health Care,21/04/2021,,1946.56,ASC - Residential Care Permanent,Not Yet Classified
Solihull MBC,Adult Social Care,Adult Social Care,Avery Health Care,21/04/2021,,2519.16,ASC - Residential Care Permanent,Not Yet Classified
Solihull MBC,Adult Social Care,Adult Social Care,Avery Health Care,21/04/2021,,265.77,ASC - Residential Care Permanent,Not Yet Classified
Solihull MBC,Adult Social Care,Adult Social Care,Avery Health Care,21/04/2021,,974.49,ASC - Residential Care Permanent,Not Yet Classified
Solihull MBC,Adult Social Care,Adult Social Care,Avery Health Care,21/04/2021,,1289.68,ASC - Residential Care Permanent,Not Yet Classified
Solihull MBC,Covid-19,Central Services to the Public,Avery Health Care,29/04/2021,,17069.74,ASC - Residential Care Permanent,Not Yet Classified
Solihull MBC,Covid-19,Central Services to the Public,Avery Health Care,29/04/2021,,13361.46,ASC - Residential Care Permanent,Not Yet Classified
Solihull MBC,Adult Social Care,Adult Social Care,Avery Homes (Nelson) Ltd,21/04/2021,,400,ASC - Nursing Care Respite,Not Yet Classified
Solihull MBC,Adult Social Care,Adult Social Care,Avery Homes (Nelson) Ltd,21/04/2021,,1450.54,ASC - Nursing Care Respite,Not Yet Classified
Solihull MBC,Adult Social Care,Adult Social Care,Avery Homes (Nelson) Ltd,21/04/2021,,267.86,ASC - Residential Care Respite,Not Yet Classified
Solihull MBC,Adult Social Care,Adult Social Care,Avery Homes (Nelson) Ltd,21/04/2021,,2232.14,ASC - Residential Care Respite,Not Yet Classified
Solihull MBC,Adult Social Care,Adult Social Care,Avery Homes (Nelson) Ltd,21/04/2021,,267.86,ASC - Residential Care Respite,Not Yet Classified
Solihull MBC,Adult Social Care,Adult Social Care,Avery Homes (Nelson) Ltd,21/04/2021,,714.29,ASC - Residential Care Respite,Not Yet Classified
Solihull MBC,Adult Social Care,Adult Social Care,Avery Homes (Nelson) Ltd,29/04/2021,,725.27,ASC - Nursing Care Respite,Not Yet Classified
Solihull MBC,Adult Social Care,Adult Social Care,Avery Homes (Nelson) Ltd,21/04/2021,,267.86,ASC - Residential Care Permanent,Not Yet Classified
Solihull MBC,Adult Social Care,Adult Social Care,Avery Homes (Nelson) Ltd,21/04/2021,,982.14,ASC - Residential Care Permanent,Not Yet Classified
Solihull MBC,Adult Social Care,Adult Social Care,Avery Homes (Nelson) Ltd,21/04/2021,,1291.78,ASC - Residential Care Permanent,Not Yet Classified
Solihull MBC,Adult Social Care,Adult Social Care,Avery Homes (Nelson) Ltd,21/04/2021,,400,ASC - Nursing Care Respite,Not Yet Classified
Solihull MBC,Adult Social Care,Adult Social Care,Avery Homes (Nelson) Ltd,29/04/2021,,-2100,ASC - Residential Care Respite,Not Yet Classified
Solihull MBC,Adult Social Care,Adult Social Care,Avery Homes (Nelson) Ltd,29/04/2021,,267.86,ASC - Residential Care Respite,Not Yet Classified
Solihull MBC,Adult Social Care,Adult Social Care,Avery Homes (Nelson) Ltd,29/04/2021,,900,ASC - Residential Care Respite,Not Yet Classified
Solihull MBC,Adult Social Care,Adult Social Care,Avery Homes (Nelson) Ltd,29/04/2021,,1964.29,ASC - Residential Care Respite,Not Yet Classified
Solihull MBC,Adult Social Care,Adult Social Care,Avery Homes (Nelson) Ltd,29/04/2021,,3400,ASC - Residential Care Respite,Not Yet Classified
Solihull MBC,Adult Social Care,Adult Social Care,Avery Homes (Nelson) Ltd,29/04/2021,,4521.23,ASC - Residential Care Respite,Not Yet Classified
Solihull MBC,Adult Social Care,Adult Social Care,Avery Homes (Nelson) Ltd,29/04/2021,,1657.76,ASC - Residential Care Respite,Not Yet Classified
Solihull MBC,Adult Social Care,Adult Social Care,Avery Homes (Nelson) Ltd,21/04/2021,,268.2,ASC - Nursing Care Permanent,Not Yet Classified
Solihull MBC,Adult Social Care,Adult Social Care,Avery Homes (Nelson) Ltd,21/04/2021,,983.4,ASC - Nursing Care Permanent,Not Yet Classified
Solihull MBC,Adult Social Care,Adult Social Care,Avery Homes (Nelson) Ltd,21/04/2021,,1302.14,ASC - Nursing Care Permanent,Not Yet Classified
Solihull MBC,Adult Social Care,Adult Social Care,Avery Homes (Nelson) Ltd,29/04/2021,,-1609.2,ASC - Nursing Care Permanent,Not Yet Classified
Solihull MBC,Adult Social Care,Adult Social Care,Avery Homes (Nelson) Ltd,29/04/2021,,-2503.2,ASC - Nursing Care Permanent,Not Yet Classified
Solihull MBC,Adult Social Care,Adult Social Care,Avery Homes (Nelson) Ltd,29/04/2021,,-2503.2,ASC - Nursing Care Permanent,Not Yet Classified
Solihull MBC,Adult Social Care,Adult Social Care,Avery Homes (Nelson) Ltd,29/04/2021,,-268.2,ASC - Nursing Care Permanent,Not Yet Classified
Solihull MBC,Adult Social Care,Adult Social Care,Avery Homes (Nelson) Ltd,29/04/2021,,-983.4,ASC - Nursing Care Permanent,Not Yet Classified
Solihull MBC,Adult Social Care,Adult Social Care,Avery Homes (Nelson) Ltd,29/04/2021,,-1302.14,ASC - Nursing Care Permanent,Not Yet Classified
Solihull MBC,Adult Social Care,Adult Social Care,Avery Homes (Nelson) Ltd,21/04/2021,,267.86,ASC - Residential Care Respite,Not Yet Classified
Solihull MBC,Adult Social Care,Adult Social Care,Avery Homes (Nelson) Ltd,21/04/2021,,982.14,ASC - Residential Care Respite,Not Yet Classified
Solihull MBC,Adult Social Care,Adult Social Care,Avery Homes (Nelson) Ltd,21/04/2021,,1299.48,ASC - Residential Care Respite,Not Yet Classified
Solihull MBC,Adult Social Care,Adult Social Care,Avery Homes (Nelson) Ltd,21/04/2021,,267.86,ASC - Residential Care Respite,Not Yet Classified
Solihull MBC,Adult Social Care,Adult Social Care,Avery Homes (Nelson) Ltd,21/04/2021,,357.14,ASC - Residential Care Respite,Not Yet Classified
Solihull MBC,Adult Social Care,Adult Social Care,Avery Homes (Nelson) Ltd,29/04/2021,,446.43,ASC - Residential Care Respite,Not Yet Classified
Solihull MBC,Adult Social Care,Adult Social Care,Avery Homes (Nelson) Ltd,21/04/2021,,2800,ASC - Nursing Care Respite,Not Yet Classified
Solihull MBC,Adult Social Care,Adult Social Care,Avery Homes (Nelson) Ltd,21/04/2021,,300,ASC - Nursing Care Respite,Not Yet Classified
Solihull MBC,Adult Social Care,Adult Social Care,Avery Homes (Nelson) Ltd,21/04/2021,,600,ASC - Nursing Care Respite,Not Yet Classified
Solihull MBC,Adult Social Care,Adult Social Care,Avery Homes (Nelson) Ltd,21/04/2021,,-300,ASC - Nursing Care Respite,Not Yet Classified
Solihull MBC,Adult Social Care,Adult Social Care,Avery Homes (Nelson) Ltd,21/04/2021,,1036.1,ASC - Nursing Care Respite,Not Yet Classified
Solihull MBC,Adult Social Care,Adult Social Care,Avery Homes (Nelson) Ltd,21/04/2021,,1346.93,ASC - Nursing Care Respite,Not Yet Classified
Solihull MBC,Adult Social Care,Adult Social Care,Avery Homes (Nelson) Ltd,29/04/2021,,-1346.93,ASC - Nursing Care Respite,Not Yet Classified
Solihull MBC,Adult Social Care,Adult Social Care,Avery Homes (Nelson) Ltd,21/04/2021,,1243.32,ASC - Nursing Care Respite,Not Yet Classified
Solihull MBC,Adult Social Care,Adult Social Care,Avery Homes (Nelson) Ltd,21/04/2021,,293.22,ASC - Nursing Care Permanent,Not Yet Classified
Solihull MBC,Adult Social Care,Adult Social Care,Avery Homes (Nelson) Ltd,21/04/2021,,1075.14,ASC - Nursing Care Permanent,Not Yet Classified
Solihull MBC,Adult Social Care,Adult Social Care,Avery Homes (Nelson) Ltd,21/04/2021,,1422.26,ASC - Nursing Care Permanent,Not Yet Classified
Solihull MBC,Adult Social Care,Adult Social Care,Avery Homes (Nelson) Ltd,21/04/2021,,300,ASC - Nursing Care Respite,Not Yet Classified
Solihull MBC,Adult Social Care,Adult Social Care,Avery Homes (Nelson) Ltd,21/04/2021,,1100,ASC - Nursing Care Respite,Not Yet Classified
Solihull MBC,Adult Social Care,Adult Social Care,Avery Homes (Nelson) Ltd,21/04/2021,,1450.54,ASC - Nursing Care Respite,Not Yet Classified
Solihull MBC,Adult Social Care,Adult Social Care,Avery Homes (Nelson) Ltd,21/04/2021,,300,ASC - Nursing Care Respite,Not Yet Classified
Solihull MBC,Adult Social Care,Adult Social Care,Avery Homes (Nelson) Ltd,21/04/2021,,1100,ASC - Nursing Care Respite,Not Yet Classified
Solihull MBC,Adult Social Care,Adult Social Care,Avery Homes (Nelson) Ltd,21/04/2021,,1450.54,ASC - Nursing Care Respite,Not Yet Classified
Solihull MBC,Adult Social Care,Adult Social Care,Avery Homes (Nelson) Ltd,29/04/2021,,-414.44,ASC - Nursing Care Respite,Not Yet Classified
Solihull MBC,Adult Social Care,Adult Social Care,Avery Homes (Nelson) Ltd,29/04/2021,,279.03,ASC - Nursing Care Permanent,Not Yet Classified
Solihull MBC,Adult Social Care,Adult Social Care,Avery Homes (Nelson) Ltd,21/04/2021,,267.86,ASC - Residential Care Respite,Not Yet Classified
Solihull MBC,Adult Social Care,Adult Social Care,Avery Homes (Nelson) Ltd,21/04/2021,,625,ASC - Residential Care Respite,Not Yet Classified
Solihull MBC,Adult Social Care,Adult Social Care,Avery Homes (Nelson) Ltd,21/04/2021,,1607.14,ASC - Residential Care Respite,Not Yet Classified
Solihull MBC,Adult Social Care,Adult Social Care,Avery Homes (Nelson) Ltd,29/04/2021,,553.62,ASC - Residential Care Respite,Not Yet Classified
Solihull MBC,Adult Social Care,Adult Social Care,Avery Homes (Nelson) Ltd,21/04/2021,,265.77,ASC - Residential Care Permanent,Not Yet Classified
Solihull MBC,Adult Social Care,Adult Social Care,Avery Homes (Nelson) Ltd,21/04/2021,,974.49,ASC - Residential Care Permanent,Not Yet Classified
Solihull MBC,Adult Social Care,Adult Social Care,Avery Homes (Nelson) Ltd,21/04/2021,,1289.68,ASC - Residential Care Permanent,Not Yet Classified
Solihull MBC,Adult Social Care,Adult Social Care,Avery Homes (Nelson) Ltd,21/04/2021,,416.64,ASC - Nursing Care Permanent,Not Yet Classified
Solihull MBC,Adult Social Care,Adult Social Care,Avery Homes (Nelson) Ltd,21/04/2021,,1527.68,ASC - Nursing Care Permanent,Not Yet Classified
Solihull MBC,Adult Social Care,Adult Social Care,Avery Homes (Nelson) Ltd,21/04/2021,,1998.22,ASC - Nursing Care Permanent,Not Yet Classified
Solihull MBC,Adult Social Care,Adult Social Care,Avery Homes (Nelson) Ltd,21/04/2021,,351.84,ASC - Nursing Care Permanent,Not Yet Classified
Solihull MBC,Adult Social Care,Adult Social Care,Avery Homes (Nelson) Ltd,21/04/2021,,1290.08,ASC - Nursing Care Permanent,Not Yet Classified
Solihull MBC,Adult Social Care,Adult Social Care,Avery Homes (Nelson) Ltd,21/04/2021,,1692.46,ASC - Nursing Care Permanent,Not Yet Classified
Solihull MBC,Adult Social Care,Adult Social Care,Avery Homes (Nelson) Ltd,29/04/2021,,-1290.08,ASC - Nursing Care Permanent,Not Yet Classified
Solihull MBC,Adult Social Care,Adult Social Care,Avery Homes (Nelson) Ltd,29/04/2021,,-1692.46,ASC - Nursing Care Permanent,Not Yet Classified
Solihull MBC,Adult Social Care,Adult Social Care,Avery Homes (Nelson) Ltd,29/04/2021,,1290.08,ASC - Nursing Care Permanent,Not Yet Classified
Solihull MBC,Adult Social Care,Adult Social Care,Avery Homes (Nelson) Ltd,29/04/2021,,1692.46,ASC - Nursing Care Permanent,Not Yet Classified
Solihull MBC,Adult Social Care,Adult Social Care,Avery Homes (Nelson) Ltd,21/04/2021,,535.71,ASC - Residential Care Respite,Not Yet Classified
Solihull MBC,Adult Social Care,Adult Social Care,Avery Homes (Nelson) Ltd,21/04/2021,,1291.78,ASC - Residential Care Respite,Not Yet Classified
Solihull MBC,Adult Social Care,Adult Social Care,Avery Homes (Nelson) Ltd,29/04/2021,,-276.81,ASC - Residential Care Respite,Not Yet Classified
Solihull MBC,Adult Social Care,Adult Social Care,Avery Homes (Nelson) Ltd,29/04/2021,,276.81,ASC - Residential Care Respite,Not Yet Classified
Solihull MBC,Adult Social Care,Adult Social Care,Avery Homes (Nelson) Ltd,21/04/2021,,364.29,ASC - Nursing Care Permanent,Not Yet Classified
Solihull MBC,Adult Social Care,Adult Social Care,Avery Homes (Nelson) Ltd,21/04/2021,,364.29,ASC - Nursing Care Permanent,Not Yet Classified
Solihull MBC,Adult Social Care,Adult Social Care,Avery Homes (Nelson) Ltd,21/04/2021,,267.86,ASC - Residential Care Permanent,Not Yet Classified
Solihull MBC,Adult Social Care,Adult Social Care,Avery Homes (Nelson) Ltd,21/04/2021,,982.14,ASC - Residential Care Permanent,Not Yet Classified
Solihull MBC,Adult Social Care,Adult Social Care,Avery Homes (Nelson) Ltd,21/04/2021,,1299.48,ASC - Residential Care Permanent,Not Yet Classified
Solihull MBC,Adult Social Care,Adult Social Care,Avery Homes (Nelson) Ltd,21/04/2021,,342.86,ASC - Residential Care Permanent,Not Yet Classified
Solihull MBC,Adult Social Care,Adult Social Care,Avery Homes (Nelson) Ltd,21/04/2021,,1257.14,ASC - Residential Care Permanent,Not Yet Classified
Solihull MBC,Adult Social Care,Adult Social Care,Avery Homes (Nelson) Ltd,21/04/2021,,1641.78,ASC - Residential Care Permanent,Not Yet Classified
Solihull MBC,Adult Social Care,Adult Social Care,Avery Homes (Nelson) Ltd,21/04/2021,,267.86,ASC - Residential Care Respite,Not Yet Classified
Solihull MBC,Adult Social Care,Adult Social Care,Avery Homes (Nelson) Ltd,21/04/2021,,351.84,ASC - Nursing Care Respite,Not Yet Classified
Solihull MBC,Adult Social Care,Adult Social Care,Avery Homes (Nelson) Ltd,21/04/2021,,1290.08,ASC - Nursing Care Respite,Not Yet Classified
Solihull MBC,Adult Social Care,Adult Social Care,Avery Homes (Nelson) Ltd,21/04/2021,,1692.46,ASC - Nursing Care Respite,Not Yet Classified
Solihull MBC,Adult Social Care,Adult Social Care,Avery Homes (Nelson) Ltd,21/04/2021,,292.68,ASC - Nursing Care Permanent,Not Yet Classified
Solihull MBC,Adult Social Care,Adult Social Care,Avery Homes (Nelson) Ltd,21/04/2021,,1073.16,ASC - Nursing Care Permanent,Not Yet Classified
Solihull MBC,Adult Social Care,Adult Social Care,Avery Homes (Nelson) Ltd,21/04/2021,,1416.38,ASC - Nursing Care Permanent,Not Yet Classified
Solihull MBC,Adult Social Care,Adult Social Care,Avery Homes (Nelson) Ltd,29/04/2021,,-1073.16,ASC - Nursing Care Permanent,Not Yet Classified
Solihull MBC,Adult Social Care,Adult Social Care,Avery Homes (Nelson) Ltd,29/04/2021,,-1416.38,ASC - Nursing Care Permanent,Not Yet Classified
Solihull MBC,Adult Social Care,Adult Social Care,Avery Homes (Nelson) Ltd,29/04/2021,,1073.16,ASC - Nursing Care Permanent,Not Yet Classified
Solihull MBC,Adult Social Care,Adult Social Care,Avery Homes (Nelson) Ltd,29/04/2021,,1416.38,ASC - Nursing Care Permanent,Not Yet Classified
Solihull MBC,Adult Social Care,Adult Social Care,Avery Homes (Nelson) Ltd,21/04/2021,,293.22,ASC - Nursing Care Permanent,Not Yet Classified
Solihull MBC,Adult Social Care,Adult Social Care,Avery Homes (Nelson) Ltd,21/04/2021,,1075.14,ASC - Nursing Care Permanent,Not Yet Classified
Solihull MBC,Adult Social Care,Adult Social Care,Avery Homes (Nelson) Ltd,21/04/2021,,1422.26,ASC - Nursing Care Permanent,Not Yet Classified
Solihull MBC,Adult Social Care,Adult Social Care,Avery Homes (Nelson) Ltd,21/04/2021,,265.77,ASC - Residential Care Permanent,Not Yet Classified
Solihull MBC,Adult Social Care,Adult Social Care,Avery Homes (Nelson) Ltd,21/04/2021,,974.49,ASC - Residential Care Permanent,Not Yet Classified
Solihull MBC,Adult Social Care,Adult Social Care,Avery Homes (Nelson) Ltd,21/04/2021,,1289.68,ASC - Residential Care Permanent,Not Yet Classified
Solihull MBC,Adult Social Care,Adult Social Care,Avery Homes (Nelson) Ltd,21/04/2021,,267.86,ASC - Residential Care Permanent,Not Yet Classified
Solihull MBC,Adult Social Care,Adult Social Care,Avery Homes (Nelson) Ltd,21/04/2021,,982.14,ASC - Residential Care Permanent,Not Yet Classified
Solihull MBC,Adult Social Care,Adult Social Care,Avery Homes (Nelson) Ltd,21/04/2021,,1299.48,ASC - Residential Care Permanent,Not Yet Classified
Solihull MBC,Adult Social Care,Adult Social Care,Avery Homes (Nelson) Ltd,21/04/2021,,293.22,ASC - Nursing Care Permanent,Not Yet Classified
Solihull MBC,Adult Social Care,Adult Social Care,Avery Homes (Nelson) Ltd,21/04/2021,,1075.14,ASC - Nursing Care Permanent,Not Yet Classified
Solihull MBC,Adult Social Care,Adult Social Care,Avery Homes (Nelson) Ltd,21/04/2021,,1422.26,ASC - Nursing Care Permanent,Not Yet Classified
Solihull MBC,Resources,Central Services to the Public,Avid Insurance Services Ltd,20/04/2021,,116046.23,Building Insurance,Not Yet Classified
Solihull MBC,Resources,Central Services to the Public,Avid Insurance Services Ltd,20/04/2021,,-58023.12,Building Insurance,Not Yet Classified
Solihull MBC,Adult Social Care,Cultural & Related Services,Axiell Ltd,19/04/2021,,2329.08,IT Equipment & Software,270000 - Information Communication Technology
Solihull MBC,Public Health & Commissioning,Central Services to the Public,A-Z Certified Accountants Ltd,15/04/2021,,2096,Grant & Subscription (SCITT),Not Yet Classified
Solihull MBC,Adult Social Care,Adult Social Care,B&M Investments Ltd (Reference:Tm0318),21/04/2021,,294.54,ASC - Nursing Care Permanent,Not Yet Classified
Solihull MBC,Adult Social Care,Adult Social Care,B&M Investments Ltd (Reference:Tm0318),21/04/2021,,1079.98,ASC - Nursing Care Permanent,Not Yet Classified
Solihull MBC,Adult Social Care,Adult Social Care,B&M Investments Ltd (Reference:Tm0318),21/04/2021,,1425.06,ASC - Nursing Care Permanent,Not Yet Classified
Solihull MBC,Public Health & Commissioning,Central Services to the Public,B94 Ltd,19/04/2021,,1334,Grant & Subscription (SCITT),Not Yet Classified
Solihull MBC,Children's Services & Skills,Children & Education Services,Back Care Solutions Ltd,14/04/2021,,9.5,Furniture & Equipment,171011 - Education - School Services
Solihull MBC,Children's Services & Skills,Children & Education Services,Back Care Solutions Ltd,14/04/2021,,165,Furniture & Equipment,171011 - Education - School Services
Solihull MBC,Children's Services & Skills,Children & Education Services,Back Care Solutions Ltd,14/04/2021,,50,Furniture & Equipment,171011 - Education - School Services
Solihull MBC,Children's Services & Skills,Children & Education Services,Back Care Solutions Ltd,14/04/2021,,132,Furniture & Equipment,171011 - Education - School Services
Solihull MBC,Children's Services & Skills,Children & Education Services,Back Care Solutions Ltd,14/04/2021,,59.99,Furniture & Equipment,171011 - Education - School Services
Solihull MBC,Children's Services & Skills,Children & Education Services,Back Care Solutions Ltd,14/04/2021,,-66,Furniture & Equipment,171011 - Education - School Services
Solihull MBC,Public Health & Commissioning,Central Services to the Public,Bad Apple Hair Solihull,23/04/2021,,12000,Grant & Subscription (SCITT),Not Yet Classified
Solihull MBC,Economy and Infrastructure,Highways & Transport Services,Balfour Beatty Civil Engineering Ltd,08/04/2021,,52005.25,Contractors,"391400 - Works - Construction, Repair & Maintenance"
Solihull MBC,Economy and Infrastructure,Highways & Transport Services,Balfour Beatty,20/04/2021,,95015.96,Contractors,Not Yet Classified
Solihull MBC,Economy and Infrastructure,Highways & Transport Services,Balfour Beatty,20/04/2021,,32939.61,Contractors,Not Yet Classified
Solihull MBC,Economy and Infrastructure,Highways & Transport Services,Balfour Beatty,20/04/2021,,41466.68,Contractors,Not Yet Classified
Solihull MBC,Economy and Infrastructure,Highways & Transport Services,Balfour Beatty,20/04/2021,,26180.98,Contractors,Not Yet Classified
Solihull MBC,Economy and Infrastructure,Highways & Transport Services,Balfour Beatty,09/04/2021,,3149.62,Other Contracted Services,Not Yet Classified
Solihull MBC,Economy and Infrastructure,Highways & Transport Services,Balfour Beatty,09/04/2021,,196.68,Other Contracted Services,Not Yet Classified
Solihull MBC,Economy and Infrastructure,Highways & Transport Services,Balfour Beatty,09/04/2021,,144.35,Other Contracted Services,Not Yet Classified
Solihull MBC,Economy and Infrastructure,Highways & Transport Services,Balfour Beatty,09/04/2021,,33.95,Other Contracted Services,Not Yet Classified
Solihull MBC,Economy and Infrastructure,Highways & Transport Services,Balfour Beatty,09/04/2021,,642.06,Other Contracted Services,Not Yet Classified
Solihull MBC,Economy and Infrastructure,Highways & Transport Services,Balfour Beatty,09/04/2021,,639.44,Other Contracted Services,Not Yet Classified
Solihull MBC,Economy and Infrastructure,Highways & Transport Services,Balfour Beatty,09/04/2021,,276.76,Other Contracted Services,Not Yet Classified
Solihull MBC,Economy and Infrastructure,Highways & Transport Services,Balfour Beatty,09/04/2021,,3185.48,Other Contracted Services,Not Yet Classified
Solihull MBC,Economy and Infrastructure,Highways & Transport Services,Balfour Beatty,09/04/2021,,3395.9,Other Contracted Services,Not Yet Classified
Solihull MBC,Economy and Infrastructure,Highways & Transport Services,Balfour Beatty,09/04/2021,,596.87,Other Contracted Services,Not Yet Classified
Solihull MBC,Economy and Infrastructure,Highways & Transport Services,Balfour Beatty,09/04/2021,,2055.55,Other Contracted Services,Not Yet Classified
Solihull MBC,Economy and Infrastructure,Highways & Transport Services,Balfour Beatty,09/04/2021,,1151.81,Other Contracted Services,Not Yet Classified
Solihull MBC,Economy and Infrastructure,Highways & Transport Services,Balfour Beatty,09/04/2021,,451.3,Other Contracted Services,Not Yet Classified
Solihull MBC,Economy and Infrastructure,Highways & Transport Services,Balfour Beatty,09/04/2021,,1640.36,Other Contracted Services,Not Yet Classified
Solihull MBC,Economy and Infrastructure,Highways & Transport Services,Balfour Beatty,09/04/2021,,416.05,Other Contracted Services,Not Yet Classified
Solihull MBC,Economy and Infrastructure,Highways & Transport Services,Balfour Beatty,09/04/2021,,777.13,Other Contracted Services,Not Yet Classified
Solihull MBC,Economy and Infrastructure,Highways & Transport Services,Balfour Beatty,09/04/2021,,1427.5,Other Contracted Services,Not Yet Classified
Solihull MBC,Economy and Infrastructure,Highways & Transport Services,Balfour Beatty,09/04/2021,,175.88,Other Contracted Services,Not Yet Classified
Solihull MBC,Economy and Infrastructure,Highways & Transport Services,Balfour Beatty,09/04/2021,,816.56,Other Contracted Services,Not Yet Classified
Solihull MBC,Economy and Infrastructure,Highways & Transport Services,Balfour Beatty,09/04/2021,,18.56,Other Contracted Services,Not Yet Classified
Solihull MBC,Economy and Infrastructure,Highways & Transport Services,Balfour Beatty,09/04/2021,,1809.83,Other Contracted Services,Not Yet Classified
Solihull MBC,Economy and Infrastructure,Highways & Transport Services,Balfour Beatty,09/04/2021,,4049.21,Other Contracted Services,Not Yet Classified
Solihull MBC,Economy and Infrastructure,Highways & Transport Services,Balfour Beatty,09/04/2021,,3677.85,Other Contracted Services,Not Yet Classified
Solihull MBC,Economy and Infrastructure,Highways & Transport Services,Balfour Beatty,09/04/2021,,1397.8,Other Contracted Services,Not Yet Classified
Solihull MBC,Economy and Infrastructure,Highways & Transport Services,Balfour Beatty,09/04/2021,,8958.18,Other Contracted Services,Not Yet Classified
Solihull MBC,Economy and Infrastructure,Highways & Transport Services,Balfour Beatty,09/04/2021,,143.94,Other Contracted Services,Not Yet Classified
Solihull MBC,Economy and Infrastructure,Highways & Transport Services,Balfour Beatty,09/04/2021,,9118.8,Other Contracted Services,Not Yet Classified
Solihull MBC,Economy and Infrastructure,Highways & Transport Services,Balfour Beatty,09/04/2021,,95.46,Other Contracted Services,Not Yet Classified
Solihull MBC,Economy and Infrastructure,Highways & Transport Services,Balfour Beatty,09/04/2021,,2746.44,Other Contracted Services,Not Yet Classified
Solihull MBC,Economy and Infrastructure,Highways & Transport Services,Balfour Beatty,09/04/2021,,3413.57,Other Contracted Services,Not Yet Classified
Solihull MBC,Economy and Infrastructure,Highways & Transport Services,Balfour Beatty,09/04/2021,,4207.9,Other Contracted Services,Not Yet Classified
Solihull MBC,Economy and Infrastructure,Highways & Transport Services,Balfour Beatty,09/04/2021,,1045.84,Other Contracted Services,Not Yet Classified
Solihull MBC,Economy and Infrastructure,Highways & Transport Services,Balfour Beatty,09/04/2021,,161.97,Other Contracted Services,Not Yet Classified
Solihull MBC,Economy and Infrastructure,Highways & Transport Services,Balfour Beatty,09/04/2021,,3529.96,Other Contracted Services,Not Yet Classified
Solihull MBC,Economy and Infrastructure,Highways & Transport Services,Balfour Beatty,09/04/2021,,2645.89,Other Contracted Services,Not Yet Classified
Solihull MBC,Economy and Infrastructure,Highways & Transport Services,Balfour Beatty,09/04/2021,,2000,Other Contracted Services,Not Yet Classified
Solihull MBC,Economy and Infrastructure,Highways & Transport Services,Balfour Beatty,09/04/2021,,5994.48,Other Contracted Services,Not Yet Classified
Solihull MBC,Economy and Infrastructure,Highways & Transport Services,Balfour Beatty,09/04/2021,,5413.97,Other Contracted Services,Not Yet Classified
Solihull MBC,Economy and Infrastructure,Highways & Transport Services,Balfour Beatty,09/04/2021,,7107.56,Other Contracted Services,Not Yet Classified
Solihull MBC,Economy and Infrastructure,Highways & Transport Services,Balfour Beatty,09/04/2021,,4974.55,Other Contracted Services,Not Yet Classified
Solihull MBC,Economy and Infrastructure,Highways & Transport Services,Balfour Beatty,09/04/2021,,6633.34,Other Contracted Services,Not Yet Classified
Solihull MBC,Economy and Infrastructure,Highways & Transport Services,Balfour Beatty,09/04/2021,,6860.73,Other Contracted Services,Not Yet Classified
Solihull MBC,Economy and Infrastructure,Highways & Transport Services,Balfour Beatty,09/04/2021,,8266.72,Other Contracted Services,Not Yet Classified
Solihull MBC,Economy and Infrastructure,Highways & Transport Services,Balfour Beatty,09/04/2021,,4417.36,Other Contracted Services,Not Yet Classified
Solihull MBC,Economy and Infrastructure,Highways & Transport Services,Balfour Beatty,09/04/2021,,6039.81,Other Contracted Services,Not Yet Classified
Solihull MBC,Economy and Infrastructure,Highways & Transport Services,Balfour Beatty,09/04/2021,,26502.46,Other Contracted Services,Not Yet Classified
Solihull MBC,Economy and Infrastructure,Highways & Transport Services,Balfour Beatty,09/04/2021,,26971.53,Other Contracted Services,Not Yet Classified
Solihull MBC,Economy and Infrastructure,Highways & Transport Services,Balfour Beatty,09/04/2021,,1803.1,Other Contracted Services,Not Yet Classified
Solihull MBC,Economy and Infrastructure,Highways & Transport Services,Balfour Beatty,09/04/2021,,8196.84,Other Contracted Services,Not Yet Classified
Solihull MBC,Economy and Infrastructure,Highways & Transport Services,Balfour Beatty,09/04/2021,,711.28,Other Contracted Services,Not Yet Classified
Solihull MBC,Economy and Infrastructure,Highways & Transport Services,Balfour Beatty,09/04/2021,,25644.65,Other Contracted Services,Not Yet Classified
Solihull MBC,Economy and Infrastructure,Highways & Transport Services,Balfour Beatty,09/04/2021,,15.79,Other Contracted Services,Not Yet Classified
Solihull MBC,Economy and Infrastructure,Highways & Transport Services,Balfour Beatty,09/04/2021,,455.72,Other Contracted Services,Not Yet Classified
Solihull MBC,Economy and Infrastructure,Highways & Transport Services,Balfour Beatty,09/04/2021,,413.53,Other Contracted Services,Not Yet Classified
Solihull MBC,Economy and Infrastructure,Highways & Transport Services,Balfour Beatty,09/04/2021,,20795.64,Other Contracted Services,Not Yet Classified
Solihull MBC,Economy and Infrastructure,Highways & Transport Services,Balfour Beatty,09/04/2021,,325.48,Other Contracted Services,Not Yet Classified
Solihull MBC,Economy and Infrastructure,Highways & Transport Services,Balfour Beatty,09/04/2021,,1522.1,Other Contracted Services,Not Yet Classified
Solihull MBC,Economy and Infrastructure,Highways & Transport Services,Balfour Beatty,09/04/2021,,244.95,Other Contracted Services,Not Yet Classified
Solihull MBC,Economy and Infrastructure,Highways & Transport Services,Balfour Beatty,09/04/2021,,7106.73,Other Contracted Services,Not Yet Classified
Solihull MBC,Economy and Infrastructure,Highways & Transport Services,Balfour Beatty,09/04/2021,,8312.91,Other Contracted Services,Not Yet Classified
Solihull MBC,Economy and Infrastructure,Highways & Transport Services,Balfour Beatty,09/04/2021,,58.19,Other Contracted Services,Not Yet Classified
Solihull MBC,Economy and Infrastructure,Highways & Transport Services,Balfour Beatty,09/04/2021,,547.19,Other Contracted Services,Not Yet Classified
Solihull MBC,Economy and Infrastructure,Highways & Transport Services,Balfour Beatty,09/04/2021,,5545.06,Other Contracted Services,Not Yet Classified
Solihull MBC,Economy and Infrastructure,Highways & Transport Services,Balfour Beatty,09/04/2021,,2408.51,Other Contracted Services,Not Yet Classified
Solihull MBC,Economy and Infrastructure,Highways & Transport Services,Balfour Beatty,09/04/2021,,1.32,Other Contracted Services,Not Yet Classified
Solihull MBC,Economy and Infrastructure,Highways & Transport Services,Balfour Beatty,09/04/2021,,99.37,Other Contracted Services,Not Yet Classified
Solihull MBC,Economy and Infrastructure,Highways & Transport Services,Balfour Beatty,09/04/2021,,51130.45,Other Contracted Services,Not Yet Classified
Solihull MBC,Economy and Infrastructure,Highways & Transport Services,Balfour Beatty,09/04/2021,,33355,Other Contracted Services,Not Yet Classified
Solihull MBC,Economy and Infrastructure,Highways & Transport Services,Balfour Beatty,09/04/2021,,123.4,Other Contracted Services,Not Yet Classified
Solihull MBC,Economy and Infrastructure,Highways & Transport Services,Balfour Beatty,09/04/2021,,31.19,Other Contracted Services,Not Yet Classified
Solihull MBC,Economy and Infrastructure,Highways & Transport Services,Balfour Beatty,09/04/2021,,123.03,Other Contracted Services,Not Yet Classified
Solihull MBC,Economy and Infrastructure,Highways & Transport Services,Balfour Beatty,09/04/2021,,153.95,Other Contracted Services,Not Yet Classified
Solihull MBC,Economy and Infrastructure,Highways & Transport Services,Balfour Beatty,09/04/2021,,148.08,Other Contracted Services,Not Yet Classified
Solihull MBC,Economy and Infrastructure,Highways & Transport Services,Balfour Beatty,09/04/2021,,194.36,Other Contracted Services,Not Yet Classified
Solihull MBC,Economy and Infrastructure,Highways & Transport Services,Balfour Beatty,09/04/2021,,153.95,Other Contracted Services,Not Yet Classified
Solihull MBC,Economy and Infrastructure,Highways & Transport Services,Balfour Beatty,09/04/2021,,153.95,Other Contracted Services,Not Yet Classified
Solihull MBC,Economy and Infrastructure,Highways & Transport Services,Balfour Beatty,09/04/2021,,5.17,Other Contracted Services,Not Yet Classified
Solihull MBC,Economy and Infrastructure,Highways & Transport Services,Balfour Beatty,09/04/2021,,43.66,Other Contracted Services,Not Yet Classified
Solihull MBC,Economy and Infrastructure,Highways & Transport Services,Balfour Beatty,09/04/2021,,666.86,Contractors,Not Yet Classified
Solihull MBC,Economy and Infrastructure,Highways & Transport Services,Balfour Beatty,09/04/2021,,2616,Contractors,Not Yet Classified
Solihull MBC,Economy and Infrastructure,Highways & Transport Services,Balfour Beatty,09/04/2021,,523.06,Contractors,Not Yet Classified
Solihull MBC,Economy and Infrastructure,Highways & Transport Services,Balfour Beatty,09/04/2021,,203.24,Contractors,Not Yet Classified
Solihull MBC,Economy and Infrastructure,Highways & Transport Services,Balfour Beatty,09/04/2021,,624.94,Contractors,Not Yet Classified
Solihull MBC,Economy and Infrastructure,Highways & Transport Services,Balfour Beatty,09/04/2021,,871.2,Contractors,Not Yet Classified
Solihull MBC,Economy and Infrastructure,Highways & Transport Services,Balfour Beatty,09/04/2021,,1320,Contractors,Not Yet Classified
Solihull MBC,Economy and Infrastructure,Highways & Transport Services,Balfour Beatty,09/04/2021,,298.32,Contractors,Not Yet Classified
Solihull MBC,Economy and Infrastructure,Highways & Transport Services,Balfour Beatty,09/04/2021,,180.02,Contractors,Not Yet Classified
Solihull MBC,Economy and Infrastructure,Cultural & Related Services,Balfour Beatty,09/04/2021,,492.43,Other Contracted Services,Not Yet Classified
Solihull MBC,Economy and Infrastructure,Highways & Transport Services,Balfour Beatty,09/04/2021,,254.98,Strategic Highways Contract,Not Yet Classified
Solihull MBC,Economy and Infrastructure,Highways & Transport Services,Balfour Beatty,09/04/2021,,414.16,Strategic Highways Contract,Not Yet Classified
Solihull MBC,Economy and Infrastructure,Highways & Transport Services,Balfour Beatty,09/04/2021,,20646.2,Strategic Highways Contract,Not Yet Classified
Solihull MBC,Economy and Infrastructure,Highways & Transport Services,Balfour Beatty,09/04/2021,,520.74,Strategic Highways Contract,Not Yet Classified
Solihull MBC,Children's Services - DSG Central.,Children & Education Services,Balsall Common Primary School,26/04/2021,,27193.14,Grant & Subscription (SCITT),Not Yet Classified
Solihull MBC,Children's Services - DSG Central.,Children & Education Services,Balsall Common Primary School,12/04/2021,,358.2,Grant & Subscription (SCITT),Not Yet Classified
Solihull MBC,Children's Services - DSG Central.,Children & Education Services,Balsall Common Primary School,01/04/2021,,15603.83,Other Contracted Services,Not Yet Classified
Solihull MBC,Resources - Non Monitored,Precepts Paid to Parish Councils,Balsall Parish Council,01/04/2021,,49308.5,Parish Precepts,Not Yet Classified
Solihull MBC,Economy and Infrastructure,Environmental and Regulatory Services,Bannocks Solihull,07/04/2021,,349,Materials,120000 - Cemetery & Crematorium 
Solihull MBC,Economy and Infrastructure,Environmental and Regulatory Services,Bannocks Solihull,20/04/2021,,349,Materials,120000 - Cemetery & Crematorium 
Solihull MBC,Economy and Infrastructure,Environmental and Regulatory Services,Bannocks Solihull,29/04/2021,,349,Materials,120000 - Cemetery & Crematorium 
Solihull MBC,Children's Services & Skills,Children & Education Services,Banya,09/04/2021,,2792.88,External Fostering,Not Yet Classified
Solihull MBC,Children's Services & Skills,Children & Education Services,Banya,30/04/2021,,2676.51,External Fostering,Not Yet Classified
Solihull MBC,Children's Services - DSG Central.,Children & Education Services,Barbara Priestman Academy,13/04/2021,,600,Other Contracted Services,Not Yet Classified
Solihull MBC,Children's Services - DSG Central.,Children & Education Services,Barbara Priestman Academy,13/04/2021,,1600,Other Contracted Services,Not Yet Classified
Solihull MBC,Economy and Infrastructure,Highways & Transport Services,Barbour Logic Limited,30/04/2021,,14142,IT Equipment & Software,Not Yet Classified
Solihull MBC,Adult Social Care,Adult Social Care,Barchester Healthcare Homes Ltd,21/04/2021,,265.77,ASC - Residential Care Permanent,321000 - Social Community Care Supplies & Services - Adult
Solihull MBC,Adult Social Care,Adult Social Care,Barchester Healthcare Homes Ltd,21/04/2021,,974.49,ASC - Residential Care Permanent,321000 - Social Community Care Supplies & Services - Adult
Solihull MBC,Adult Social Care,Adult Social Care,Barchester Healthcare Homes Ltd,21/04/2021,,1281.98,ASC - Residential Care Permanent,321000 - Social Community Care Supplies & Services - Adult
Solihull MBC,Adult Social Care,Adult Social Care,Barchester Healthcare Homes Ltd,21/04/2021,,278.57,ASC - Residential Care Permanent,321000 - Social Community Care Supplies & Services - Adult
Solihull MBC,Adult Social Care,Adult Social Care,Barchester Healthcare Homes Ltd,21/04/2021,,1021.43,ASC - Residential Care Permanent,321000 - Social Community Care Supplies & Services - Adult
Solihull MBC,Adult Social Care,Adult Social Care,Barchester Healthcare Homes Ltd,21/04/2021,,1341.76,ASC - Residential Care Permanent,321000 - Social Community Care Supplies & Services - Adult
Solihull MBC,Adult Social Care,Adult Social Care,Barchester Healthcare Homes Ltd,21/04/2021,,251.52,ASC - Residential Care Permanent,321000 - Social Community Care Supplies & Services - Adult
Solihull MBC,Adult Social Care,Adult Social Care,Barchester Healthcare Homes Ltd,21/04/2021,,922.24,ASC - Residential Care Permanent,321000 - Social Community Care Supplies & Services - Adult
Solihull MBC,Adult Social Care,Adult Social Care,Barchester Healthcare Homes Ltd,21/04/2021,,1215.48,ASC - Residential Care Permanent,321000 - Social Community Care Supplies & Services - Adult
Solihull MBC,Adult Social Care,Adult Social Care,Barchester Healthcare Homes Ltd,21/04/2021,,556.59,ASC - Residential Care Permanent,321000 - Social Community Care Supplies & Services - Adult
Solihull MBC,Adult Social Care,Adult Social Care,Barchester Healthcare Homes Ltd,21/04/2021,,2040.83,ASC - Residential Care Permanent,321000 - Social Community Care Supplies & Services - Adult
Solihull MBC,Adult Social Care,Adult Social Care,Barchester Healthcare Homes Ltd,21/04/2021,,2639.14,ASC - Residential Care Permanent,321000 - Social Community Care Supplies & Services - Adult
Solihull MBC,Adult Social Care,Adult Social Care,Barchester Healthcare Homes Ltd,21/04/2021,,268.2,ASC - Nursing Care Permanent,321000 - Social Community Care Supplies & Services - Adult
Solihull MBC,Adult Social Care,Adult Social Care,Barchester Healthcare Homes Ltd,21/04/2021,,983.4,ASC - Nursing Care Permanent,321000 - Social Community Care Supplies & Services - Adult
Solihull MBC,Adult Social Care,Adult Social Care,Barchester Healthcare Homes Ltd,21/04/2021,,1302.14,ASC - Nursing Care Permanent,321000 - Social Community Care Supplies & Services - Adult
Solihull MBC,Adult Social Care,Adult Social Care,Barchester Healthcare Homes Ltd,21/04/2021,,278.57,ASC - Residential Care Permanent,321000 - Social Community Care Supplies & Services - Adult
Solihull MBC,Adult Social Care,Adult Social Care,Barchester Healthcare Homes Ltd,21/04/2021,,1021.43,ASC - Residential Care Permanent,321000 - Social Community Care Supplies & Services - Adult
Solihull MBC,Adult Social Care,Adult Social Care,Barchester Healthcare Homes Ltd,21/04/2021,,1341.76,ASC - Residential Care Permanent,321000 - Social Community Care Supplies & Services - Adult
Solihull MBC,Adult Social Care,Adult Social Care,Barchester Healthcare Homes Ltd,21/04/2021,,268.2,ASC - Nursing Care Permanent,321000 - Social Community Care Supplies & Services - Adult
Solihull MBC,Adult Social Care,Adult Social Care,Barchester Healthcare Homes Ltd,21/04/2021,,983.4,ASC - Nursing Care Permanent,321000 - Social Community Care Supplies & Services - Adult
Solihull MBC,Adult Social Care,Adult Social Care,Barchester Healthcare Homes Ltd,21/04/2021,,1302.14,ASC - Nursing Care Permanent,321000 - Social Community Care Supplies & Services - Adult
Solihull MBC,Resources,Central Services to the Public,Barclaycard,10/05/2021,,2062.8,Other Fees,Not Yet Classified
Solihull MBC,Resources,Central Services to the Public,Barclaycard,10/05/2021,,2042.74,Other Fees,Not Yet Classified
Solihull MBC,Resources,Central Services to the Public,Barclaycard,10/05/2021,,3720.36,Other Fees,Not Yet Classified
Solihull MBC,Adult Social Care,Cultural & Related Services,Barclaycard,10/05/2021,,50,Other Fees,Not Yet Classified
Solihull MBC,Adult Social Care,Cultural & Related Services,Barclaycard,10/05/2021,,24.5,Other Fees,Not Yet Classified
Solihull MBC,Adult Social Care,Cultural & Related Services,Barclaycard,10/05/2021,,30,Other Fees,Not Yet Classified
Solihull MBC,Adult Social Care,Cultural & Related Services,Barclaycard,10/05/2021,,6.98,Other Fees,Not Yet Classified
Solihull MBC,Adult Social Care,Cultural & Related Services,Barclaycard,10/05/2021,,33.44,Other Fees,Not Yet Classified
Solihull MBC,Economy and Infrastructure,Environmental and Regulatory Services,Barclaycard,10/05/2021,,50,Other Fees,Not Yet Classified
Solihull MBC,Economy and Infrastructure,Environmental and Regulatory Services,Barclaycard,10/05/2021,,155.37,Other Fees,Not Yet Classified
Solihull MBC,Adult Social Care,Cultural & Related Services,Barclaycard,10/05/2021,,25,Other Fees,Not Yet Classified
Solihull MBC,Resources,Corporate & Democratic Core,Barclaycard,10/05/2021,,300,Other Contracted Services,Not Yet Classified
Solihull MBC,Resources,Central Services to the Public,Barefoot Coaching Ltd,08/04/2021,,4500,Training,Not Yet Classified
Solihull MBC,Public Health & Commissioning,Central Services to the Public,Barnardos,29/04/2021,,2000,Grant & Subscription (SCITT),Not Yet Classified
Solihull MBC,Public Health & Commissioning,Central Services to the Public,Barnardos,29/04/2021,,3143,Grant & Subscription (SCITT),Not Yet Classified
Solihull MBC,Public Health & Commissioning,Central Services to the Public,Barnardos,29/04/2021,,6000,Grant & Subscription (SCITT),Not Yet Classified
Solihull MBC,Public Health & Commissioning,Central Services to the Public,Barnardos,29/04/2021,,357,Grant & Subscription (SCITT),Not Yet Classified
Solihull MBC,Public Health & Commissioning,Central Services to the Public,Barnardos,29/04/2021,,3000,Grant & Subscription (SCITT),Not Yet Classified
Solihull MBC,Public Health & Commissioning,Central Services to the Public,Barnardos,29/04/2021,,2000,Grant & Subscription (SCITT),Not Yet Classified
Solihull MBC,Public Health & Commissioning,Central Services to the Public,Barnardos,29/04/2021,,3143,Grant & Subscription (SCITT),Not Yet Classified
Solihull MBC,Public Health & Commissioning,Central Services to the Public,Barnardos,29/04/2021,,6000,Grant & Subscription (SCITT),Not Yet Classified
Solihull MBC,Public Health & Commissioning,Central Services to the Public,Barnardos,29/04/2021,,357,Grant & Subscription (SCITT),Not Yet Classified
Solihull MBC,Public Health & Commissioning,Central Services to the Public,Barnardos,29/04/2021,,3000,Grant & Subscription (SCITT),Not Yet Classified
Solihull MBC,Public Health & Commissioning,Central Services to the Public,Barnardos,29/04/2021,,1334,Grant & Subscription (SCITT),Not Yet Classified
Solihull MBC,Public Health & Commissioning,Central Services to the Public,Barnardos,29/04/2021,,2096,Grant & Subscription (SCITT),Not Yet Classified
Solihull MBC,Public Health & Commissioning,Central Services to the Public,Barnardos,29/04/2021,,4000,Grant & Subscription (SCITT),Not Yet Classified
Solihull MBC,Public Health & Commissioning,Central Services to the Public,Barnardos,29/04/2021,,2001,Grant & Subscription (SCITT),Not Yet Classified
Solihull MBC,Public Health & Commissioning,Central Services to the Public,Barnardos,29/04/2021,,2000,Grant & Subscription (SCITT),Not Yet Classified
Solihull MBC,Public Health & Commissioning,Central Services to the Public,Barnardos,29/04/2021,,3143,Grant & Subscription (SCITT),Not Yet Classified
Solihull MBC,Public Health & Commissioning,Central Services to the Public,Barnardos,29/04/2021,,6000,Grant & Subscription (SCITT),Not Yet Classified
Solihull MBC,Public Health & Commissioning,Central Services to the Public,Barnardos,29/04/2021,,357,Grant & Subscription (SCITT),Not Yet Classified
Solihull MBC,Public Health & Commissioning,Central Services to the Public,Barnardos,29/04/2021,,3000,Grant & Subscription (SCITT),Not Yet Classified
Solihull MBC,Children's Services & Skills,Children & Education Services,Barnardos Midlands,30/04/2021,,390.25,External Fostering,321100 - Social Community Care Supplies & Services - Children
Solihull MBC,Children's Services & Skills,Children & Education Services,Barnardos Midlands,30/04/2021,,3252.07,External Fostering,321100 - Social Community Care Supplies & Services - Children
Solihull MBC,Children's Services - DSG Central.,Children & Education Services,Barnhouse Nursey T/A Daycare At St Martins,26/04/2021,,729,Grant & Subscription (SCITT),321100 - Social Community Care Supplies & Services - Children
Solihull MBC,Children's Services - DSG Central.,Children & Education Services,Barnhouse Nursey T/A Daycare At St Martins,26/04/2021,,48358.8,Grant & Subscription (SCITT),321100 - Social Community Care Supplies & Services - Children
Solihull MBC,Public Health & Commissioning,Central Services to the Public,Barston Memorial Institute,19/04/2021,,1334,Grant & Subscription (SCITT),Not Yet Classified
Solihull MBC,Public Health & Commissioning,Central Services to the Public,Barston Memorial Institute,08/04/2021,,934,Grant & Subscription (SCITT),Not Yet Classified
Solihull MBC,Resources - Non Monitored,Precepts Paid to Parish Councils,Barston Parish Council,01/04/2021,,7243.5,Parish Precepts,Not Yet Classified
Solihull MBC,Adult Social Care,Adult Social Care,BCOP-NH3,21/04/2021,,504.86,ASC - Nursing Care Respite,Not Yet Classified
Solihull MBC,Adult Social Care,Adult Social Care,BCOP-NH3,21/04/2021,,1178,ASC - Nursing Care Respite,Not Yet Classified
Solihull MBC,Children's Services - DSG Central.,Children & Education Services,Beatle Woods,26/04/2021,,1749.6,Grant & Subscription (SCITT),Not Yet Classified
Solihull MBC,Children's Services - DSG Central.,Children & Education Services,Beatle Woods,26/04/2021,,24506.64,Grant & Subscription (SCITT),Not Yet Classified
Solihull MBC,Public Health & Commissioning,Central Services to the Public,Beautique Studio Ltd,16/04/2021,,8000,Grant & Subscription (SCITT),Not Yet Classified
Solihull MBC,Public Health & Commissioning,Central Services to the Public,Beauty Edit Solihull,08/04/2021,,2096,Grant & Subscription (SCITT),Not Yet Classified
Solihull MBC,Public Health & Commissioning,Central Services to the Public,Beauty Outlet Ltd,23/04/2021,,4000,Grant & Subscription (SCITT),Not Yet Classified
Solihull MBC,Public Health & Commissioning,Central Services to the Public,Beautylicous,08/04/2021,,2096,Grant & Subscription (SCITT),Not Yet Classified
Solihull MBC,Children's Services - DSG Central.,Children & Education Services,Beechwood Childcare,12/04/2021,,358.2,Grant & Subscription (SCITT),321100 - Social Community Care Supplies & Services - Children
Solihull MBC,Public Health & Commissioning,Central Services to the Public,Beefeater (Whitbread Group PLC),08/04/2021,,3000,Grant & Subscription (SCITT),Not Yet Classified
Solihull MBC,Public Health & Commissioning,Central Services to the Public,Beefeater (Whitbread Group PLC),19/04/2021,,3000,Grant & Subscription (SCITT),Not Yet Classified
Solihull MBC,Public Health & Commissioning,Central Services to the Public,Beefeater (Whitbread Group PLC),20/04/2021,,4714,Grant & Subscription (SCITT),Not Yet Classified
Solihull MBC,Public Health & Commissioning,Central Services to the Public,Beefeater (Whitbread Group PLC),20/04/2021,,9000,Grant & Subscription (SCITT),Not Yet Classified
Solihull MBC,Public Health & Commissioning,Central Services to the Public,Beefeater (Whitbread Group PLC),20/04/2021,,536,Grant & Subscription (SCITT),Not Yet Classified
Solihull MBC,Public Health & Commissioning,Central Services to the Public,Beefeater (Whitbread Group PLC),20/04/2021,,4500,Grant & Subscription (SCITT),Not Yet Classified
Solihull MBC,Public Health & Commissioning,Central Services to the Public,Beefeater (Whitbread Group PLC),08/04/2021,,3000,Grant & Subscription (SCITT),Not Yet Classified
Solihull MBC,Public Health & Commissioning,Central Services to the Public,Beefeater (Whitbread Group PLC),19/04/2021,,3000,Grant & Subscription (SCITT),Not Yet Classified
Solihull MBC,Public Health & Commissioning,Central Services to the Public,Beefeater (Whitbread Group PLC),20/04/2021,,4714,Grant & Subscription (SCITT),Not Yet Classified
Solihull MBC,Public Health & Commissioning,Central Services to the Public,Beefeater (Whitbread Group PLC),20/04/2021,,9000,Grant & Subscription (SCITT),Not Yet Classified
Solihull MBC,Public Health & Commissioning,Central Services to the Public,Beefeater (Whitbread Group PLC),20/04/2021,,536,Grant & Subscription (SCITT),Not Yet Classified
Solihull MBC,Public Health & Commissioning,Central Services to the Public,Beefeater (Whitbread Group PLC),20/04/2021,,4500,Grant & Subscription (SCITT),Not Yet Classified
Solihull MBC,Public Health & Commissioning,Central Services to the Public,Beefeater (Whitbread Group PLC),08/04/2021,,3000,Grant & Subscription (SCITT),Not Yet Classified
Solihull MBC,Public Health & Commissioning,Central Services to the Public,Beefeater (Whitbread Group PLC),19/04/2021,,3000,Grant & Subscription (SCITT),Not Yet Classified
Solihull MBC,Public Health & Commissioning,Central Services to the Public,Beefeater (Whitbread Group PLC),20/04/2021,,4714,Grant & Subscription (SCITT),Not Yet Classified
Solihull MBC,Public Health & Commissioning,Central Services to the Public,Beefeater (Whitbread Group PLC),20/04/2021,,9000,Grant & Subscription (SCITT),Not Yet Classified
Solihull MBC,Public Health & Commissioning,Central Services to the Public,Beefeater (Whitbread Group PLC),20/04/2021,,536,Grant & Subscription (SCITT),Not Yet Classified
Solihull MBC,Public Health & Commissioning,Central Services to the Public,Beefeater (Whitbread Group PLC),20/04/2021,,4500,Grant & Subscription (SCITT),Not Yet Classified
Solihull MBC,Public Health & Commissioning,Central Services to the Public,Bengal Brasserie (Balsall Common) Ltd,16/04/2021,,12000,Grant & Subscription (SCITT),Not Yet Classified
Solihull MBC,Public Health & Commissioning,Central Services to the Public,Benito Brow Bar Stores Ltd,16/04/2021,,12000,Grant & Subscription (SCITT),Not Yet Classified
Solihull MBC,Adult Social Care,Adult Social Care,Bentley Court Priory,21/04/2021,,3518.64,ASC - Nursing Care Permanent,Not Yet Classified
Solihull MBC,Children's Services - DSG Central.,Children & Education Services,Bentley Heath Primary School Ac,26/04/2021,,10908,Grant & Subscription (SCITT),Not Yet Classified
Solihull MBC,Children's Services - DSG Central.,Children & Education Services,Bentley West Primary School,13/04/2021,,1200,Other Contracted Services,Not Yet Classified
Solihull MBC,Children's Services - DSG Central.,Children & Education Services,Bentley West Primary School,13/04/2021,,2000,Other Contracted Services,Not Yet Classified
Solihull MBC,Public Health & Commissioning,Central Services to the Public,Berkswell And Balsall Common RFC,19/04/2021,,1334,Grant & Subscription (SCITT),Not Yet Classified
Solihull MBC,Resources - Non Monitored,Precepts Paid to Parish Councils,Berkswell Parish Council,01/04/2021,,21920,Parish Precepts,Not Yet Classified
Solihull MBC,Public Health & Commissioning,Central Services to the Public,Bespoke Brows,16/04/2021,,8000,Grant & Subscription (SCITT),Not Yet Classified
Solihull MBC,Adult Social Care,Adult Social Care,Bethphage,20/04/2021,,1312.2,ASC - Supported Living Care Costs,Not Yet Classified
Solihull MBC,Adult Social Care,Adult Social Care,Bethphage,20/04/2021,,583.2,ASC - Supported Living Care Costs,Not Yet Classified
Solihull MBC,Adult Social Care,Adult Social Care,Bethphage,20/04/2021,,2203.2,ASC - Supported Living Care Costs,Not Yet Classified
Solihull MBC,Public Health & Commissioning,Central Services to the Public,Beverley Justine Ltd,23/04/2021,,8000,Grant & Subscription (SCITT),Not Yet Classified
Solihull MBC,Public Health & Commissioning,Central Services to the Public,Bhatti UK Ltd,23/04/2021,,8000,Grant & Subscription (SCITT),Not Yet Classified
Solihull MBC,Resources - Non Monitored,Precepts Paid to Parish Councils,Bickenhill And Marston Green Parish Council,01/04/2021,,75182.5,Parish Precepts,Not Yet Classified
Solihull MBC,Adult Social Care,Adult Social Care,Bid Services For Deaf People,14/04/2021,,14984.75,Other Contracted Services,401401 - Social Community Care Supplies & Services - Children - Specialist Needs
Solihull MBC,Adult Social Care,Cultural & Related Services,Bidfood,27/04/2021,,418.11,Catering Provisions,Not Yet Classified
Solihull MBC,Adult Social Care,Cultural & Related Services,Bidfood,27/04/2021,,320.48,Catering Provisions,Not Yet Classified
Solihull MBC,Public Health & Commissioning,Central Services to the Public,Big Bitez Ltd,16/04/2021,,12000,Grant & Subscription (SCITT),Not Yet Classified
Solihull MBC,Public Health & Commissioning,Central Services to the Public,Bilash (Knowle) Limited,23/04/2021,,8000,Grant & Subscription (SCITT),Not Yet Classified
Solihull MBC,Children's Services - DSG Central.,Children & Education Services,Billy Bears Nursery,15/04/2021,,776.1,Grant & Subscription (SCITT),321100 - Social Community Care Supplies & Services - Children
Solihull MBC,Children's Services - DSG Central.,Children & Education Services,Birchensale Middle School,13/04/2021,,600,Other Contracted Services,Not Yet Classified
Solihull MBC,Children's Services - DSG Central.,Children & Education Services,Birchensale Middle School,13/04/2021,,1000,Other Contracted Services,Not Yet Classified
Solihull MBC,Adult Social Care,Adult Social Care,Birchmere Mews (Wt Opco3 Ltd),21/04/2021,,265.77,ASC - Residential Care Permanent,Not Yet Classified
Solihull MBC,Adult Social Care,Adult Social Care,Birchmere Mews (Wt Opco3 Ltd),21/04/2021,,974.49,ASC - Residential Care Permanent,Not Yet Classified
Solihull MBC,Adult Social Care,Adult Social Care,Birchmere Mews (Wt Opco3 Ltd),21/04/2021,,1289.68,ASC - Residential Care Permanent,Not Yet Classified
Solihull MBC,Adult Social Care,Adult Social Care,Birchmere Mews (Wt Opco3 Ltd),21/04/2021,,268.2,ASC - Residential Care Respite,Not Yet Classified
Solihull MBC,Adult Social Care,Adult Social Care,Birchmere Mews (Wt Opco3 Ltd),21/04/2021,,983.4,ASC - Residential Care Respite,Not Yet Classified
Solihull MBC,Adult Social Care,Adult Social Care,Birchmere Mews (Wt Opco3 Ltd),21/04/2021,,1293.32,ASC - Residential Care Respite,Not Yet Classified
Solihull MBC,Adult Social Care,Adult Social Care,Birchmere Mews (Wt Opco3 Ltd),21/04/2021,,500.88,ASC - Residential Care Permanent,Not Yet Classified
Solihull MBC,Adult Social Care,Adult Social Care,Birchmere Mews (Wt Opco3 Ltd),21/04/2021,,1836.56,ASC - Residential Care Permanent,Not Yet Classified
Solihull MBC,Adult Social Care,Adult Social Care,Birchmere Mews (Wt Opco3 Ltd),21/04/2021,,2379.16,ASC - Residential Care Permanent,Not Yet Classified
Solihull MBC,Adult Social Care,Adult Social Care,Birchmere Mews (Wt Opco3 Ltd),21/04/2021,,502.65,ASC - Residential Care Permanent,Not Yet Classified
Solihull MBC,Adult Social Care,Adult Social Care,Birchmere Mews (Wt Opco3 Ltd),21/04/2021,,1843.05,ASC - Residential Care Permanent,Not Yet Classified
Solihull MBC,Adult Social Care,Adult Social Care,Birchmere Mews (Wt Opco3 Ltd),21/04/2021,,2395.12,ASC - Residential Care Permanent,Not Yet Classified
Solihull MBC,Adult Social Care,Adult Social Care,Birchmere Mews (Wt Opco3 Ltd),21/04/2021,,265.77,ASC - Residential Care Permanent,Not Yet Classified
Solihull MBC,Adult Social Care,Adult Social Care,Birchmere Mews (Wt Opco3 Ltd),21/04/2021,,974.49,ASC - Residential Care Permanent,Not Yet Classified
Solihull MBC,Adult Social Care,Adult Social Care,Birchmere Mews (Wt Opco3 Ltd),21/04/2021,,1289.68,ASC - Residential Care Permanent,Not Yet Classified
Solihull MBC,Covid-19,Central Services to the Public,Birchmere Mews (Wt Opco3 Ltd),29/04/2021,,17923.22,ASC - Residential Care Permanent,Not Yet Classified
Solihull MBC,Covid-19,Central Services to the Public,Birchmere Mews (Wt Opco3 Ltd),29/04/2021,,14029.54,ASC - Residential Care Permanent,Not Yet Classified
Solihull MBC,Public Health & Commissioning,Central Services to the Public,Birmingham Airport Hotels Ltd,23/04/2021,,12000,Grant & Subscription (SCITT),Not Yet Classified
Solihull MBC,Economy and Infrastructure,Planning & Development Services,Birmingham City Council,29/04/2021,,229.5,Other Fees,Not Yet Classified
Solihull MBC,Covid-19,Central Services to the Public,Birmingham City Council,01/04/2021,,52326,Materials,Not Yet Classified
Solihull MBC,Resources,Central Services to the Public,Birmingham City Council,20/04/2021,,3520.33,Postage & Courier Services,Not Yet Classified
Solihull MBC,Resources,Central Services to the Public,Birmingham City Council,26/04/2021,,66740,General Creditors,Not Yet Classified
Solihull MBC,Resources,Planning & Development Services,Birmingham City Council,26/04/2021,,10524.81,General Creditors,Not Yet Classified
Solihull MBC,Adult Social Care,Adult Social Care,Birmingham Community Healthcare NHS,22/04/2021,,3935.71,Furniture & Equipment,Not Yet Classified
Solihull MBC,Adult Social Care,Adult Social Care,Birmingham Community Healthcare NHS,29/04/2021,,1080,Furniture & Equipment,Not Yet Classified
Solihull MBC,Adult Social Care,Adult Social Care,Birmingham Community Healthcare NHS,29/04/2021,,2888.05,Furniture & Equipment,Not Yet Classified
Solihull MBC,Adult Social Care,Adult Social Care,Birmingham Mind,21/04/2021,,310.8,ASC - Residential Care Permanent,Not Yet Classified
Solihull MBC,Adult Social Care,Adult Social Care,Birmingham Mind,21/04/2021,,1139.6,ASC - Residential Care Permanent,Not Yet Classified
Solihull MBC,Adult Social Care,Adult Social Care,Birmingham Mind,21/04/2021,,1574.72,ASC - Residential Care Permanent,Not Yet Classified
Solihull MBC,Adult Social Care,Adult Social Care,Birmingham Social Services,21/04/2021,,471.43,ASC - Shared Lives,Not Yet Classified
Solihull MBC,Adult Social Care,Adult Social Care,Birmingham Social Services,21/04/2021,,604,ASC - Shared Lives,Not Yet Classified
Solihull MBC,Adult Social Care,Adult Social Care,BJCC,21/04/2021,,293.22,ASC - Nursing Care Permanent,Not Yet Classified
Solihull MBC,Adult Social Care,Adult Social Care,BJCC,21/04/2021,,1075.14,ASC - Nursing Care Permanent,Not Yet Classified
Solihull MBC,Adult Social Care,Adult Social Care,BJCC,21/04/2021,,1422.26,ASC - Nursing Care Permanent,Not Yet Classified
Solihull MBC,Children's Services - DSG Central.,Children & Education Services,Blackwater Academy,19/04/2021,,54679.32,Other Contracted Services,Not Yet Classified
Solihull MBC,Children's Services & Skills,Children & Education Services,Blossoms Pre-School Limited,30/04/2021,,-1573.71,Clients Expenses,Not Yet Classified
Solihull MBC,Children's Services & Skills,Children & Education Services,Blossoms Pre-School Limited,30/04/2021,,408,Clients Expenses,Not Yet Classified
Solihull MBC,Children's Services & Skills,Children & Education Services,Blossoms Pre-School Limited,30/04/2021,,451.71,Clients Expenses,Not Yet Classified
Solihull MBC,Children's Services & Skills,Children & Education Services,Blossoms Pre-School Limited,30/04/2021,,1573.71,Clients Expenses,Not Yet Classified
Solihull MBC,Children's Services & Skills,Children & Education Services,Blossoms Pre-School Limited,30/04/2021,,378.86,Clients Expenses,Not Yet Classified
Solihull MBC,Children's Services - DSG Central.,Children & Education Services,Blossoms Pre-School Limited,26/04/2021,,3645,Grant & Subscription (SCITT),Not Yet Classified
Solihull MBC,Children's Services - DSG Central.,Children & Education Services,Blossoms Pre-School Limited,26/04/2021,,5999.4,Grant & Subscription (SCITT),Not Yet Classified
Solihull MBC,Children's Services - DSG Central.,Children & Education Services,Blue Coat Junior School,13/04/2021,,600,Other Contracted Services,Not Yet Classified
Solihull MBC,Children's Services - DSG Central.,Children & Education Services,Blue Coat Junior School,13/04/2021,,1600,Other Contracted Services,Not Yet Classified
Solihull MBC,Adult Social Care,Adult Social Care,Bluebird Care (Solihull),07/04/2021,,1495.2,ASC - Domiciliary Care,Not Yet Classified
Solihull MBC,Adult Social Care,Adult Social Care,Bluebird Care (Solihull),07/04/2021,,662.16,ASC - Domiciliary Care,Not Yet Classified
Solihull MBC,Adult Social Care,Adult Social Care,Bluebird Care (Solihull),07/04/2021,,886.44,ASC - Domiciliary Care,Not Yet Classified
Solihull MBC,Adult Social Care,Adult Social Care,Bluebird Care (Solihull),07/04/2021,,1228.2,ASC - Domiciliary Care,Not Yet Classified
Solihull MBC,Adult Social Care,Adult Social Care,Bluebird Care (Solihull),07/04/2021,,1228.2,ASC - Domiciliary Care,Not Yet Classified
Solihull MBC,Covid-19,Central Services to the Public,Bluebird Care (Solihull),29/04/2021,,3698,ASC - Supported Living Care Costs,Not Yet Classified
Solihull MBC,Covid-19,Central Services to the Public,Bluebird Care (Solihull),29/04/2021,,5789.27,ASC - Supported Living Care Costs,Not Yet Classified
Solihull MBC,Public Health & Commissioning,Central Services to the Public,Blush Brow Bar,20/04/2021,,8000,Grant & Subscription (SCITT),Not Yet Classified
Solihull MBC,Resources,Central Services to the Public,Bond Solon Training Ltd,12/04/2021,,1230,Training,Not Yet Classified
Solihull MBC,Adult Social Care,Adult Social Care,Bondcare (Bromford) Ltd,21/04/2021,,369.75,ASC - Nursing Care Permanent,321000 - Social Community Care Supplies & Services - Adult
Solihull MBC,Adult Social Care,Adult Social Care,Bondcare (Bromford) Ltd,21/04/2021,,1355.75,ASC - Nursing Care Permanent,321000 - Social Community Care Supplies & Services - Adult
Solihull MBC,Adult Social Care,Adult Social Care,Bondcare (Bromford) Ltd,21/04/2021,,1776.04,ASC - Nursing Care Permanent,321000 - Social Community Care Supplies & Services - Adult
Solihull MBC,Adult Social Care,Adult Social Care,Bondcare (Bromford) Ltd,21/04/2021,,428.57,ASC - Residential Care Permanent,321000 - Social Community Care Supplies & Services - Adult
Solihull MBC,Adult Social Care,Adult Social Care,Bondcare (Bromford) Ltd,21/04/2021,,1571.43,ASC - Residential Care Permanent,321000 - Social Community Care Supplies & Services - Adult
Solihull MBC,Adult Social Care,Adult Social Care,Bondcare (Bromford) Ltd,21/04/2021,,2041.76,ASC - Residential Care Permanent,321000 - Social Community Care Supplies & Services - Adult
Solihull MBC,Adult Social Care,Adult Social Care,Bondcare (Bromford) Ltd,21/04/2021,,293.22,ASC - Nursing Care Permanent,321000 - Social Community Care Supplies & Services - Adult
Solihull MBC,Adult Social Care,Adult Social Care,Bondcare (Bromford) Ltd,21/04/2021,,1075.14,ASC - Nursing Care Permanent,321000 - Social Community Care Supplies & Services - Adult
Solihull MBC,Adult Social Care,Adult Social Care,Bondcare (Bromford) Ltd,21/04/2021,,1422.26,ASC - Nursing Care Permanent,321000 - Social Community Care Supplies & Services - Adult
Solihull MBC,Public Health & Commissioning,Adult Social Care,Boots The Chemist,20/04/2021,,333.59,Other Contracted Services,Not Yet Classified
Solihull MBC,Public Health & Commissioning,Central Services to the Public,Bora Food And Beverage Company Ltd,23/04/2021,,12000,Grant & Subscription (SCITT),Not Yet Classified
Solihull MBC,Resources,Other Housing Services,Borshch Electric,01/04/2021,,316.66,Clients Expenses,110000 - Catering
Solihull MBC,Resources,Other Housing Services,Borshch Electric,12/04/2021,,487.5,Clients Expenses,110000 - Catering
